Payment Date,Transaction Number,Net Amount,Supplier (Beneficiary) Name,Local Supplier Internal Reference,Directorate / Service Where Expenditure Incurred,Service Category Label,Service Category URI,SeRCOP Expenditure Category,SeRCOP Expenditure Code,Purpose of Spend,SeRCOP Detailed Expenditure Code,Capital/Revenue,Procurement Classification
01/08/2022,51414,384.55,COUNCIL TAX REFUND,299993,Capital,Capital,Capital,Excluded from General Fund,N/A,Collection Fund,N/A,Capital,NON INFLUENCIBLE.NON INFLUENCIBLE
01/08/2022,51416,457.47,COUNCIL TAX REFUND,299993,Capital,Capital,Capital,Excluded from General Fund,N/A,Collection Fund,N/A,Capital,NON INFLUENCIBLE.NON INFLUENCIBLE
01/08/2022,51420,295.73,COUNCIL TAX REFUND,299993,Capital,Capital,Capital,Excluded from General Fund,N/A,Collection Fund,N/A,Capital,NON INFLUENCIBLE.NON INFLUENCIBLE
01/08/2022,51422,1197.30,COUNCIL TAX REFUND,299993,Capital,Capital,Capital,Excluded from General Fund,N/A,Collection Fund,N/A,Capital,NON INFLUENCIBLE.NON INFLUENCIBLE
01/08/2022,2442289,322.65,HOUSING BENEFIT,299992,Capital,Capital,Capital,Transfer Payments,506,Housing Benefits,5048,Capital,NON INFLUENCIBLE.NON INFLUENCIBLE
01/08/2022,2442290,1116.86,HOUSING BENEFIT,299992,Capital,Capital,Capital,Transfer Payments,506,Housing Benefits,5048,Capital,NON INFLUENCIBLE.NON INFLUENCIBLE
01/08/2022,2442291,5601.36,HOUSING BENEFIT,299992,Capital,Capital,Capital,Transfer Payments,506,Housing Benefits,5048,Capital,NON INFLUENCIBLE.NON INFLUENCIBLE
01/08/2022,2442292,412.36,HOUSING BENEFIT,299992,Capital,Capital,Capital,Transfer Payments,506,Housing Benefits,5048,Capital,NON INFLUENCIBLE.NON INFLUENCIBLE
01/08/2022,2442293,7118.86,HOUSING BENEFIT,299992,Capital,Capital,Capital,Transfer Payments,506,Housing Benefits,5048,Capital,NON INFLUENCIBLE.NON INFLUENCIBLE
01/08/2022,2442294,1254.66,HOUSING BENEFIT,299992,Capital,Capital,Capital,Transfer Payments,506,Housing Benefits,5048,Capital,NON INFLUENCIBLE.NON INFLUENCIBLE
01/08/2022,2442295,2580.83,HOUSING BENEFIT,299992,Capital,Capital,Capital,Transfer Payments,506,Housing Benefits,5048,Capital,NON INFLUENCIBLE.NON INFLUENCIBLE
01/08/2022,2442296,390.32,HOUSING BENEFIT,299992,Capital,Capital,Capital,Transfer Payments,506,Housing Benefits,5048,Capital,NON INFLUENCIBLE.NON INFLUENCIBLE
01/08/2022,2442297,1535.32,HOUSING BENEFIT,299992,Capital,Capital,Capital,Transfer Payments,506,Housing Benefits,5048,Capital,NON INFLUENCIBLE.NON INFLUENCIBLE
01/08/2022,2442298,262.87,HOUSING BENEFIT,299992,Capital,Capital,Capital,Transfer Payments,506,Housing Benefits,5048,Capital,NON INFLUENCIBLE.NON INFLUENCIBLE
01/08/2022,2442299,670.86,HOUSING BENEFIT,299992,Capital,Capital,Capital,Transfer Payments,506,Housing Benefits,5048,Capital,NON INFLUENCIBLE.NON INFLUENCIBLE
01/08/2022,2442300,394.56,HOUSING BENEFIT,299992,Capital,Capital,Capital,Transfer Payments,506,Housing Benefits,5048,Capital,NON INFLUENCIBLE.NON INFLUENCIBLE
01/08/2022,2442322,333.12,COUNCIL TAX REFUND,299993,Capital,Capital,Capital,Excluded from General Fund,N/A,Collection Fund,N/A,Capital,NON INFLUENCIBLE.NON INFLUENCIBLE
01/08/2022,2442328,326.04,COUNCIL TAX REFUND,299993,Capital,Capital,Capital,Excluded from General Fund,N/A,Collection Fund,N/A,Capital,NON INFLUENCIBLE.NON INFLUENCIBLE
01/08/2022,2442332,294.42,COUNCIL TAX REFUND,299993,Capital,Capital,Capital,Excluded from General Fund,N/A,Collection Fund,N/A,Capital,NON INFLUENCIBLE.NON INFLUENCIBLE
01/08/2022,2442333,532.78,COUNCIL TAX REFUND,299993,Capital,Capital,Capital,Excluded from General Fund,N/A,Collection Fund,N/A,Capital,NON INFLUENCIBLE.NON INFLUENCIBLE
01/08/2022,2442340,332.84,COUNCIL TAX REFUND,299993,Capital,Capital,Capital,Excluded from General Fund,N/A,Collection Fund,N/A,Capital,NON INFLUENCIBLE.NON INFLUENCIBLE
01/08/2022,2442345,434.53,COUNCIL TAX REFUND,299993,Capital,Capital,Capital,Excluded from General Fund,N/A,Collection Fund,N/A,Capital,NON INFLUENCIBLE.NON INFLUENCIBLE
01/08/2022,2442352,440.57,COUNCIL TAX REFUND,299993,Capital,Capital,Capital,Excluded from General Fund,N/A,Collection Fund,N/A,Capital,NON INFLUENCIBLE.NON INFLUENCIBLE
01/08/2022,2442367,562.64,COUNCIL TAX REFUND,299993,Capital,Capital,Capital,Excluded from General Fund,N/A,Collection Fund,N/A,Capital,NON INFLUENCIBLE.NON INFLUENCIBLE
01/08/2022,2442375,298.88,COUNCIL TAX REFUND,299993,Capital,Capital,Capital,Excluded from General Fund,N/A,Collection Fund,N/A,Capital,NON INFLUENCIBLE.NON INFLUENCIBLE
01/08/2022,2442379,279.63,COUNCIL TAX REFUND,299993,Capital,Capital,Capital,Excluded from General Fund,N/A,Collection Fund,N/A,Capital,NON INFLUENCIBLE.NON INFLUENCIBLE
01/08/2022,2442381,643.86,NNDR,299990,Capital,Capital,Capital,Excluded from General Fund,N/A,Collection Fund,N/A,Capital,NON INFLUENCIBLE.NON INFLUENCIBLE
01/08/2022,2442382,1522.30,NNDR,299990,Capital,Capital,Capital,Excluded from General Fund,N/A,Collection Fund,N/A,Capital,NON INFLUENCIBLE.NON INFLUENCIBLE
01/08/2022,2442420,675.00,AVERY HOMES WEYBRIDGE LTD,400264,Capital,Capital,Capital,Third Party Payments,505,Private Contractors,5042,Capital,SOCIAL CARE.NURSING & RESIDENTIAL CARE
01/08/2022,2442422,713.26,Redacted Personal Data,381577,Capital,Capital,Capital,Third Party Payments,505,Other Establishments,5041,Capital,NON INFLUENCIBLE.INDIVIDUAL
01/08/2022,2442423,550.73,Redacted Personal Data,400221,Capital,Capital,Capital,Third Party Payments,505,Other Establishments,5041,Capital,NON INFLUENCIBLE.INDIVIDUAL
01/08/2022,2442424,319.74,Redacted Personal Data,385449,Capital,Capital,Capital,Third Party Payments,505,Other Establishments,5041,Capital,NON INFLUENCIBLE.NON INFLUENCIBLE
01/08/2022,2442430,2487.00,CARE UK LEARNING DISABILITIES SERVICES LTD,387528,Capital,Capital,Capital,Third Party Payments,505,Private Contractors,5042,Capital,SOCIAL CARE.NURSING & RESIDENTIAL CARE
01/08/2022,2442433,399.84,Redacted Personal Data,402899,Capital,Capital,Capital,Third Party Payments,505,Other Establishments,5041,Capital,NON INFLUENCIBLE.INDIVIDUAL
01/08/2022,2442433,1596.00,Redacted Personal Data,402899,Capital,Capital,Capital,Third Party Payments,505,Other Establishments,5041,Capital,NON INFLUENCIBLE.INDIVIDUAL
01/08/2022,2442436,295.59,Redacted Personal Data,402812,Capital,Capital,Capital,Third Party Payments,505,Other Establishments,5041,Capital,NON INFLUENCIBLE.WELFARE
01/08/2022,2442439,400.47,Redacted Personal Data,402749,Capital,Capital,Capital,Third Party Payments,505,Other Establishments,5041,Capital,NON INFLUENCIBLE.WELFARE
01/08/2022,2442442,3.13,Redacted Personal Data,402739,Capital,Capital,Capital,Third Party Payments,505,Other Establishments,5041,Capital,SOCIAL CARE.ADULT SUPPORT SERVICES
01/08/2022,2442442,119.00,Redacted Personal Data,402739,Capital,Capital,Capital,Third Party Payments,505,Other Establishments,5041,Capital,SOCIAL CARE.ADULT SUPPORT SERVICES
01/08/2022,2442442,475.00,Redacted Personal Data,402739,Capital,Capital,Capital,Third Party Payments,505,Other Establishments,5041,Capital,SOCIAL CARE.ADULT SUPPORT SERVICES
01/08/2022,2442443,696.28,ATLAS CARE HOME LTD T.A HEBBURN MANOR,402689,Capital,Capital,Capital,Third Party Payments,505,Private Contractors,5042,Capital,SOCIAL CARE.CARE SERVICES
01/08/2022,2442444,654.60,THE COURT CARE GROUP,402645,Capital,Capital,Capital,Third Party Payments,505,Private Contractors,5042,Capital,SOCIAL CARE.NURSING & RESIDENTIAL CARE
01/08/2022,2442445,488.60,Redacted Personal Data,402668,Capital,Capital,Capital,Third Party Payments,505,Other Establishments,5041,Capital,NON INFLUENCIBLE.WELFARE
01/08/2022,2442446,357.00,Redacted Personal Data,402650,Capital,Capital,Capital,Third Party Payments,505,Other Establishments,5041,Capital,SOCIAL CARE.ADULT SUPPORT SERVICES
01/08/2022,2442448,319.74,Redacted Personal Data,244511,Capital,Capital,Capital,Third Party Payments,505,Other Establishments,5041,Capital,SOCIAL CARE.ADULT SUPPORT SERVICES
01/08/2022,2442450,681.85,Redacted Personal Data,402553,Capital,Capital,Capital,Third Party Payments,505,Other Establishments,5041,Capital,NON INFLUENCIBLE.INDIVIDUAL
01/08/2022,2442451,3.13,Redacted Personal Data,402483,Capital,Capital,Capital,Third Party Payments,505,Other Establishments,5041,Capital,NON INFLUENCIBLE.WELFARE
01/08/2022,2442451,102.34,Redacted Personal Data,402483,Capital,Capital,Capital,Third Party Payments,505,Other Establishments,5041,Capital,NON INFLUENCIBLE.WELFARE
01/08/2022,2442451,213.00,Redacted Personal Data,402483,Capital,Capital,Capital,Third Party Payments,505,Other Establishments,5041,Capital,NON INFLUENCIBLE.WELFARE
01/08/2022,2442451,218.50,Redacted Personal Data,402483,Capital,Capital,Capital,Third Party Payments,505,Other Establishments,5041,Capital,NON INFLUENCIBLE.WELFARE
01/08/2022,2442455,3.13,Redacted Personal Data,402364,Capital,Capital,Capital,Third Party Payments,505,Other Establishments,5041,Capital,NON INFLUENCIBLE.WELFARE
01/08/2022,2442455,57.12,Redacted Personal Data,402364,Capital,Capital,Capital,Third Party Payments,505,Other Establishments,5041,Capital,NON INFLUENCIBLE.WELFARE
01/08/2022,2442455,361.00,Redacted Personal Data,402364,Capital,Capital,Capital,Third Party Payments,505,Other Establishments,5041,Capital,NON INFLUENCIBLE.WELFARE
01/08/2022,2442456,516.46,Redacted Personal Data,402329,Capital,Capital,Capital,Third Party Payments,505,Other Establishments,5041,Capital,NON INFLUENCIBLE.INDIVIDUAL
01/08/2022,2442456,1634.00,Redacted Personal Data,402329,Capital,Capital,Capital,Third Party Payments,505,Other Establishments,5041,Capital,NON INFLUENCIBLE.INDIVIDUAL
01/08/2022,2442457,354.30,Redacted Personal Data,396209,Capital,Capital,Capital,Third Party Payments,505,Other Establishments,5041,Capital,NON INFLUENCIBLE.WELFARE
01/08/2022,2442458,3.76,Redacted Personal Data,402212,Capital,Capital,Capital,Third Party Payments,505,Other Establishments,5041,Capital,NON INFLUENCIBLE.WELFARE
01/08/2022,2442458,132.09,Redacted Personal Data,402212,Capital,Capital,Capital,Third Party Payments,505,Other Establishments,5041,Capital,NON INFLUENCIBLE.WELFARE
01/08/2022,2442458,527.25,Redacted Personal Data,402212,Capital,Capital,Capital,Third Party Payments,505,Other Establishments,5041,Capital,NON INFLUENCIBLE.WELFARE
01/08/2022,2442465,-670.60,NORTH TYNESIDE COUNCIL,102767,,,,,,,,,NON INFLUENCIBLE.PUBLIC SECTOR
01/08/2022,2442465,17.34,NORTH TYNESIDE COUNCIL,102767,Capital,Capital,Capital,Capital,Capital,Capital,Capital,Capital,NON INFLUENCIBLE.PUBLIC SECTOR
01/08/2022,2442465,34.37,NORTH TYNESIDE COUNCIL,102767,Capital,Capital,Capital,Capital,Capital,Capital,Capital,Capital,NON INFLUENCIBLE.PUBLIC SECTOR
01/08/2022,2442465,34.68,NORTH TYNESIDE COUNCIL,102767,Capital,Capital,Capital,Capital,Capital,Capital,Capital,Capital,NON INFLUENCIBLE.PUBLIC SECTOR
01/08/2022,2442465,34.68,NORTH TYNESIDE COUNCIL,102767,Capital,Capital,Capital,Capital,Capital,Capital,Capital,Capital,NON INFLUENCIBLE.PUBLIC SECTOR
01/08/2022,2442465,39.78,NORTH TYNESIDE COUNCIL,102767,Capital,Capital,Capital,Third Party Payments,505,Private Contractors,5042,Capital,NON INFLUENCIBLE.PUBLIC SECTOR
01/08/2022,2442465,39.78,NORTH TYNESIDE COUNCIL,102767,Capital,Capital,Capital,Third Party Payments,505,Private Contractors,5042,Capital,NON INFLUENCIBLE.PUBLIC SECTOR
01/08/2022,2442465,52.02,NORTH TYNESIDE COUNCIL,102767,Capital,Capital,Capital,Capital,Capital,Capital,Capital,Capital,NON INFLUENCIBLE.PUBLIC SECTOR
01/08/2022,2442465,67.06,NORTH TYNESIDE COUNCIL,102767,Capital,Capital,Capital,Capital,Capital,Capital,Capital,Capital,NON INFLUENCIBLE.PUBLIC SECTOR
01/08/2022,2442465,67.06,NORTH TYNESIDE COUNCIL,102767,Capital,Capital,Capital,Capital,Capital,Capital,Capital,Capital,NON INFLUENCIBLE.PUBLIC SECTOR
01/08/2022,2442465,86.70,NORTH TYNESIDE COUNCIL,102767,Capital,Capital,Capital,Capital,Capital,Capital,Capital,Capital,NON INFLUENCIBLE.PUBLIC SECTOR
01/08/2022,2442465,97.72,NORTH TYNESIDE COUNCIL,102767,Capital,Capital,Capital,Capital,Capital,Capital,Capital,Capital,NON INFLUENCIBLE.PUBLIC SECTOR
01/08/2022,2442465,97.72,NORTH TYNESIDE COUNCIL,102767,Capital,Capital,Capital,Capital,Capital,Capital,Capital,Capital,NON INFLUENCIBLE.PUBLIC SECTOR
01/08/2022,2442465,97.72,NORTH TYNESIDE COUNCIL,102767,Capital,Capital,Capital,Capital,Capital,Capital,Capital,Capital,NON INFLUENCIBLE.PUBLIC SECTOR
01/08/2022,2442465,97.72,NORTH TYNESIDE COUNCIL,102767,Capital,Capital,Capital,Capital,Capital,Capital,Capital,Capital,NON INFLUENCIBLE.PUBLIC SECTOR
01/08/2022,2442465,97.72,NORTH TYNESIDE COUNCIL,102767,Capital,Capital,Capital,Capital,Capital,Capital,Capital,Capital,NON INFLUENCIBLE.PUBLIC SECTOR
01/08/2022,2442465,97.72,NORTH TYNESIDE COUNCIL,102767,Capital,Capital,Capital,Capital,Capital,Capital,Capital,Capital,NON INFLUENCIBLE.PUBLIC SECTOR
01/08/2022,2442465,97.72,NORTH TYNESIDE COUNCIL,102767,Capital,Capital,Capital,Capital,Capital,Capital,Capital,Capital,NON INFLUENCIBLE.PUBLIC SECTOR
01/08/2022,2442465,114.96,NORTH TYNESIDE COUNCIL,102767,Capital,Capital,Capital,Capital,Capital,Capital,Capital,Capital,NON INFLUENCIBLE.PUBLIC SECTOR
01/08/2022,2442465,114.96,NORTH TYNESIDE COUNCIL,102767,Capital,Capital,Capital,Capital,Capital,Capital,Capital,Capital,NON INFLUENCIBLE.PUBLIC SECTOR
01/08/2022,2442465,119.40,NORTH TYNESIDE COUNCIL,102767,Capital,Capital,Capital,Third Party Payments,505,Private Contractors,5042,Capital,NON INFLUENCIBLE.PUBLIC SECTOR
01/08/2022,2442465,119.40,NORTH TYNESIDE COUNCIL,102767,Capital,Capital,Capital,Third Party Payments,505,Private Contractors,5042,Capital,NON INFLUENCIBLE.PUBLIC SECTOR
01/08/2022,2442465,121.38,NORTH TYNESIDE COUNCIL,102767,Capital,Capital,Capital,Capital,Capital,Capital,Capital,Capital,NON INFLUENCIBLE.PUBLIC SECTOR
01/08/2022,2442465,121.38,NORTH TYNESIDE COUNCIL,102767,Capital,Capital,Capital,Capital,Capital,Capital,Capital,Capital,NON INFLUENCIBLE.PUBLIC SECTOR
01/08/2022,2442465,121.38,NORTH TYNESIDE COUNCIL,102767,Capital,Capital,Capital,Capital,Capital,Capital,Capital,Capital,NON INFLUENCIBLE.PUBLIC SECTOR
01/08/2022,2442465,121.38,NORTH TYNESIDE COUNCIL,102767,Capital,Capital,Capital,Capital,Capital,Capital,Capital,Capital,NON INFLUENCIBLE.PUBLIC SECTOR
01/08/2022,2442465,134.12,NORTH TYNESIDE COUNCIL,102767,Capital,Capital,Capital,Capital,Capital,Capital,Capital,Capital,NON INFLUENCIBLE.PUBLIC SECTOR
01/08/2022,2442465,134.12,NORTH TYNESIDE COUNCIL,102767,Capital,Capital,Capital,Capital,Capital,Capital,Capital,Capital,NON INFLUENCIBLE.PUBLIC SECTOR
01/08/2022,2442465,138.72,NORTH TYNESIDE COUNCIL,102767,Capital,Capital,Capital,Third Party Payments,505,Private Contractors,5042,Capital,NON INFLUENCIBLE.PUBLIC SECTOR
01/08/2022,2442465,201.18,NORTH TYNESIDE COUNCIL,102767,Capital,Capital,Capital,Capital,Capital,Capital,Capital,Capital,NON INFLUENCIBLE.PUBLIC SECTOR
01/08/2022,2442465,201.18,NORTH TYNESIDE COUNCIL,102767,Capital,Capital,Capital,Capital,Capital,Capital,Capital,Capital,NON INFLUENCIBLE.PUBLIC SECTOR
01/08/2022,2442465,201.18,NORTH TYNESIDE COUNCIL,102767,Capital,Capital,Capital,Capital,Capital,Capital,Capital,Capital,NON INFLUENCIBLE.PUBLIC SECTOR
01/08/2022,2442465,201.18,NORTH TYNESIDE COUNCIL,102767,Capital,Capital,Capital,Capital,Capital,Capital,Capital,Capital,NON INFLUENCIBLE.PUBLIC SECTOR
01/08/2022,2442465,201.18,NORTH TYNESIDE COUNCIL,102767,Capital,Capital,Capital,Capital,Capital,Capital,Capital,Capital,NON INFLUENCIBLE.PUBLIC SECTOR
01/08/2022,2442465,201.18,NORTH TYNESIDE COUNCIL,102767,Capital,Capital,Capital,Capital,Capital,Capital,Capital,Capital,NON INFLUENCIBLE.PUBLIC SECTOR
01/08/2022,2442465,268.24,NORTH TYNESIDE COUNCIL,102767,Capital,Capital,Capital,Capital,Capital,Capital,Capital,Capital,NON INFLUENCIBLE.PUBLIC SECTOR
01/08/2022,2442465,268.24,NORTH TYNESIDE COUNCIL,102767,Capital,Capital,Capital,Capital,Capital,Capital,Capital,Capital,NON INFLUENCIBLE.PUBLIC SECTOR
01/08/2022,2442465,268.24,NORTH TYNESIDE COUNCIL,102767,Capital,Capital,Capital,Capital,Capital,Capital,Capital,Capital,NON INFLUENCIBLE.PUBLIC SECTOR
01/08/2022,2442465,443.10,NORTH TYNESIDE COUNCIL,102767,Capital,Capital,Capital,Capital,Capital,Capital,Capital,Capital,NON INFLUENCIBLE.PUBLIC SECTOR
01/08/2022,2442465,1089.94,NORTH TYNESIDE COUNCIL,102767,Capital,Capital,Capital,Capital,Capital,Capital,Capital,Capital,NON INFLUENCIBLE.PUBLIC SECTOR
01/08/2022,2442470,654.60,BURLINGTON CARE LTD,401782,Capital,Capital,Capital,Third Party Payments,505,Private Contractors,5042,Capital,SOCIAL CARE.NURSING & RESIDENTIAL CARE
01/08/2022,2442473,240.46,INTERACTIVE DEVELOPMENT SUPPORT LIMITED,383543,Capital,Capital,Capital,Third Party Payments,505,Private Contractors,5042,Capital,SOCIAL CARE.CARE SERVICES
01/08/2022,2442473,240.46,INTERACTIVE DEVELOPMENT SUPPORT LIMITED,383543,Capital,Capital,Capital,Third Party Payments,505,Private Contractors,5042,Capital,SOCIAL CARE.CARE SERVICES
01/08/2022,2442473,240.46,INTERACTIVE DEVELOPMENT SUPPORT LIMITED,383543,Capital,Capital,Capital,Third Party Payments,505,Private Contractors,5042,Capital,SOCIAL CARE.CARE SERVICES
01/08/2022,2442473,321.96,INTERACTIVE DEVELOPMENT SUPPORT LIMITED,383543,Capital,Capital,Capital,Third Party Payments,505,Private Contractors,5042,Capital,SOCIAL CARE.CARE SERVICES
01/08/2022,2442473,327.80,INTERACTIVE DEVELOPMENT SUPPORT LIMITED,383543,Capital,Capital,Capital,Third Party Payments,505,Other Establishments,5041,Capital,SOCIAL CARE.CARE SERVICES
01/08/2022,2442473,360.68,INTERACTIVE DEVELOPMENT SUPPORT LIMITED,383543,Capital,Capital,Capital,Third Party Payments,505,Private Contractors,5042,Capital,SOCIAL CARE.CARE SERVICES
01/08/2022,2442473,360.68,INTERACTIVE DEVELOPMENT SUPPORT LIMITED,383543,Capital,Capital,Capital,Third Party Payments,505,Private Contractors,5042,Capital,SOCIAL CARE.CARE SERVICES
01/08/2022,2442473,382.50,INTERACTIVE DEVELOPMENT SUPPORT LIMITED,383543,Capital,Capital,Capital,Third Party Payments,505,Private Contractors,5042,Capital,SOCIAL CARE.CARE SERVICES
01/08/2022,2442473,438.54,INTERACTIVE DEVELOPMENT SUPPORT LIMITED,383543,Capital,Capital,Capital,Third Party Payments,505,Private Contractors,5042,Capital,SOCIAL CARE.CARE SERVICES
01/08/2022,2442473,438.54,INTERACTIVE DEVELOPMENT SUPPORT LIMITED,383543,Capital,Capital,Capital,Third Party Payments,505,Private Contractors,5042,Capital,SOCIAL CARE.CARE SERVICES
01/08/2022,2442473,721.34,INTERACTIVE DEVELOPMENT SUPPORT LIMITED,383543,Capital,Capital,Capital,Third Party Payments,505,Private Contractors,5042,Capital,SOCIAL CARE.CARE SERVICES
01/08/2022,2442473,816.37,INTERACTIVE DEVELOPMENT SUPPORT LIMITED,383543,Capital,Capital,Capital,Third Party Payments,505,Private Contractors,5042,Capital,SOCIAL CARE.CARE SERVICES
01/08/2022,2442473,816.37,INTERACTIVE DEVELOPMENT SUPPORT LIMITED,383543,Capital,Capital,Capital,Third Party Payments,505,Private Contractors,5042,Capital,SOCIAL CARE.CARE SERVICES
01/08/2022,2442473,1691.07,INTERACTIVE DEVELOPMENT SUPPORT LIMITED,383543,Capital,Capital,Capital,Third Party Payments,505,Private Contractors,5042,Capital,SOCIAL CARE.CARE SERVICES
01/08/2022,2442475,680.00,SUPPORTED LIVING SERVICES LTD,400483,Capital,Capital,Capital,Third Party Payments,505,Private Contractors,5042,Capital,SOCIAL CARE.INDEPENDENT SUPPORTED LIVING
01/08/2022,2442478,3.13,Redacted Personal Data,399386,Capital,Capital,Capital,Third Party Payments,505,Other Establishments,5041,Capital,NON INFLUENCIBLE.INDIVIDUAL
01/08/2022,2442478,47.16,Redacted Personal Data,399386,Capital,Capital,Capital,Third Party Payments,505,Other Establishments,5041,Capital,NON INFLUENCIBLE.INDIVIDUAL
01/08/2022,2442478,1172.71,Redacted Personal Data,399386,Capital,Capital,Capital,Third Party Payments,505,Other Establishments,5041,Capital,NON INFLUENCIBLE.INDIVIDUAL
01/08/2022,2442479,1606.07,Redacted Personal Data,397289,Capital,Capital,Capital,Third Party Payments,505,Other Establishments,5041,Capital,NON INFLUENCIBLE.WELFARE
01/08/2022,2442480,688.08,NEWCASTLE HOME CARE ASSOCIATES LTD,382474,Capital,Capital,Capital,Third Party Payments,505,Private Contractors,5042,Capital,SOCIAL CARE.HOMECARE SERVICES
01/08/2022,2442481,500.50,Redacted Personal Data,376571,Capital,Capital,Capital,Third Party Payments,505,Other Establishments,5041,Capital,NON INFLUENCIBLE.NON INFLUENCIBLE
01/08/2022,2442482,719.81,SECO SUPPORT LIMITED,400384,Capital,Capital,Capital,Third Party Payments,505,Private Contractors,5042,Capital,SOCIAL CARE.CHILDCARE SERVICES
01/08/2022,2442482,3072.48,SECO SUPPORT LIMITED,400384,Capital,Capital,Capital,Third Party Payments,505,Private Contractors,5042,Capital,SOCIAL CARE.CHILDCARE SERVICES
01/08/2022,2442482,5530.47,SECO SUPPORT LIMITED,400384,Capital,Capital,Capital,Third Party Payments,505,Private Contractors,5042,Capital,SOCIAL CARE.CHILDCARE SERVICES
01/08/2022,2442487,58.84,Redacted Personal Data,396166,Capital,Capital,Capital,Third Party Payments,505,Other Establishments,5041,Capital,NON INFLUENCIBLE.INDIVIDUAL
01/08/2022,2442487,572.10,Redacted Personal Data,396166,Capital,Capital,Capital,Third Party Payments,505,Other Establishments,5041,Capital,NON INFLUENCIBLE.INDIVIDUAL
01/08/2022,2442491,319.74,Redacted Personal Data,400930,Capital,Capital,Capital,Third Party Payments,505,Other Establishments,5041,Capital,SOCIAL CARE.INDEPENDENT SUPPORTED LIVING
01/08/2022,2442492,209.19,TYNE GRANGE HEALTH CARE LTD,400916,Capital,Capital,Capital,Third Party Payments,505,Other Establishments,5041,Capital,SOCIAL CARE.NURSING & RESIDENTIAL CARE
01/08/2022,2442492,3057.75,TYNE GRANGE HEALTH CARE LTD,400916,Capital,Capital,Capital,Third Party Payments,505,Private Contractors,5042,Capital,SOCIAL CARE.NURSING & RESIDENTIAL CARE
01/08/2022,2442492,3456.02,TYNE GRANGE HEALTH CARE LTD,400916,Capital,Capital,Capital,Third Party Payments,505,Other Establishments,5041,Capital,SOCIAL CARE.NURSING & RESIDENTIAL CARE
01/08/2022,2442497,3.13,Redacted Personal Data,395630,Capital,Capital,Capital,Third Party Payments,505,Other Establishments,5041,Capital,NON INFLUENCIBLE.INDIVIDUAL
01/08/2022,2442497,121.16,Redacted Personal Data,395630,Capital,Capital,Capital,Third Party Payments,505,Other Establishments,5041,Capital,NON INFLUENCIBLE.INDIVIDUAL
01/08/2022,2442497,494.00,Redacted Personal Data,395630,Capital,Capital,Capital,Third Party Payments,505,Other Establishments,5041,Capital,NON INFLUENCIBLE.INDIVIDUAL
01/08/2022,2442498,36.25,Redacted Personal Data,403322,Capital,Capital,Capital,Third Party Payments,505,Other Establishments,5041,Capital,NON INFLUENCIBLE.WELFARE
01/08/2022,2442498,1459.88,Redacted Personal Data,403322,Capital,Capital,Capital,Third Party Payments,505,Other Establishments,5041,Capital,NON INFLUENCIBLE.WELFARE
01/08/2022,2442498,1808.63,Redacted Personal Data,403322,Capital,Capital,Capital,Third Party Payments,505,Other Establishments,5041,Capital,NON INFLUENCIBLE.WELFARE
01/08/2022,2442498,3420.00,Redacted Personal Data,403322,Capital,Capital,Capital,Third Party Payments,505,Other Establishments,5041,Capital,NON INFLUENCIBLE.WELFARE
01/08/2022,2442499,354.30,Redacted Personal Data,403181,Capital,Capital,Capital,Third Party Payments,505,Other Establishments,5041,Capital,SOCIAL CARE.ADULT SUPPORT SERVICES
01/08/2022,2442502,278.85,Redacted Personal Data,402942,Capital,Capital,Capital,Third Party Payments,505,Other Establishments,5041,Capital,NON INFLUENCIBLE.WELFARE
01/08/2022,2442503,304.96,Redacted Personal Data,402936,Capital,Capital,Capital,Third Party Payments,505,Other Establishments,5041,Capital,SOCIAL CARE.ADULT SUPPORT SERVICES
01/08/2022,2442503,304.96,Redacted Personal Data,402936,Capital,Capital,Capital,Third Party Payments,505,Other Establishments,5041,Capital,SOCIAL CARE.ADULT SUPPORT SERVICES
01/08/2022,2442507,263.76,Redacted Personal Data,400420,Capital,Capital,Capital,Third Party Payments,505,Other Establishments,5041,Capital,NON INFLUENCIBLE.INDIVIDUAL
01/08/2022,2442508,3.75,Redacted Personal Data,400411,Capital,Capital,Capital,Third Party Payments,505,Other Establishments,5041,Capital,NON INFLUENCIBLE.INDIVIDUAL
01/08/2022,2442508,498.75,Redacted Personal Data,400411,Capital,Capital,Capital,Third Party Payments,505,Other Establishments,5041,Capital,NON INFLUENCIBLE.INDIVIDUAL
01/08/2022,2442513,537.92,Redacted Personal Data,387387,Capital,Capital,Capital,Third Party Payments,505,Other Establishments,5041,Capital,NON INFLUENCIBLE.INDIVIDUAL
01/08/2022,2442515,146.37,Redacted Personal Data,395872,Capital,Capital,Capital,Third Party Payments,505,Other Establishments,5041,Capital,NON INFLUENCIBLE.INDIVIDUAL
01/08/2022,2442515,571.95,Redacted Personal Data,395872,Capital,Capital,Capital,Third Party Payments,505,Other Establishments,5041,Capital,NON INFLUENCIBLE.INDIVIDUAL
01/08/2022,2442515,1956.58,Redacted Personal Data,395872,Capital,Capital,Capital,Third Party Payments,505,Other Establishments,5041,Capital,NON INFLUENCIBLE.INDIVIDUAL
01/08/2022,2442518,379.00,Redacted Personal Data,395866,Capital,Capital,Capital,Third Party Payments,505,Other Establishments,5041,Capital,NON INFLUENCIBLE.INDIVIDUAL
01/08/2022,2442520,164.34,Redacted Personal Data,389532,Capital,Capital,Capital,Third Party Payments,505,Other Establishments,5041,Capital,NON INFLUENCIBLE.INDIVIDUAL
01/08/2022,2442520,645.19,Redacted Personal Data,389532,Capital,Capital,Capital,Third Party Payments,505,Other Establishments,5041,Capital,NON INFLUENCIBLE.INDIVIDUAL
01/08/2022,2442523,367.50,Redacted Personal Data,394993,Capital,Capital,Capital,Third Party Payments,505,Other Establishments,5041,Capital,NON INFLUENCIBLE.INDIVIDUAL
01/08/2022,2442524,639.08,ROSEBERRY CARE CENTRES � SOUTH QUAY,399298,Capital,Capital,Capital,Third Party Payments,505,Private Contractors,5042,Capital,SOCIAL CARE.NURSING & RESIDENTIAL CARE
01/08/2022,2442526,3.13,Redacted Personal Data,379708,Capital,Capital,Capital,Third Party Payments,505,Other Establishments,5041,Capital,NON INFLUENCIBLE.INDIVIDUAL
01/08/2022,2442526,17.50,Redacted Personal Data,379708,Capital,Capital,Capital,Third Party Payments,505,Other Establishments,5041,Capital,NON INFLUENCIBLE.INDIVIDUAL
01/08/2022,2442526,559.57,Redacted Personal Data,379708,Capital,Capital,Capital,Third Party Payments,505,Other Establishments,5041,Capital,NON INFLUENCIBLE.INDIVIDUAL
01/08/2022,2442527,-278.16,AMICURA LTD,399160,,,,,,,,,SOCIAL CARE.NURSING & RESIDENTIAL CARE
01/08/2022,2442527,-89.65,AMICURA LTD,399160,,,,,,,,,SOCIAL CARE.NURSING & RESIDENTIAL CARE
01/08/2022,2442527,-39.50,AMICURA LTD,399160,,,,,,,,,SOCIAL CARE.NURSING & RESIDENTIAL CARE
01/08/2022,2442527,92.16,AMICURA LTD,399160,Capital,Capital,Capital,Third Party Payments,505,Other Establishments,5041,Capital,SOCIAL CARE.NURSING & RESIDENTIAL CARE
01/08/2022,2442527,92.16,AMICURA LTD,399160,Capital,Capital,Capital,Third Party Payments,505,Other Establishments,5041,Capital,SOCIAL CARE.NURSING & RESIDENTIAL CARE
01/08/2022,2442527,209.19,AMICURA LTD,399160,Capital,Capital,Capital,Third Party Payments,505,Other Establishments,5041,Capital,SOCIAL CARE.NURSING & RESIDENTIAL CARE
01/08/2022,2442527,209.19,AMICURA LTD,399160,Capital,Capital,Capital,Third Party Payments,505,Other Establishments,5041,Capital,SOCIAL CARE.NURSING & RESIDENTIAL CARE
01/08/2022,2442527,209.19,AMICURA LTD,399160,Capital,Capital,Capital,Third Party Payments,505,Other Establishments,5041,Capital,SOCIAL CARE.NURSING & RESIDENTIAL CARE
01/08/2022,2442527,209.19,AMICURA LTD,399160,Capital,Capital,Capital,Third Party Payments,505,Other Establishments,5041,Capital,SOCIAL CARE.NURSING & RESIDENTIAL CARE
01/08/2022,2442527,209.19,AMICURA LTD,399160,Capital,Capital,Capital,Third Party Payments,505,Other Establishments,5041,Capital,SOCIAL CARE.NURSING & RESIDENTIAL CARE
01/08/2022,2442527,209.19,AMICURA LTD,399160,Capital,Capital,Capital,Third Party Payments,505,Other Establishments,5041,Capital,SOCIAL CARE.NURSING & RESIDENTIAL CARE
01/08/2022,2442527,209.19,AMICURA LTD,399160,Capital,Capital,Capital,Third Party Payments,505,Other Establishments,5041,Capital,SOCIAL CARE.NURSING & RESIDENTIAL CARE
01/08/2022,2442527,209.19,AMICURA LTD,399160,Capital,Capital,Capital,Third Party Payments,505,Other Establishments,5041,Capital,SOCIAL CARE.NURSING & RESIDENTIAL CARE
01/08/2022,2442527,209.19,AMICURA LTD,399160,Capital,Capital,Capital,Third Party Payments,505,Other Establishments,5041,Capital,SOCIAL CARE.NURSING & RESIDENTIAL CARE
01/08/2022,2442527,209.19,AMICURA LTD,399160,Capital,Capital,Capital,Third Party Payments,505,Other Establishments,5041,Capital,SOCIAL CARE.NURSING & RESIDENTIAL CARE
01/08/2022,2442527,209.19,AMICURA LTD,399160,Capital,Capital,Capital,Third Party Payments,505,Other Establishments,5041,Capital,SOCIAL CARE.NURSING & RESIDENTIAL CARE
01/08/2022,2442527,649.05,AMICURA LTD,399160,Capital,Capital,Capital,Third Party Payments,505,Private Contractors,5042,Capital,SOCIAL CARE.NURSING & RESIDENTIAL CARE
01/08/2022,2442527,649.05,AMICURA LTD,399160,Capital,Capital,Capital,Third Party Payments,505,Private Contractors,5042,Capital,SOCIAL CARE.NURSING & RESIDENTIAL CARE
01/08/2022,2442527,649.05,AMICURA LTD,399160,Capital,Capital,Capital,Third Party Payments,505,Private Contractors,5042,Capital,SOCIAL CARE.NURSING & RESIDENTIAL CARE
01/08/2022,2442527,649.05,AMICURA LTD,399160,Capital,Capital,Capital,Third Party Payments,505,Private Contractors,5042,Capital,SOCIAL CARE.NURSING & RESIDENTIAL CARE
01/08/2022,2442527,649.05,AMICURA LTD,399160,Capital,Capital,Capital,Third Party Payments,505,Private Contractors,5042,Capital,SOCIAL CARE.NURSING & RESIDENTIAL CARE
01/08/2022,2442527,649.05,AMICURA LTD,399160,Capital,Capital,Capital,Third Party Payments,505,Private Contractors,5042,Capital,SOCIAL CARE.NURSING & RESIDENTIAL CARE
01/08/2022,2442527,649.05,AMICURA LTD,399160,Capital,Capital,Capital,Third Party Payments,505,Private Contractors,5042,Capital,SOCIAL CARE.NURSING & RESIDENTIAL CARE
01/08/2022,2442527,649.05,AMICURA LTD,399160,Capital,Capital,Capital,Third Party Payments,505,Private Contractors,5042,Capital,SOCIAL CARE.NURSING & RESIDENTIAL CARE
01/08/2022,2442527,649.05,AMICURA LTD,399160,Capital,Capital,Capital,Third Party Payments,505,Private Contractors,5042,Capital,SOCIAL CARE.NURSING & RESIDENTIAL CARE
01/08/2022,2442527,649.05,AMICURA LTD,399160,Capital,Capital,Capital,Third Party Payments,505,Private Contractors,5042,Capital,SOCIAL CARE.NURSING & RESIDENTIAL CARE
01/08/2022,2442527,649.05,AMICURA LTD,399160,Capital,Capital,Capital,Third Party Payments,505,Private Contractors,5042,Capital,SOCIAL CARE.NURSING & RESIDENTIAL CARE
01/08/2022,2442527,649.05,AMICURA LTD,399160,Capital,Capital,Capital,Third Party Payments,505,Private Contractors,5042,Capital,SOCIAL CARE.NURSING & RESIDENTIAL CARE
01/08/2022,2442527,649.05,AMICURA LTD,399160,Capital,Capital,Capital,Third Party Payments,505,Private Contractors,5042,Capital,SOCIAL CARE.NURSING & RESIDENTIAL CARE
01/08/2022,2442527,649.05,AMICURA LTD,399160,Capital,Capital,Capital,Third Party Payments,505,Private Contractors,5042,Capital,SOCIAL CARE.NURSING & RESIDENTIAL CARE
01/08/2022,2442527,649.05,AMICURA LTD,399160,Capital,Capital,Capital,Third Party Payments,505,Private Contractors,5042,Capital,SOCIAL CARE.NURSING & RESIDENTIAL CARE
01/08/2022,2442527,649.05,AMICURA LTD,399160,Capital,Capital,Capital,Third Party Payments,505,Other Establishments,5041,Capital,SOCIAL CARE.NURSING & RESIDENTIAL CARE
01/08/2022,2442527,649.05,AMICURA LTD,399160,Capital,Capital,Capital,Third Party Payments,505,Other Establishments,5041,Capital,SOCIAL CARE.NURSING & RESIDENTIAL CARE
01/08/2022,2442527,649.05,AMICURA LTD,399160,Capital,Capital,Capital,Third Party Payments,505,Private Contractors,5042,Capital,SOCIAL CARE.NURSING & RESIDENTIAL CARE
01/08/2022,2442527,649.05,AMICURA LTD,399160,Capital,Capital,Capital,Third Party Payments,505,Private Contractors,5042,Capital,SOCIAL CARE.NURSING & RESIDENTIAL CARE
01/08/2022,2442527,686.88,AMICURA LTD,399160,Capital,Capital,Capital,Third Party Payments,505,Private Contractors,5042,Capital,SOCIAL CARE.NURSING & RESIDENTIAL CARE
01/08/2022,2442527,686.88,AMICURA LTD,399160,Capital,Capital,Capital,Third Party Payments,505,Private Contractors,5042,Capital,SOCIAL CARE.NURSING & RESIDENTIAL CARE
01/08/2022,2442527,686.88,AMICURA LTD,399160,Capital,Capital,Capital,Third Party Payments,505,Private Contractors,5042,Capital,SOCIAL CARE.NURSING & RESIDENTIAL CARE
01/08/2022,2442527,686.88,AMICURA LTD,399160,Capital,Capital,Capital,Third Party Payments,505,Private Contractors,5042,Capital,SOCIAL CARE.NURSING & RESIDENTIAL CARE
01/08/2022,2442527,686.88,AMICURA LTD,399160,Capital,Capital,Capital,Third Party Payments,505,Private Contractors,5042,Capital,SOCIAL CARE.NURSING & RESIDENTIAL CARE
01/08/2022,2442527,686.88,AMICURA LTD,399160,Capital,Capital,Capital,Third Party Payments,505,Private Contractors,5042,Capital,SOCIAL CARE.NURSING & RESIDENTIAL CARE
01/08/2022,2442527,686.88,AMICURA LTD,399160,Capital,Capital,Capital,Third Party Payments,505,Private Contractors,5042,Capital,SOCIAL CARE.NURSING & RESIDENTIAL CARE
01/08/2022,2442527,686.88,AMICURA LTD,399160,Capital,Capital,Capital,Third Party Payments,505,Private Contractors,5042,Capital,SOCIAL CARE.NURSING & RESIDENTIAL CARE
01/08/2022,2442528,511.70,Redacted Personal Data,399052,Capital,Capital,Capital,Third Party Payments,505,Other Establishments,5041,Capital,NON INFLUENCIBLE.INDIVIDUAL
01/08/2022,2442529,38.00,Redacted Personal Data,398988,Capital,Capital,Capital,Third Party Payments,505,Other Establishments,5041,Capital,NON INFLUENCIBLE.INDIVIDUAL
01/08/2022,2442529,1471.72,Redacted Personal Data,398988,Capital,Capital,Capital,Third Party Payments,505,Other Establishments,5041,Capital,NON INFLUENCIBLE.INDIVIDUAL
01/08/2022,2442531,319.74,Redacted Personal Data,367261,Capital,Capital,Capital,Third Party Payments,505,Other Establishments,5041,Capital,NON INFLUENCIBLE.WELFARE
01/08/2022,2442538,-1381.08,ST MARTINS CARE LIMITED,383318,,,,,,,,,SOCIAL CARE.NURSING & RESIDENTIAL CARE
01/08/2022,2442538,394.59,ST MARTINS CARE LIMITED,383318,Capital,Capital,Capital,Third Party Payments,505,Private Contractors,5042,Capital,SOCIAL CARE.NURSING & RESIDENTIAL CARE
01/08/2022,2442538,417.08,ST MARTINS CARE LIMITED,383318,Capital,Capital,Capital,Third Party Payments,505,Private Contractors,5042,Capital,SOCIAL CARE.NURSING & RESIDENTIAL CARE
01/08/2022,2442538,690.54,ST MARTINS CARE LIMITED,383318,Capital,Capital,Capital,Third Party Payments,505,Private Contractors,5042,Capital,SOCIAL CARE.NURSING & RESIDENTIAL CARE
01/08/2022,2442538,690.54,ST MARTINS CARE LIMITED,383318,Capital,Capital,Capital,Third Party Payments,505,Private Contractors,5042,Capital,SOCIAL CARE.NURSING & RESIDENTIAL CARE
01/08/2022,2442538,690.54,ST MARTINS CARE LIMITED,383318,Capital,Capital,Capital,Third Party Payments,505,Private Contractors,5042,Capital,SOCIAL CARE.NURSING & RESIDENTIAL CARE
01/08/2022,2442538,690.54,ST MARTINS CARE LIMITED,383318,Capital,Capital,Capital,Third Party Payments,505,Private Contractors,5042,Capital,SOCIAL CARE.NURSING & RESIDENTIAL CARE
01/08/2022,2442538,690.54,ST MARTINS CARE LIMITED,383318,Capital,Capital,Capital,Third Party Payments,505,Private Contractors,5042,Capital,SOCIAL CARE.NURSING & RESIDENTIAL CARE
01/08/2022,2442538,690.54,ST MARTINS CARE LIMITED,383318,Capital,Capital,Capital,Third Party Payments,505,Private Contractors,5042,Capital,SOCIAL CARE.NURSING & RESIDENTIAL CARE
01/08/2022,2442538,690.54,ST MARTINS CARE LIMITED,383318,Capital,Capital,Capital,Third Party Payments,505,Private Contractors,5042,Capital,SOCIAL CARE.NURSING & RESIDENTIAL CARE
01/08/2022,2442538,690.54,ST MARTINS CARE LIMITED,383318,Capital,Capital,Capital,Third Party Payments,505,Private Contractors,5042,Capital,SOCIAL CARE.NURSING & RESIDENTIAL CARE
01/08/2022,2442538,690.54,ST MARTINS CARE LIMITED,383318,Capital,Capital,Capital,Third Party Payments,505,Private Contractors,5042,Capital,SOCIAL CARE.NURSING & RESIDENTIAL CARE
01/08/2022,2442538,690.54,ST MARTINS CARE LIMITED,383318,Capital,Capital,Capital,Third Party Payments,505,Private Contractors,5042,Capital,SOCIAL CARE.NURSING & RESIDENTIAL CARE
01/08/2022,2442538,690.54,ST MARTINS CARE LIMITED,383318,Capital,Capital,Capital,Third Party Payments,505,Private Contractors,5042,Capital,SOCIAL CARE.NURSING & RESIDENTIAL CARE
01/08/2022,2442538,690.54,ST MARTINS CARE LIMITED,383318,Capital,Capital,Capital,Third Party Payments,505,Private Contractors,5042,Capital,SOCIAL CARE.NURSING & RESIDENTIAL CARE
01/08/2022,2442538,690.54,ST MARTINS CARE LIMITED,383318,Capital,Capital,Capital,Third Party Payments,505,Private Contractors,5042,Capital,SOCIAL CARE.NURSING & RESIDENTIAL CARE
01/08/2022,2442538,690.54,ST MARTINS CARE LIMITED,383318,Capital,Capital,Capital,Third Party Payments,505,Private Contractors,5042,Capital,SOCIAL CARE.NURSING & RESIDENTIAL CARE
01/08/2022,2442538,690.54,ST MARTINS CARE LIMITED,383318,Capital,Capital,Capital,Third Party Payments,505,Private Contractors,5042,Capital,SOCIAL CARE.NURSING & RESIDENTIAL CARE
01/08/2022,2442538,690.54,ST MARTINS CARE LIMITED,383318,Capital,Capital,Capital,Third Party Payments,505,Private Contractors,5042,Capital,SOCIAL CARE.NURSING & RESIDENTIAL CARE
01/08/2022,2442538,690.54,ST MARTINS CARE LIMITED,383318,Capital,Capital,Capital,Third Party Payments,505,Private Contractors,5042,Capital,SOCIAL CARE.NURSING & RESIDENTIAL CARE
01/08/2022,2442538,690.54,ST MARTINS CARE LIMITED,383318,Capital,Capital,Capital,Third Party Payments,505,Private Contractors,5042,Capital,SOCIAL CARE.NURSING & RESIDENTIAL CARE
01/08/2022,2442538,690.54,ST MARTINS CARE LIMITED,383318,Capital,Capital,Capital,Third Party Payments,505,Private Contractors,5042,Capital,SOCIAL CARE.NURSING & RESIDENTIAL CARE
01/08/2022,2442538,690.54,ST MARTINS CARE LIMITED,383318,Capital,Capital,Capital,Third Party Payments,505,Private Contractors,5042,Capital,SOCIAL CARE.NURSING & RESIDENTIAL CARE
01/08/2022,2442538,690.54,ST MARTINS CARE LIMITED,383318,Capital,Capital,Capital,Third Party Payments,505,Private Contractors,5042,Capital,SOCIAL CARE.NURSING & RESIDENTIAL CARE
01/08/2022,2442538,690.54,ST MARTINS CARE LIMITED,383318,Capital,Capital,Capital,Third Party Payments,505,Private Contractors,5042,Capital,SOCIAL CARE.NURSING & RESIDENTIAL CARE
01/08/2022,2442538,690.54,ST MARTINS CARE LIMITED,383318,Capital,Capital,Capital,Third Party Payments,505,Private Contractors,5042,Capital,SOCIAL CARE.NURSING & RESIDENTIAL CARE
01/08/2022,2442538,729.91,ST MARTINS CARE LIMITED,383318,Capital,Capital,Capital,Third Party Payments,505,Private Contractors,5042,Capital,SOCIAL CARE.NURSING & RESIDENTIAL CARE
01/08/2022,2442538,729.91,ST MARTINS CARE LIMITED,383318,Capital,Capital,Capital,Third Party Payments,505,Private Contractors,5042,Capital,SOCIAL CARE.NURSING & RESIDENTIAL CARE
01/08/2022,2442538,729.91,ST MARTINS CARE LIMITED,383318,Capital,Capital,Capital,Third Party Payments,505,Private Contractors,5042,Capital,SOCIAL CARE.NURSING & RESIDENTIAL CARE
01/08/2022,2442538,729.91,ST MARTINS CARE LIMITED,383318,Capital,Capital,Capital,Third Party Payments,505,Private Contractors,5042,Capital,SOCIAL CARE.NURSING & RESIDENTIAL CARE
01/08/2022,2442538,729.91,ST MARTINS CARE LIMITED,383318,Capital,Capital,Capital,Third Party Payments,505,Private Contractors,5042,Capital,SOCIAL CARE.NURSING & RESIDENTIAL CARE
01/08/2022,2442538,729.91,ST MARTINS CARE LIMITED,383318,Capital,Capital,Capital,Third Party Payments,505,Private Contractors,5042,Capital,SOCIAL CARE.NURSING & RESIDENTIAL CARE
01/08/2022,2442538,729.91,ST MARTINS CARE LIMITED,383318,Capital,Capital,Capital,Third Party Payments,505,Private Contractors,5042,Capital,SOCIAL CARE.NURSING & RESIDENTIAL CARE
01/08/2022,2442538,729.91,ST MARTINS CARE LIMITED,383318,Capital,Capital,Capital,Third Party Payments,505,Private Contractors,5042,Capital,SOCIAL CARE.NURSING & RESIDENTIAL CARE
01/08/2022,2442538,729.91,ST MARTINS CARE LIMITED,383318,Capital,Capital,Capital,Third Party Payments,505,Private Contractors,5042,Capital,SOCIAL CARE.NURSING & RESIDENTIAL CARE
01/08/2022,2442538,729.91,ST MARTINS CARE LIMITED,383318,Capital,Capital,Capital,Third Party Payments,505,Private Contractors,5042,Capital,SOCIAL CARE.NURSING & RESIDENTIAL CARE
01/08/2022,2442538,729.91,ST MARTINS CARE LIMITED,383318,Capital,Capital,Capital,Third Party Payments,505,Private Contractors,5042,Capital,SOCIAL CARE.NURSING & RESIDENTIAL CARE
01/08/2022,2442538,729.91,ST MARTINS CARE LIMITED,383318,Capital,Capital,Capital,Third Party Payments,505,Private Contractors,5042,Capital,SOCIAL CARE.NURSING & RESIDENTIAL CARE
01/08/2022,2442538,729.91,ST MARTINS CARE LIMITED,383318,Capital,Capital,Capital,Third Party Payments,505,Private Contractors,5042,Capital,SOCIAL CARE.NURSING & RESIDENTIAL CARE
01/08/2022,2442538,729.91,ST MARTINS CARE LIMITED,383318,Capital,Capital,Capital,Third Party Payments,505,Private Contractors,5042,Capital,SOCIAL CARE.NURSING & RESIDENTIAL CARE
01/08/2022,2442538,729.91,ST MARTINS CARE LIMITED,383318,Capital,Capital,Capital,Third Party Payments,505,Private Contractors,5042,Capital,SOCIAL CARE.NURSING & RESIDENTIAL CARE
01/08/2022,2442538,729.91,ST MARTINS CARE LIMITED,383318,Capital,Capital,Capital,Third Party Payments,505,Private Contractors,5042,Capital,SOCIAL CARE.NURSING & RESIDENTIAL CARE
01/08/2022,2442538,1194.05,ST MARTINS CARE LIMITED,383318,Capital,Capital,Capital,Third Party Payments,505,Private Contractors,5042,Capital,SOCIAL CARE.NURSING & RESIDENTIAL CARE
01/08/2022,2442543,690.54,EOTHEN HOMES LTD,276943,Capital,Capital,Capital,Third Party Payments,505,Private Contractors,5042,Capital,SOCIAL CARE.NURSING & RESIDENTIAL CARE
01/08/2022,2442543,690.54,EOTHEN HOMES LTD,276943,Capital,Capital,Capital,Third Party Payments,505,Private Contractors,5042,Capital,SOCIAL CARE.NURSING & RESIDENTIAL CARE
01/08/2022,2442543,690.54,EOTHEN HOMES LTD,276943,Capital,Capital,Capital,Third Party Payments,505,Private Contractors,5042,Capital,SOCIAL CARE.NURSING & RESIDENTIAL CARE
01/08/2022,2442543,690.54,EOTHEN HOMES LTD,276943,Capital,Capital,Capital,Third Party Payments,505,Private Contractors,5042,Capital,SOCIAL CARE.NURSING & RESIDENTIAL CARE
01/08/2022,2442543,690.54,EOTHEN HOMES LTD,276943,Capital,Capital,Capital,Third Party Payments,505,Private Contractors,5042,Capital,SOCIAL CARE.NURSING & RESIDENTIAL CARE
01/08/2022,2442543,724.79,EOTHEN HOMES LTD,276943,Capital,Capital,Capital,Third Party Payments,505,Private Contractors,5042,Capital,SOCIAL CARE.NURSING & RESIDENTIAL CARE
01/08/2022,2442543,729.91,EOTHEN HOMES LTD,276943,Capital,Capital,Capital,Third Party Payments,505,Private Contractors,5042,Capital,SOCIAL CARE.NURSING & RESIDENTIAL CARE
01/08/2022,2442543,729.91,EOTHEN HOMES LTD,276943,Capital,Capital,Capital,Third Party Payments,505,Private Contractors,5042,Capital,SOCIAL CARE.NURSING & RESIDENTIAL CARE
01/08/2022,2442543,729.91,EOTHEN HOMES LTD,276943,Capital,Capital,Capital,Third Party Payments,505,Private Contractors,5042,Capital,SOCIAL CARE.NURSING & RESIDENTIAL CARE
01/08/2022,2442543,729.91,EOTHEN HOMES LTD,276943,Capital,Capital,Capital,Third Party Payments,505,Private Contractors,5042,Capital,SOCIAL CARE.NURSING & RESIDENTIAL CARE
01/08/2022,2442543,729.91,EOTHEN HOMES LTD,276943,Capital,Capital,Capital,Third Party Payments,505,Private Contractors,5042,Capital,SOCIAL CARE.NURSING & RESIDENTIAL CARE
01/08/2022,2442543,729.91,EOTHEN HOMES LTD,276943,Capital,Capital,Capital,Third Party Payments,505,Private Contractors,5042,Capital,SOCIAL CARE.NURSING & RESIDENTIAL CARE
01/08/2022,2442543,729.91,EOTHEN HOMES LTD,276943,Capital,Capital,Capital,Third Party Payments,505,Private Contractors,5042,Capital,SOCIAL CARE.NURSING & RESIDENTIAL CARE
01/08/2022,2442543,729.91,EOTHEN HOMES LTD,276943,Capital,Capital,Capital,Third Party Payments,505,Private Contractors,5042,Capital,SOCIAL CARE.NURSING & RESIDENTIAL CARE
01/08/2022,2442543,729.91,EOTHEN HOMES LTD,276943,Capital,Capital,Capital,Third Party Payments,505,Private Contractors,5042,Capital,SOCIAL CARE.NURSING & RESIDENTIAL CARE
01/08/2022,2442543,729.91,EOTHEN HOMES LTD,276943,Capital,Capital,Capital,Third Party Payments,505,Private Contractors,5042,Capital,SOCIAL CARE.NURSING & RESIDENTIAL CARE
01/08/2022,2442543,729.91,EOTHEN HOMES LTD,276943,Capital,Capital,Capital,Third Party Payments,505,Private Contractors,5042,Capital,SOCIAL CARE.NURSING & RESIDENTIAL CARE
01/08/2022,2442543,729.91,EOTHEN HOMES LTD,276943,Capital,Capital,Capital,Third Party Payments,505,Private Contractors,5042,Capital,SOCIAL CARE.NURSING & RESIDENTIAL CARE
01/08/2022,2442543,729.91,EOTHEN HOMES LTD,276943,Capital,Capital,Capital,Third Party Payments,505,Private Contractors,5042,Capital,SOCIAL CARE.NURSING & RESIDENTIAL CARE
01/08/2022,2442543,729.91,EOTHEN HOMES LTD,276943,Capital,Capital,Capital,Third Party Payments,505,Private Contractors,5042,Capital,SOCIAL CARE.NURSING & RESIDENTIAL CARE
01/08/2022,2442543,729.91,EOTHEN HOMES LTD,276943,Capital,Capital,Capital,Third Party Payments,505,Private Contractors,5042,Capital,SOCIAL CARE.NURSING & RESIDENTIAL CARE
01/08/2022,2442543,729.91,EOTHEN HOMES LTD,276943,Capital,Capital,Capital,Third Party Payments,505,Private Contractors,5042,Capital,SOCIAL CARE.NURSING & RESIDENTIAL CARE
01/08/2022,2442543,729.91,EOTHEN HOMES LTD,276943,Capital,Capital,Capital,Third Party Payments,505,Private Contractors,5042,Capital,SOCIAL CARE.NURSING & RESIDENTIAL CARE
01/08/2022,2442543,729.91,EOTHEN HOMES LTD,276943,Capital,Capital,Capital,Third Party Payments,505,Private Contractors,5042,Capital,SOCIAL CARE.NURSING & RESIDENTIAL CARE
01/08/2022,2442543,729.91,EOTHEN HOMES LTD,276943,Capital,Capital,Capital,Third Party Payments,505,Private Contractors,5042,Capital,SOCIAL CARE.NURSING & RESIDENTIAL CARE
01/08/2022,2442543,729.91,EOTHEN HOMES LTD,276943,Capital,Capital,Capital,Third Party Payments,505,Private Contractors,5042,Capital,SOCIAL CARE.NURSING & RESIDENTIAL CARE
01/08/2022,2442543,729.91,EOTHEN HOMES LTD,276943,Capital,Capital,Capital,Third Party Payments,505,Private Contractors,5042,Capital,SOCIAL CARE.NURSING & RESIDENTIAL CARE
01/08/2022,2442543,729.91,EOTHEN HOMES LTD,276943,Capital,Capital,Capital,Third Party Payments,505,Private Contractors,5042,Capital,SOCIAL CARE.NURSING & RESIDENTIAL CARE
01/08/2022,2442543,729.91,EOTHEN HOMES LTD,276943,Capital,Capital,Capital,Third Party Payments,505,Private Contractors,5042,Capital,SOCIAL CARE.NURSING & RESIDENTIAL CARE
01/08/2022,2442543,729.91,EOTHEN HOMES LTD,276943,Capital,Capital,Capital,Third Party Payments,505,Private Contractors,5042,Capital,SOCIAL CARE.NURSING & RESIDENTIAL CARE
01/08/2022,2442543,729.91,EOTHEN HOMES LTD,276943,Capital,Capital,Capital,Third Party Payments,505,Private Contractors,5042,Capital,SOCIAL CARE.NURSING & RESIDENTIAL CARE
01/08/2022,2442543,729.91,EOTHEN HOMES LTD,276943,Capital,Capital,Capital,Third Party Payments,505,Private Contractors,5042,Capital,SOCIAL CARE.NURSING & RESIDENTIAL CARE
01/08/2022,2442543,729.91,EOTHEN HOMES LTD,276943,Capital,Capital,Capital,Third Party Payments,505,Private Contractors,5042,Capital,SOCIAL CARE.NURSING & RESIDENTIAL CARE
01/08/2022,2442543,729.91,EOTHEN HOMES LTD,276943,Capital,Capital,Capital,Third Party Payments,505,Private Contractors,5042,Capital,SOCIAL CARE.NURSING & RESIDENTIAL CARE
01/08/2022,2442543,729.91,EOTHEN HOMES LTD,276943,Capital,Capital,Capital,Third Party Payments,505,Private Contractors,5042,Capital,SOCIAL CARE.NURSING & RESIDENTIAL CARE
01/08/2022,2442543,1147.00,EOTHEN HOMES LTD,276943,Capital,Capital,Capital,Third Party Payments,505,Private Contractors,5042,Capital,SOCIAL CARE.NURSING & RESIDENTIAL CARE
01/08/2022,2442546,330.00,HOME GROUP LIMITED,318977,Capital,Capital,Capital,Third Party Payments,505,Other Establishments,5041,Capital,LEGAL.REAL ESTATE
01/08/2022,2442547,406.11,Redacted Personal Data,396159,Capital,Capital,Capital,Third Party Payments,505,Other Establishments,5041,Capital,NON INFLUENCIBLE.INDIVIDUAL
01/08/2022,2442548,178.50,Redacted Personal Data,398120,Capital,Capital,Capital,Third Party Payments,505,Other Establishments,5041,Capital,NON INFLUENCIBLE.WELFARE
01/08/2022,2442548,712.50,Redacted Personal Data,398120,Capital,Capital,Capital,Third Party Payments,505,Other Establishments,5041,Capital,NON INFLUENCIBLE.WELFARE
01/08/2022,2442550,670.53,WAYMARKS LTD,386037,Capital,Capital,Capital,Third Party Payments,505,Other Establishments,5041,Capital,SOCIAL CARE.CARE SERVICES
01/08/2022,2442550,1634.64,WAYMARKS LTD,386037,Capital,Capital,Capital,Third Party Payments,505,Other Establishments,5041,Capital,SOCIAL CARE.CARE SERVICES
01/08/2022,2442551,342.00,Redacted Personal Data,398003,Capital,Capital,Capital,Third Party Payments,505,Other Establishments,5041,Capital,NON INFLUENCIBLE.WELFARE
01/08/2022,2442559,10791.13,HESLEY GROUP LIMITED,008273,Capital,Capital,Capital,Third Party Payments,505,Private Contractors,5042,Capital,SOCIAL CARE.CHILDCARE SERVICES
01/08/2022,2442560,391.92,NEW KEY SUPPORT LTD,392374,Capital,Capital,Capital,Third Party Payments,505,Other Establishments,5041,Capital,SOCIAL CARE.CARE SERVICES
01/08/2022,2442560,5460.00,NEW KEY SUPPORT LTD,392374,Capital,Capital,Capital,Third Party Payments,505,Other Establishments,5041,Capital,SOCIAL CARE.CARE SERVICES
01/08/2022,2442561,1225.28,Redacted Personal Data,397357,Capital,Capital,Capital,Third Party Payments,505,Other Establishments,5041,Capital,NON INFLUENCIBLE.INDIVIDUAL
01/08/2022,2442562,745.50,Redacted Personal Data,353764,Capital,Capital,Capital,Third Party Payments,505,Other Establishments,5041,Capital,NON INFLUENCIBLE.INDIVIDUAL
01/08/2022,2442562,3382.96,Redacted Personal Data,353764,Capital,Capital,Capital,Third Party Payments,505,Other Establishments,5041,Capital,NON INFLUENCIBLE.INDIVIDUAL
01/08/2022,2442563,567.36,Redacted Personal Data,397291,Capital,Capital,Capital,Third Party Payments,505,Other Establishments,5041,Capital,NON INFLUENCIBLE.WELFARE
01/08/2022,2442566,38.81,Redacted Personal Data,386764,Capital,Capital,Capital,Third Party Payments,505,Other Establishments,5041,Capital,NON INFLUENCIBLE.NON INFLUENCIBLE
01/08/2022,2442566,152.00,Redacted Personal Data,386764,Capital,Capital,Capital,Third Party Payments,505,Other Establishments,5041,Capital,NON INFLUENCIBLE.NON INFLUENCIBLE
01/08/2022,2442566,300.00,Redacted Personal Data,386764,Capital,Capital,Capital,Third Party Payments,505,Other Establishments,5041,Capital,NON INFLUENCIBLE.NON INFLUENCIBLE
01/08/2022,2442570,2783.90,DANSHELL HEALTHCARE LTD,397064,Capital,Capital,Capital,Third Party Payments,505,Private Contractors,5042,Capital,NON INFLUENCIBLE.WELFARE
01/08/2022,2442571,3478.08,ROYAL BLIND ASYLUM AND SCHOOL,018071,Capital,Capital,Capital,Third Party Payments,505,Private Contractors,5042,Capital,SOCIAL CARE.NURSING & RESIDENTIAL CARE
01/08/2022,2442574,551.00,CLOVELLY HOUSE RESIDENTIAL HOME,396980,Capital,Capital,Capital,Third Party Payments,505,Private Contractors,5042,Capital,SOCIAL CARE.NURSING & RESIDENTIAL CARE
01/08/2022,2442576,319.74,Redacted Personal Data,396951,Capital,Capital,Capital,Third Party Payments,505,Other Establishments,5041,Capital,NON INFLUENCIBLE.INDIVIDUAL
01/08/2022,2442576,319.74,Redacted Personal Data,396951,Capital,Capital,Capital,Third Party Payments,505,Other Establishments,5041,Capital,NON INFLUENCIBLE.INDIVIDUAL
01/08/2022,2442577,428.00,Redacted Personal Data,012801,Capital,Capital,Capital,Third Party Payments,505,Other Establishments,5041,Capital,NON INFLUENCIBLE.WELFARE
01/08/2022,2442579,52.36,Redacted Personal Data,374847,Capital,Capital,Capital,Third Party Payments,505,Other Establishments,5041,Capital,NON INFLUENCIBLE.NON INFLUENCIBLE
01/08/2022,2442579,209.00,Redacted Personal Data,374847,Capital,Capital,Capital,Third Party Payments,505,Other Establishments,5041,Capital,NON INFLUENCIBLE.NON INFLUENCIBLE
01/08/2022,2442580,274.33,Redacted Personal Data,396923,Capital,Capital,Capital,Third Party Payments,505,Other Establishments,5041,Capital,NON INFLUENCIBLE.INDIVIDUAL
01/08/2022,2442581,307.25,Redacted Personal Data,396158,Capital,Capital,Capital,Third Party Payments,505,Other Establishments,5041,Capital,NON INFLUENCIBLE.INDIVIDUAL
01/08/2022,2442583,3.13,Redacted Personal Data,396887,Capital,Capital,Capital,Third Party Payments,505,Other Establishments,5041,Capital,NON INFLUENCIBLE.WELFARE
01/08/2022,2442583,533.12,Redacted Personal Data,396887,Capital,Capital,Capital,Third Party Payments,505,Other Establishments,5041,Capital,NON INFLUENCIBLE.WELFARE
01/08/2022,2442583,2128.00,Redacted Personal Data,396887,Capital,Capital,Capital,Third Party Payments,505,Other Establishments,5041,Capital,NON INFLUENCIBLE.WELFARE
01/08/2022,2442584,538.07,Redacted Personal Data,396815,Capital,Capital,Capital,Third Party Payments,505,Private Contractors,5042,Capital,SOCIAL CARE.NURSING & RESIDENTIAL CARE
01/08/2022,2442585,-1668.99,CRYSTAL CROFTDENE LIMITED T/A CROFTDENE CARE HOME,396800,Capital,Capital,Capital,Third Party Payments,505,Private Contractors,5042,Capital,SOCIAL CARE.NURSING & RESIDENTIAL CARE
01/08/2022,2442585,-785.01,CRYSTAL CROFTDENE LIMITED T/A CROFTDENE CARE HOME,396800,,,,,,,,,SOCIAL CARE.NURSING & RESIDENTIAL CARE
01/08/2022,2442585,196.25,CRYSTAL CROFTDENE LIMITED T/A CROFTDENE CARE HOME,396800,Capital,Capital,Capital,Third Party Payments,505,Private Contractors,5042,Capital,SOCIAL CARE.NURSING & RESIDENTIAL CARE
01/08/2022,2442585,490.63,CRYSTAL CROFTDENE LIMITED T/A CROFTDENE CARE HOME,396800,Capital,Capital,Capital,Third Party Payments,505,Private Contractors,5042,Capital,SOCIAL CARE.NURSING & RESIDENTIAL CARE
01/08/2022,2442585,649.05,CRYSTAL CROFTDENE LIMITED T/A CROFTDENE CARE HOME,396800,Capital,Capital,Capital,Third Party Payments,505,Private Contractors,5042,Capital,SOCIAL CARE.NURSING & RESIDENTIAL CARE
01/08/2022,2442585,649.05,CRYSTAL CROFTDENE LIMITED T/A CROFTDENE CARE HOME,396800,Capital,Capital,Capital,Third Party Payments,505,Private Contractors,5042,Capital,SOCIAL CARE.NURSING & RESIDENTIAL CARE
01/08/2022,2442585,649.05,CRYSTAL CROFTDENE LIMITED T/A CROFTDENE CARE HOME,396800,Capital,Capital,Capital,Third Party Payments,505,Private Contractors,5042,Capital,SOCIAL CARE.NURSING & RESIDENTIAL CARE
01/08/2022,2442585,649.05,CRYSTAL CROFTDENE LIMITED T/A CROFTDENE CARE HOME,396800,Capital,Capital,Capital,Third Party Payments,505,Private Contractors,5042,Capital,SOCIAL CARE.NURSING & RESIDENTIAL CARE
01/08/2022,2442585,649.05,CRYSTAL CROFTDENE LIMITED T/A CROFTDENE CARE HOME,396800,Capital,Capital,Capital,Third Party Payments,505,Private Contractors,5042,Capital,SOCIAL CARE.NURSING & RESIDENTIAL CARE
01/08/2022,2442585,649.05,CRYSTAL CROFTDENE LIMITED T/A CROFTDENE CARE HOME,396800,Capital,Capital,Capital,Third Party Payments,505,Private Contractors,5042,Capital,SOCIAL CARE.NURSING & RESIDENTIAL CARE
01/08/2022,2442585,649.05,CRYSTAL CROFTDENE LIMITED T/A CROFTDENE CARE HOME,396800,Capital,Capital,Capital,Third Party Payments,505,Private Contractors,5042,Capital,SOCIAL CARE.NURSING & RESIDENTIAL CARE
01/08/2022,2442585,649.05,CRYSTAL CROFTDENE LIMITED T/A CROFTDENE CARE HOME,396800,Capital,Capital,Capital,Third Party Payments,505,Private Contractors,5042,Capital,SOCIAL CARE.NURSING & RESIDENTIAL CARE
01/08/2022,2442585,649.05,CRYSTAL CROFTDENE LIMITED T/A CROFTDENE CARE HOME,396800,Capital,Capital,Capital,Third Party Payments,505,Private Contractors,5042,Capital,SOCIAL CARE.NURSING & RESIDENTIAL CARE
01/08/2022,2442585,649.05,CRYSTAL CROFTDENE LIMITED T/A CROFTDENE CARE HOME,396800,Capital,Capital,Capital,Third Party Payments,505,Private Contractors,5042,Capital,SOCIAL CARE.NURSING & RESIDENTIAL CARE
01/08/2022,2442585,649.05,CRYSTAL CROFTDENE LIMITED T/A CROFTDENE CARE HOME,396800,Capital,Capital,Capital,Third Party Payments,505,Private Contractors,5042,Capital,SOCIAL CARE.NURSING & RESIDENTIAL CARE
01/08/2022,2442585,649.05,CRYSTAL CROFTDENE LIMITED T/A CROFTDENE CARE HOME,396800,Capital,Capital,Capital,Third Party Payments,505,Private Contractors,5042,Capital,SOCIAL CARE.NURSING & RESIDENTIAL CARE
01/08/2022,2442585,649.05,CRYSTAL CROFTDENE LIMITED T/A CROFTDENE CARE HOME,396800,Capital,Capital,Capital,Third Party Payments,505,Private Contractors,5042,Capital,SOCIAL CARE.NURSING & RESIDENTIAL CARE
01/08/2022,2442585,649.05,CRYSTAL CROFTDENE LIMITED T/A CROFTDENE CARE HOME,396800,Capital,Capital,Capital,Third Party Payments,505,Private Contractors,5042,Capital,SOCIAL CARE.NURSING & RESIDENTIAL CARE
01/08/2022,2442585,649.05,CRYSTAL CROFTDENE LIMITED T/A CROFTDENE CARE HOME,396800,Capital,Capital,Capital,Third Party Payments,505,Private Contractors,5042,Capital,SOCIAL CARE.NURSING & RESIDENTIAL CARE
01/08/2022,2442585,649.05,CRYSTAL CROFTDENE LIMITED T/A CROFTDENE CARE HOME,396800,Capital,Capital,Capital,Third Party Payments,505,Private Contractors,5042,Capital,SOCIAL CARE.NURSING & RESIDENTIAL CARE
01/08/2022,2442585,649.05,CRYSTAL CROFTDENE LIMITED T/A CROFTDENE CARE HOME,396800,Capital,Capital,Capital,Third Party Payments,505,Private Contractors,5042,Capital,SOCIAL CARE.NURSING & RESIDENTIAL CARE
01/08/2022,2442585,649.05,CRYSTAL CROFTDENE LIMITED T/A CROFTDENE CARE HOME,396800,Capital,Capital,Capital,Third Party Payments,505,Private Contractors,5042,Capital,SOCIAL CARE.NURSING & RESIDENTIAL CARE
01/08/2022,2442585,686.88,CRYSTAL CROFTDENE LIMITED T/A CROFTDENE CARE HOME,396800,Capital,Capital,Capital,Third Party Payments,505,Private Contractors,5042,Capital,SOCIAL CARE.NURSING & RESIDENTIAL CARE
01/08/2022,2442585,686.88,CRYSTAL CROFTDENE LIMITED T/A CROFTDENE CARE HOME,396800,Capital,Capital,Capital,Third Party Payments,505,Private Contractors,5042,Capital,SOCIAL CARE.NURSING & RESIDENTIAL CARE
01/08/2022,2442585,686.88,CRYSTAL CROFTDENE LIMITED T/A CROFTDENE CARE HOME,396800,Capital,Capital,Capital,Third Party Payments,505,Private Contractors,5042,Capital,SOCIAL CARE.NURSING & RESIDENTIAL CARE
01/08/2022,2442585,686.88,CRYSTAL CROFTDENE LIMITED T/A CROFTDENE CARE HOME,396800,Capital,Capital,Capital,Third Party Payments,505,Private Contractors,5042,Capital,SOCIAL CARE.NURSING & RESIDENTIAL CARE
01/08/2022,2442585,686.88,CRYSTAL CROFTDENE LIMITED T/A CROFTDENE CARE HOME,396800,Capital,Capital,Capital,Third Party Payments,505,Private Contractors,5042,Capital,SOCIAL CARE.NURSING & RESIDENTIAL CARE
01/08/2022,2442585,686.88,CRYSTAL CROFTDENE LIMITED T/A CROFTDENE CARE HOME,396800,Capital,Capital,Capital,Third Party Payments,505,Private Contractors,5042,Capital,SOCIAL CARE.NURSING & RESIDENTIAL CARE
01/08/2022,2442585,686.88,CRYSTAL CROFTDENE LIMITED T/A CROFTDENE CARE HOME,396800,Capital,Capital,Capital,Third Party Payments,505,Private Contractors,5042,Capital,SOCIAL CARE.NURSING & RESIDENTIAL CARE
01/08/2022,2442585,686.88,CRYSTAL CROFTDENE LIMITED T/A CROFTDENE CARE HOME,396800,Capital,Capital,Capital,Third Party Payments,505,Private Contractors,5042,Capital,SOCIAL CARE.NURSING & RESIDENTIAL CARE
01/08/2022,2442585,686.88,CRYSTAL CROFTDENE LIMITED T/A CROFTDENE CARE HOME,396800,Capital,Capital,Capital,Third Party Payments,505,Private Contractors,5042,Capital,SOCIAL CARE.NURSING & RESIDENTIAL CARE
01/08/2022,2442585,686.88,CRYSTAL CROFTDENE LIMITED T/A CROFTDENE CARE HOME,396800,Capital,Capital,Capital,Third Party Payments,505,Private Contractors,5042,Capital,SOCIAL CARE.NURSING & RESIDENTIAL CARE
01/08/2022,2442585,686.88,CRYSTAL CROFTDENE LIMITED T/A CROFTDENE CARE HOME,396800,Capital,Capital,Capital,Third Party Payments,505,Private Contractors,5042,Capital,SOCIAL CARE.NURSING & RESIDENTIAL CARE
01/08/2022,2442585,686.88,CRYSTAL CROFTDENE LIMITED T/A CROFTDENE CARE HOME,396800,Capital,Capital,Capital,Third Party Payments,505,Private Contractors,5042,Capital,SOCIAL CARE.NURSING & RESIDENTIAL CARE
01/08/2022,2442585,1205.38,CRYSTAL CROFTDENE LIMITED T/A CROFTDENE CARE HOME,396800,Capital,Capital,Capital,Third Party Payments,505,Private Contractors,5042,Capital,SOCIAL CARE.NURSING & RESIDENTIAL CARE
01/08/2022,2442585,2453.14,CRYSTAL CROFTDENE LIMITED T/A CROFTDENE CARE HOME,396800,Capital,Capital,Capital,Third Party Payments,505,Private Contractors,5042,Capital,SOCIAL CARE.NURSING & RESIDENTIAL CARE
01/08/2022,2442587,3.25,Redacted Personal Data,387181,Capital,Capital,Capital,Third Party Payments,505,Other Establishments,5041,Capital,NON INFLUENCIBLE.INDIVIDUAL
01/08/2022,2442587,39.27,Redacted Personal Data,387181,Capital,Capital,Capital,Third Party Payments,505,Other Establishments,5041,Capital,NON INFLUENCIBLE.INDIVIDUAL
01/08/2022,2442587,156.75,Redacted Personal Data,387181,Capital,Capital,Capital,Third Party Payments,505,Other Establishments,5041,Capital,NON INFLUENCIBLE.INDIVIDUAL
01/08/2022,2442587,284.11,Redacted Personal Data,387181,Capital,Capital,Capital,Third Party Payments,505,Other Establishments,5041,Capital,NON INFLUENCIBLE.INDIVIDUAL
01/08/2022,2442587,683.50,Redacted Personal Data,387181,Capital,Capital,Capital,Third Party Payments,505,Other Establishments,5041,Capital,NON INFLUENCIBLE.INDIVIDUAL
01/08/2022,2442589,332.50,Redacted Personal Data,367921,Capital,Capital,Capital,Third Party Payments,505,Other Establishments,5041,Capital,NON INFLUENCIBLE.NON INFLUENCIBLE
01/08/2022,2442591,482.23,Redacted Personal Data,388825,Capital,Capital,Capital,Third Party Payments,505,Other Establishments,5041,Capital,NON INFLUENCIBLE.NON INFLUENCIBLE
01/08/2022,2442594,209.19,HILL CARE 4 LIMITED,399680,Capital,Capital,Capital,Third Party Payments,505,Other Establishments,5041,Capital,SOCIAL CARE.NURSING & RESIDENTIAL CARE
01/08/2022,2442594,716.95,HILL CARE 4 LIMITED,399680,Capital,Capital,Capital,Third Party Payments,505,Private Contractors,5042,Capital,SOCIAL CARE.NURSING & RESIDENTIAL CARE
01/08/2022,2442594,716.95,HILL CARE 4 LIMITED,399680,Capital,Capital,Capital,Third Party Payments,505,Private Contractors,5042,Capital,SOCIAL CARE.NURSING & RESIDENTIAL CARE
01/08/2022,2442595,66.64,Redacted Personal Data,356587,Capital,Capital,Capital,Third Party Payments,505,Other Establishments,5041,Capital,NON INFLUENCIBLE.INDIVIDUAL
01/08/2022,2442595,282.00,Redacted Personal Data,356587,Capital,Capital,Capital,Third Party Payments,505,Other Establishments,5041,Capital,NON INFLUENCIBLE.INDIVIDUAL
01/08/2022,2442597,135.63,Redacted Personal Data,399630,Capital,Capital,Capital,Third Party Payments,505,Other Establishments,5041,Capital,NON INFLUENCIBLE.INDIVIDUAL
01/08/2022,2442597,584.25,Redacted Personal Data,399630,Capital,Capital,Capital,Third Party Payments,505,Other Establishments,5041,Capital,NON INFLUENCIBLE.INDIVIDUAL
01/08/2022,2442599,677.04,HC ONE LIMITED - MELBURY COURT,399517,Capital,Capital,Capital,Third Party Payments,505,Private Contractors,5042,Capital,SOCIAL CARE.NURSING & RESIDENTIAL CARE
01/08/2022,2442602,762.00,THE MANOR HOUSE,385703,Capital,Capital,Capital,Third Party Payments,505,Private Contractors,5042,Capital,SOCIAL CARE.NURSING & RESIDENTIAL CARE
01/08/2022,2442603,442.78,Redacted Personal Data,399422,Capital,Capital,Capital,Third Party Payments,505,Other Establishments,5041,Capital,NON INFLUENCIBLE.INDIVIDUAL
01/08/2022,2442605,-4728.79,Redacted Personal Data,399318,,,,,,,,,NON INFLUENCIBLE.PUBLIC SECTOR
01/08/2022,2442605,-1524.10,Redacted Personal Data,399318,,,,,,,,,NON INFLUENCIBLE.PUBLIC SECTOR
01/08/2022,2442605,92.16,Redacted Personal Data,399318,Capital,Capital,Capital,Third Party Payments,505,Other Establishments,5041,Capital,NON INFLUENCIBLE.PUBLIC SECTOR
01/08/2022,2442605,92.16,Redacted Personal Data,399318,Capital,Capital,Capital,Third Party Payments,505,Other Establishments,5041,Capital,NON INFLUENCIBLE.PUBLIC SECTOR
01/08/2022,2442605,92.16,Redacted Personal Data,399318,Capital,Capital,Capital,Third Party Payments,505,Other Establishments,5041,Capital,NON INFLUENCIBLE.PUBLIC SECTOR
01/08/2022,2442605,92.16,Redacted Personal Data,399318,Capital,Capital,Capital,Third Party Payments,505,Other Establishments,5041,Capital,NON INFLUENCIBLE.PUBLIC SECTOR
01/08/2022,2442605,92.16,Redacted Personal Data,399318,Capital,Capital,Capital,Third Party Payments,505,Other Establishments,5041,Capital,NON INFLUENCIBLE.PUBLIC SECTOR
01/08/2022,2442605,209.19,Redacted Personal Data,399318,Capital,Capital,Capital,Third Party Payments,505,Other Establishments,5041,Capital,NON INFLUENCIBLE.PUBLIC SECTOR
01/08/2022,2442605,209.19,Redacted Personal Data,399318,Capital,Capital,Capital,Third Party Payments,505,Other Establishments,5041,Capital,NON INFLUENCIBLE.PUBLIC SECTOR
01/08/2022,2442605,209.19,Redacted Personal Data,399318,Capital,Capital,Capital,Third Party Payments,505,Other Establishments,5041,Capital,NON INFLUENCIBLE.PUBLIC SECTOR
01/08/2022,2442605,209.19,Redacted Personal Data,399318,Capital,Capital,Capital,Third Party Payments,505,Other Establishments,5041,Capital,NON INFLUENCIBLE.PUBLIC SECTOR
01/08/2022,2442605,209.19,Redacted Personal Data,399318,Capital,Capital,Capital,Third Party Payments,505,Other Establishments,5041,Capital,NON INFLUENCIBLE.PUBLIC SECTOR
01/08/2022,2442605,209.19,Redacted Personal Data,399318,Capital,Capital,Capital,Third Party Payments,505,Other Establishments,5041,Capital,NON INFLUENCIBLE.PUBLIC SECTOR
01/08/2022,2442605,209.19,Redacted Personal Data,399318,Capital,Capital,Capital,Third Party Payments,505,Other Establishments,5041,Capital,NON INFLUENCIBLE.PUBLIC SECTOR
01/08/2022,2442605,209.19,Redacted Personal Data,399318,Capital,Capital,Capital,Third Party Payments,505,Other Establishments,5041,Capital,NON INFLUENCIBLE.PUBLIC SECTOR
01/08/2022,2442605,209.19,Redacted Personal Data,399318,Capital,Capital,Capital,Third Party Payments,505,Other Establishments,5041,Capital,NON INFLUENCIBLE.PUBLIC SECTOR
01/08/2022,2442605,209.19,Redacted Personal Data,399318,Capital,Capital,Capital,Third Party Payments,505,Other Establishments,5041,Capital,NON INFLUENCIBLE.PUBLIC SECTOR
01/08/2022,2442605,209.19,Redacted Personal Data,399318,Capital,Capital,Capital,Third Party Payments,505,Other Establishments,5041,Capital,NON INFLUENCIBLE.PUBLIC SECTOR
01/08/2022,2442605,408.14,Redacted Personal Data,399318,Capital,Capital,Capital,Third Party Payments,505,Other Establishments,5041,Capital,NON INFLUENCIBLE.PUBLIC SECTOR
01/08/2022,2442605,463.61,Redacted Personal Data,399318,Capital,Capital,Capital,Third Party Payments,505,Private Contractors,5042,Capital,NON INFLUENCIBLE.PUBLIC SECTOR
01/08/2022,2442605,649.05,Redacted Personal Data,399318,Capital,Capital,Capital,Third Party Payments,505,Private Contractors,5042,Capital,NON INFLUENCIBLE.PUBLIC SECTOR
01/08/2022,2442605,649.05,Redacted Personal Data,399318,Capital,Capital,Capital,Third Party Payments,505,Private Contractors,5042,Capital,NON INFLUENCIBLE.PUBLIC SECTOR
01/08/2022,2442605,649.05,Redacted Personal Data,399318,Capital,Capital,Capital,Third Party Payments,505,Other Establishments,5041,Capital,NON INFLUENCIBLE.PUBLIC SECTOR
01/08/2022,2442605,649.05,Redacted Personal Data,399318,Capital,Capital,Capital,Third Party Payments,505,Other Establishments,5041,Capital,NON INFLUENCIBLE.PUBLIC SECTOR
01/08/2022,2442605,649.05,Redacted Personal Data,399318,Capital,Capital,Capital,Third Party Payments,505,Other Establishments,5041,Capital,NON INFLUENCIBLE.PUBLIC SECTOR
01/08/2022,2442605,649.05,Redacted Personal Data,399318,Capital,Capital,Capital,Third Party Payments,505,Private Contractors,5042,Capital,NON INFLUENCIBLE.PUBLIC SECTOR
01/08/2022,2442605,649.05,Redacted Personal Data,399318,Capital,Capital,Capital,Third Party Payments,505,Private Contractors,5042,Capital,NON INFLUENCIBLE.PUBLIC SECTOR
01/08/2022,2442605,649.05,Redacted Personal Data,399318,Capital,Capital,Capital,Third Party Payments,505,Private Contractors,5042,Capital,NON INFLUENCIBLE.PUBLIC SECTOR
01/08/2022,2442605,649.05,Redacted Personal Data,399318,Capital,Capital,Capital,Third Party Payments,505,Private Contractors,5042,Capital,NON INFLUENCIBLE.PUBLIC SECTOR
01/08/2022,2442605,649.05,Redacted Personal Data,399318,Capital,Capital,Capital,Third Party Payments,505,Private Contractors,5042,Capital,NON INFLUENCIBLE.PUBLIC SECTOR
01/08/2022,2442605,649.05,Redacted Personal Data,399318,Capital,Capital,Capital,Third Party Payments,505,Private Contractors,5042,Capital,NON INFLUENCIBLE.PUBLIC SECTOR
01/08/2022,2442605,649.05,Redacted Personal Data,399318,Capital,Capital,Capital,Third Party Payments,505,Private Contractors,5042,Capital,NON INFLUENCIBLE.PUBLIC SECTOR
01/08/2022,2442605,649.05,Redacted Personal Data,399318,Capital,Capital,Capital,Third Party Payments,505,Private Contractors,5042,Capital,NON INFLUENCIBLE.PUBLIC SECTOR
01/08/2022,2442605,649.05,Redacted Personal Data,399318,Capital,Capital,Capital,Third Party Payments,505,Private Contractors,5042,Capital,NON INFLUENCIBLE.PUBLIC SECTOR
01/08/2022,2442605,649.05,Redacted Personal Data,399318,Capital,Capital,Capital,Third Party Payments,505,Private Contractors,5042,Capital,NON INFLUENCIBLE.PUBLIC SECTOR
01/08/2022,2442605,649.05,Redacted Personal Data,399318,Capital,Capital,Capital,Third Party Payments,505,Private Contractors,5042,Capital,NON INFLUENCIBLE.PUBLIC SECTOR
01/08/2022,2442605,649.05,Redacted Personal Data,399318,Capital,Capital,Capital,Third Party Payments,505,Private Contractors,5042,Capital,NON INFLUENCIBLE.PUBLIC SECTOR
01/08/2022,2442605,649.05,Redacted Personal Data,399318,Capital,Capital,Capital,Third Party Payments,505,Other Establishments,5041,Capital,NON INFLUENCIBLE.PUBLIC SECTOR
01/08/2022,2442605,686.88,Redacted Personal Data,399318,Capital,Capital,Capital,Third Party Payments,505,Other Establishments,5041,Capital,NON INFLUENCIBLE.PUBLIC SECTOR
01/08/2022,2442605,686.88,Redacted Personal Data,399318,Capital,Capital,Capital,Third Party Payments,505,Private Contractors,5042,Capital,NON INFLUENCIBLE.PUBLIC SECTOR
01/08/2022,2442605,686.88,Redacted Personal Data,399318,Capital,Capital,Capital,Third Party Payments,505,Private Contractors,5042,Capital,NON INFLUENCIBLE.PUBLIC SECTOR
01/08/2022,2442605,686.88,Redacted Personal Data,399318,Capital,Capital,Capital,Third Party Payments,505,Private Contractors,5042,Capital,NON INFLUENCIBLE.PUBLIC SECTOR
01/08/2022,2442605,686.88,Redacted Personal Data,399318,Capital,Capital,Capital,Third Party Payments,505,Private Contractors,5042,Capital,NON INFLUENCIBLE.PUBLIC SECTOR
01/08/2022,2442605,686.88,Redacted Personal Data,399318,Capital,Capital,Capital,Third Party Payments,505,Private Contractors,5042,Capital,NON INFLUENCIBLE.PUBLIC SECTOR
01/08/2022,2442605,926.41,Redacted Personal Data,399318,Capital,Capital,Capital,Third Party Payments,505,Other Establishments,5041,Capital,NON INFLUENCIBLE.PUBLIC SECTOR
01/08/2022,2442605,2874.36,Redacted Personal Data,399318,Capital,Capital,Capital,Third Party Payments,505,Other Establishments,5041,Capital,NON INFLUENCIBLE.PUBLIC SECTOR
01/08/2022,2442606,690.54,ROSEBERRY CARE CENTRES � WILLOW COURT,399300,Capital,Capital,Capital,Third Party Payments,505,Private Contractors,5042,Capital,SOCIAL CARE.NURSING & RESIDENTIAL CARE
01/08/2022,2442606,690.54,ROSEBERRY CARE CENTRES � WILLOW COURT,399300,Capital,Capital,Capital,Third Party Payments,505,Private Contractors,5042,Capital,SOCIAL CARE.NURSING & RESIDENTIAL CARE
01/08/2022,2442606,690.54,ROSEBERRY CARE CENTRES � WILLOW COURT,399300,Capital,Capital,Capital,Third Party Payments,505,Private Contractors,5042,Capital,SOCIAL CARE.NURSING & RESIDENTIAL CARE
01/08/2022,2442606,690.54,ROSEBERRY CARE CENTRES � WILLOW COURT,399300,Capital,Capital,Capital,Third Party Payments,505,Private Contractors,5042,Capital,SOCIAL CARE.NURSING & RESIDENTIAL CARE
01/08/2022,2442606,690.54,ROSEBERRY CARE CENTRES � WILLOW COURT,399300,Capital,Capital,Capital,Third Party Payments,505,Private Contractors,5042,Capital,SOCIAL CARE.NURSING & RESIDENTIAL CARE
01/08/2022,2442606,690.54,ROSEBERRY CARE CENTRES � WILLOW COURT,399300,Capital,Capital,Capital,Third Party Payments,505,Private Contractors,5042,Capital,SOCIAL CARE.NURSING & RESIDENTIAL CARE
01/08/2022,2442606,690.54,ROSEBERRY CARE CENTRES � WILLOW COURT,399300,Capital,Capital,Capital,Third Party Payments,505,Private Contractors,5042,Capital,SOCIAL CARE.NURSING & RESIDENTIAL CARE
01/08/2022,2442606,690.54,ROSEBERRY CARE CENTRES � WILLOW COURT,399300,Capital,Capital,Capital,Third Party Payments,505,Private Contractors,5042,Capital,SOCIAL CARE.NURSING & RESIDENTIAL CARE
01/08/2022,2442606,690.54,ROSEBERRY CARE CENTRES � WILLOW COURT,399300,Capital,Capital,Capital,Third Party Payments,505,Private Contractors,5042,Capital,SOCIAL CARE.NURSING & RESIDENTIAL CARE
01/08/2022,2442606,690.54,ROSEBERRY CARE CENTRES � WILLOW COURT,399300,Capital,Capital,Capital,Third Party Payments,505,Private Contractors,5042,Capital,SOCIAL CARE.NURSING & RESIDENTIAL CARE
01/08/2022,2442606,690.54,ROSEBERRY CARE CENTRES � WILLOW COURT,399300,Capital,Capital,Capital,Third Party Payments,505,Private Contractors,5042,Capital,SOCIAL CARE.NURSING & RESIDENTIAL CARE
01/08/2022,2442606,690.54,ROSEBERRY CARE CENTRES � WILLOW COURT,399300,Capital,Capital,Capital,Third Party Payments,505,Private Contractors,5042,Capital,SOCIAL CARE.NURSING & RESIDENTIAL CARE
01/08/2022,2442606,690.54,ROSEBERRY CARE CENTRES � WILLOW COURT,399300,Capital,Capital,Capital,Third Party Payments,505,Private Contractors,5042,Capital,SOCIAL CARE.NURSING & RESIDENTIAL CARE
01/08/2022,2442606,690.54,ROSEBERRY CARE CENTRES � WILLOW COURT,399300,Capital,Capital,Capital,Third Party Payments,505,Private Contractors,5042,Capital,SOCIAL CARE.NURSING & RESIDENTIAL CARE
01/08/2022,2442606,690.54,ROSEBERRY CARE CENTRES � WILLOW COURT,399300,Capital,Capital,Capital,Third Party Payments,505,Private Contractors,5042,Capital,SOCIAL CARE.NURSING & RESIDENTIAL CARE
01/08/2022,2442606,690.54,ROSEBERRY CARE CENTRES � WILLOW COURT,399300,Capital,Capital,Capital,Third Party Payments,505,Private Contractors,5042,Capital,SOCIAL CARE.NURSING & RESIDENTIAL CARE
01/08/2022,2442606,690.54,ROSEBERRY CARE CENTRES � WILLOW COURT,399300,Capital,Capital,Capital,Third Party Payments,505,Private Contractors,5042,Capital,SOCIAL CARE.NURSING & RESIDENTIAL CARE
01/08/2022,2442606,690.54,ROSEBERRY CARE CENTRES � WILLOW COURT,399300,Capital,Capital,Capital,Third Party Payments,505,Private Contractors,5042,Capital,SOCIAL CARE.NURSING & RESIDENTIAL CARE
01/08/2022,2442606,729.91,ROSEBERRY CARE CENTRES � WILLOW COURT,399300,Capital,Capital,Capital,Third Party Payments,505,Private Contractors,5042,Capital,SOCIAL CARE.NURSING & RESIDENTIAL CARE
01/08/2022,2442606,729.91,ROSEBERRY CARE CENTRES � WILLOW COURT,399300,Capital,Capital,Capital,Third Party Payments,505,Private Contractors,5042,Capital,SOCIAL CARE.NURSING & RESIDENTIAL CARE
01/08/2022,2442606,729.91,ROSEBERRY CARE CENTRES � WILLOW COURT,399300,Capital,Capital,Capital,Third Party Payments,505,Private Contractors,5042,Capital,SOCIAL CARE.NURSING & RESIDENTIAL CARE
01/08/2022,2442606,729.91,ROSEBERRY CARE CENTRES � WILLOW COURT,399300,Capital,Capital,Capital,Third Party Payments,505,Private Contractors,5042,Capital,SOCIAL CARE.NURSING & RESIDENTIAL CARE
01/08/2022,2442606,729.91,ROSEBERRY CARE CENTRES � WILLOW COURT,399300,Capital,Capital,Capital,Third Party Payments,505,Private Contractors,5042,Capital,SOCIAL CARE.NURSING & RESIDENTIAL CARE
01/08/2022,2442606,729.91,ROSEBERRY CARE CENTRES � WILLOW COURT,399300,Capital,Capital,Capital,Third Party Payments,505,Private Contractors,5042,Capital,SOCIAL CARE.NURSING & RESIDENTIAL CARE
01/08/2022,2442606,729.91,ROSEBERRY CARE CENTRES � WILLOW COURT,399300,Capital,Capital,Capital,Third Party Payments,505,Private Contractors,5042,Capital,SOCIAL CARE.NURSING & RESIDENTIAL CARE
01/08/2022,2442606,729.91,ROSEBERRY CARE CENTRES � WILLOW COURT,399300,Capital,Capital,Capital,Third Party Payments,505,Private Contractors,5042,Capital,SOCIAL CARE.NURSING & RESIDENTIAL CARE
01/08/2022,2442606,729.91,ROSEBERRY CARE CENTRES � WILLOW COURT,399300,Capital,Capital,Capital,Third Party Payments,505,Private Contractors,5042,Capital,SOCIAL CARE.NURSING & RESIDENTIAL CARE
01/08/2022,2442606,729.91,ROSEBERRY CARE CENTRES � WILLOW COURT,399300,Capital,Capital,Capital,Third Party Payments,505,Private Contractors,5042,Capital,SOCIAL CARE.NURSING & RESIDENTIAL CARE
01/08/2022,2442606,729.91,ROSEBERRY CARE CENTRES � WILLOW COURT,399300,Capital,Capital,Capital,Third Party Payments,505,Private Contractors,5042,Capital,SOCIAL CARE.NURSING & RESIDENTIAL CARE
01/08/2022,2442606,729.91,ROSEBERRY CARE CENTRES � WILLOW COURT,399300,Capital,Capital,Capital,Third Party Payments,505,Private Contractors,5042,Capital,SOCIAL CARE.NURSING & RESIDENTIAL CARE
01/08/2022,2442607,39.50,ROSEBERRY CARE CENTRES - ROSEMOUNT,399299,Capital,Capital,Capital,Third Party Payments,505,Other Establishments,5041,Capital,SOCIAL CARE.NURSING & RESIDENTIAL CARE
01/08/2022,2442607,89.65,ROSEBERRY CARE CENTRES - ROSEMOUNT,399299,Capital,Capital,Capital,Third Party Payments,505,Other Establishments,5041,Capital,SOCIAL CARE.NURSING & RESIDENTIAL CARE
01/08/2022,2442607,92.16,ROSEBERRY CARE CENTRES - ROSEMOUNT,399299,Capital,Capital,Capital,Third Party Payments,505,Other Establishments,5041,Capital,SOCIAL CARE.NURSING & RESIDENTIAL CARE
01/08/2022,2442607,209.19,ROSEBERRY CARE CENTRES - ROSEMOUNT,399299,Capital,Capital,Capital,Third Party Payments,505,Other Establishments,5041,Capital,SOCIAL CARE.NURSING & RESIDENTIAL CARE
01/08/2022,2442607,209.19,ROSEBERRY CARE CENTRES - ROSEMOUNT,399299,Capital,Capital,Capital,Third Party Payments,505,Other Establishments,5041,Capital,SOCIAL CARE.NURSING & RESIDENTIAL CARE
01/08/2022,2442607,209.19,ROSEBERRY CARE CENTRES - ROSEMOUNT,399299,Capital,Capital,Capital,Third Party Payments,505,Other Establishments,5041,Capital,SOCIAL CARE.NURSING & RESIDENTIAL CARE
01/08/2022,2442607,209.19,ROSEBERRY CARE CENTRES - ROSEMOUNT,399299,Capital,Capital,Capital,Third Party Payments,505,Other Establishments,5041,Capital,SOCIAL CARE.NURSING & RESIDENTIAL CARE
01/08/2022,2442607,209.19,ROSEBERRY CARE CENTRES - ROSEMOUNT,399299,Capital,Capital,Capital,Third Party Payments,505,Other Establishments,5041,Capital,SOCIAL CARE.NURSING & RESIDENTIAL CARE
01/08/2022,2442607,209.19,ROSEBERRY CARE CENTRES - ROSEMOUNT,399299,Capital,Capital,Capital,Third Party Payments,505,Other Establishments,5041,Capital,SOCIAL CARE.NURSING & RESIDENTIAL CARE
01/08/2022,2442607,209.19,ROSEBERRY CARE CENTRES - ROSEMOUNT,399299,Capital,Capital,Capital,Third Party Payments,505,Other Establishments,5041,Capital,SOCIAL CARE.NURSING & RESIDENTIAL CARE
01/08/2022,2442607,209.19,ROSEBERRY CARE CENTRES - ROSEMOUNT,399299,Capital,Capital,Capital,Third Party Payments,505,Other Establishments,5041,Capital,SOCIAL CARE.NURSING & RESIDENTIAL CARE
01/08/2022,2442607,209.19,ROSEBERRY CARE CENTRES - ROSEMOUNT,399299,Capital,Capital,Capital,Third Party Payments,505,Other Establishments,5041,Capital,SOCIAL CARE.NURSING & RESIDENTIAL CARE
01/08/2022,2442607,209.19,ROSEBERRY CARE CENTRES - ROSEMOUNT,399299,Capital,Capital,Capital,Third Party Payments,505,Other Establishments,5041,Capital,SOCIAL CARE.NURSING & RESIDENTIAL CARE
01/08/2022,2442607,209.19,ROSEBERRY CARE CENTRES - ROSEMOUNT,399299,Capital,Capital,Capital,Third Party Payments,505,Other Establishments,5041,Capital,SOCIAL CARE.NURSING & RESIDENTIAL CARE
01/08/2022,2442607,278.16,ROSEBERRY CARE CENTRES - ROSEMOUNT,399299,Capital,Capital,Capital,Third Party Payments,505,Other Establishments,5041,Capital,SOCIAL CARE.NURSING & RESIDENTIAL CARE
01/08/2022,2442607,649.05,ROSEBERRY CARE CENTRES - ROSEMOUNT,399299,Capital,Capital,Capital,Third Party Payments,505,Private Contractors,5042,Capital,SOCIAL CARE.NURSING & RESIDENTIAL CARE
01/08/2022,2442607,649.05,ROSEBERRY CARE CENTRES - ROSEMOUNT,399299,Capital,Capital,Capital,Third Party Payments,505,Private Contractors,5042,Capital,SOCIAL CARE.NURSING & RESIDENTIAL CARE
01/08/2022,2442607,649.05,ROSEBERRY CARE CENTRES - ROSEMOUNT,399299,Capital,Capital,Capital,Third Party Payments,505,Private Contractors,5042,Capital,SOCIAL CARE.NURSING & RESIDENTIAL CARE
01/08/2022,2442607,649.05,ROSEBERRY CARE CENTRES - ROSEMOUNT,399299,Capital,Capital,Capital,Third Party Payments,505,Private Contractors,5042,Capital,SOCIAL CARE.NURSING & RESIDENTIAL CARE
01/08/2022,2442607,649.05,ROSEBERRY CARE CENTRES - ROSEMOUNT,399299,Capital,Capital,Capital,Third Party Payments,505,Private Contractors,5042,Capital,SOCIAL CARE.NURSING & RESIDENTIAL CARE
01/08/2022,2442607,649.05,ROSEBERRY CARE CENTRES - ROSEMOUNT,399299,Capital,Capital,Capital,Third Party Payments,505,Private Contractors,5042,Capital,SOCIAL CARE.NURSING & RESIDENTIAL CARE
01/08/2022,2442607,649.05,ROSEBERRY CARE CENTRES - ROSEMOUNT,399299,Capital,Capital,Capital,Third Party Payments,505,Private Contractors,5042,Capital,SOCIAL CARE.NURSING & RESIDENTIAL CARE
01/08/2022,2442607,649.05,ROSEBERRY CARE CENTRES - ROSEMOUNT,399299,Capital,Capital,Capital,Third Party Payments,505,Private Contractors,5042,Capital,SOCIAL CARE.NURSING & RESIDENTIAL CARE
01/08/2022,2442607,649.05,ROSEBERRY CARE CENTRES - ROSEMOUNT,399299,Capital,Capital,Capital,Third Party Payments,505,Private Contractors,5042,Capital,SOCIAL CARE.NURSING & RESIDENTIAL CARE
01/08/2022,2442607,649.05,ROSEBERRY CARE CENTRES - ROSEMOUNT,399299,Capital,Capital,Capital,Third Party Payments,505,Private Contractors,5042,Capital,SOCIAL CARE.NURSING & RESIDENTIAL CARE
01/08/2022,2442607,649.05,ROSEBERRY CARE CENTRES - ROSEMOUNT,399299,Capital,Capital,Capital,Third Party Payments,505,Private Contractors,5042,Capital,SOCIAL CARE.NURSING & RESIDENTIAL CARE
01/08/2022,2442607,649.05,ROSEBERRY CARE CENTRES - ROSEMOUNT,399299,Capital,Capital,Capital,Third Party Payments,505,Private Contractors,5042,Capital,SOCIAL CARE.NURSING & RESIDENTIAL CARE
01/08/2022,2442607,649.05,ROSEBERRY CARE CENTRES - ROSEMOUNT,399299,Capital,Capital,Capital,Third Party Payments,505,Private Contractors,5042,Capital,SOCIAL CARE.NURSING & RESIDENTIAL CARE
01/08/2022,2442607,649.05,ROSEBERRY CARE CENTRES - ROSEMOUNT,399299,Capital,Capital,Capital,Third Party Payments,505,Private Contractors,5042,Capital,SOCIAL CARE.NURSING & RESIDENTIAL CARE
01/08/2022,2442607,649.05,ROSEBERRY CARE CENTRES - ROSEMOUNT,399299,Capital,Capital,Capital,Third Party Payments,505,Private Contractors,5042,Capital,SOCIAL CARE.NURSING & RESIDENTIAL CARE
01/08/2022,2442607,649.05,ROSEBERRY CARE CENTRES - ROSEMOUNT,399299,Capital,Capital,Capital,Third Party Payments,505,Private Contractors,5042,Capital,SOCIAL CARE.NURSING & RESIDENTIAL CARE
01/08/2022,2442607,649.05,ROSEBERRY CARE CENTRES - ROSEMOUNT,399299,Capital,Capital,Capital,Third Party Payments,505,Private Contractors,5042,Capital,SOCIAL CARE.NURSING & RESIDENTIAL CARE
01/08/2022,2442607,649.05,ROSEBERRY CARE CENTRES - ROSEMOUNT,399299,Capital,Capital,Capital,Third Party Payments,505,Private Contractors,5042,Capital,SOCIAL CARE.NURSING & RESIDENTIAL CARE
01/08/2022,2442607,649.05,ROSEBERRY CARE CENTRES - ROSEMOUNT,399299,Capital,Capital,Capital,Third Party Payments,505,Private Contractors,5042,Capital,SOCIAL CARE.NURSING & RESIDENTIAL CARE
01/08/2022,2442607,649.05,ROSEBERRY CARE CENTRES - ROSEMOUNT,399299,Capital,Capital,Capital,Third Party Payments,505,Private Contractors,5042,Capital,SOCIAL CARE.NURSING & RESIDENTIAL CARE
01/08/2022,2442607,649.05,ROSEBERRY CARE CENTRES - ROSEMOUNT,399299,Capital,Capital,Capital,Third Party Payments,505,Private Contractors,5042,Capital,SOCIAL CARE.NURSING & RESIDENTIAL CARE
01/08/2022,2442607,649.05,ROSEBERRY CARE CENTRES - ROSEMOUNT,399299,Capital,Capital,Capital,Third Party Payments,505,Other Establishments,5041,Capital,SOCIAL CARE.NURSING & RESIDENTIAL CARE
01/08/2022,2442607,649.05,ROSEBERRY CARE CENTRES - ROSEMOUNT,399299,Capital,Capital,Capital,Third Party Payments,505,Private Contractors,5042,Capital,SOCIAL CARE.NURSING & RESIDENTIAL CARE
01/08/2022,2442607,649.05,ROSEBERRY CARE CENTRES - ROSEMOUNT,399299,Capital,Capital,Capital,Third Party Payments,505,Private Contractors,5042,Capital,SOCIAL CARE.NURSING & RESIDENTIAL CARE
01/08/2022,2442607,649.05,ROSEBERRY CARE CENTRES - ROSEMOUNT,399299,Capital,Capital,Capital,Third Party Payments,505,Private Contractors,5042,Capital,SOCIAL CARE.NURSING & RESIDENTIAL CARE
01/08/2022,2442607,686.88,ROSEBERRY CARE CENTRES - ROSEMOUNT,399299,Capital,Capital,Capital,Third Party Payments,505,Private Contractors,5042,Capital,SOCIAL CARE.NURSING & RESIDENTIAL CARE
01/08/2022,2442607,686.88,ROSEBERRY CARE CENTRES - ROSEMOUNT,399299,Capital,Capital,Capital,Third Party Payments,505,Private Contractors,5042,Capital,SOCIAL CARE.NURSING & RESIDENTIAL CARE
01/08/2022,2442607,686.88,ROSEBERRY CARE CENTRES - ROSEMOUNT,399299,Capital,Capital,Capital,Third Party Payments,505,Private Contractors,5042,Capital,SOCIAL CARE.NURSING & RESIDENTIAL CARE
01/08/2022,2442607,686.88,ROSEBERRY CARE CENTRES - ROSEMOUNT,399299,Capital,Capital,Capital,Third Party Payments,505,Private Contractors,5042,Capital,SOCIAL CARE.NURSING & RESIDENTIAL CARE
01/08/2022,2442607,686.88,ROSEBERRY CARE CENTRES - ROSEMOUNT,399299,Capital,Capital,Capital,Third Party Payments,505,Private Contractors,5042,Capital,SOCIAL CARE.NURSING & RESIDENTIAL CARE
01/08/2022,2442607,686.88,ROSEBERRY CARE CENTRES - ROSEMOUNT,399299,Capital,Capital,Capital,Third Party Payments,505,Private Contractors,5042,Capital,SOCIAL CARE.NURSING & RESIDENTIAL CARE
01/08/2022,2442607,686.88,ROSEBERRY CARE CENTRES - ROSEMOUNT,399299,Capital,Capital,Capital,Third Party Payments,505,Private Contractors,5042,Capital,SOCIAL CARE.NURSING & RESIDENTIAL CARE
01/08/2022,2442607,686.88,ROSEBERRY CARE CENTRES - ROSEMOUNT,399299,Capital,Capital,Capital,Third Party Payments,505,Private Contractors,5042,Capital,SOCIAL CARE.NURSING & RESIDENTIAL CARE
01/08/2022,2442607,686.88,ROSEBERRY CARE CENTRES - ROSEMOUNT,399299,Capital,Capital,Capital,Third Party Payments,505,Private Contractors,5042,Capital,SOCIAL CARE.NURSING & RESIDENTIAL CARE
01/08/2022,2442607,686.88,ROSEBERRY CARE CENTRES - ROSEMOUNT,399299,Capital,Capital,Capital,Third Party Payments,505,Private Contractors,5042,Capital,SOCIAL CARE.NURSING & RESIDENTIAL CARE
01/08/2022,2442607,686.88,ROSEBERRY CARE CENTRES - ROSEMOUNT,399299,Capital,Capital,Capital,Third Party Payments,505,Private Contractors,5042,Capital,SOCIAL CARE.NURSING & RESIDENTIAL CARE
01/08/2022,2442626,237.50,Redacted Personal Data,386497,Capital,Capital,Capital,Third Party Payments,505,Other Establishments,5041,Capital,NON INFLUENCIBLE.INDIVIDUAL
01/08/2022,2442627,4.38,Redacted Personal Data,389997,Capital,Capital,Capital,Third Party Payments,505,Other Establishments,5041,Capital,NON INFLUENCIBLE.INDIVIDUAL
01/08/2022,2442627,289.75,Redacted Personal Data,389997,Capital,Capital,Capital,Third Party Payments,505,Other Establishments,5041,Capital,NON INFLUENCIBLE.INDIVIDUAL
01/08/2022,2442627,318.41,Redacted Personal Data,389997,Capital,Capital,Capital,Third Party Payments,505,Other Establishments,5041,Capital,NON INFLUENCIBLE.INDIVIDUAL
01/08/2022,2442627,618.09,Redacted Personal Data,389997,Capital,Capital,Capital,Third Party Payments,505,Other Establishments,5041,Capital,NON INFLUENCIBLE.INDIVIDUAL
01/08/2022,2442627,745.50,Redacted Personal Data,389997,Capital,Capital,Capital,Third Party Payments,505,Other Establishments,5041,Capital,NON INFLUENCIBLE.INDIVIDUAL
01/08/2022,2442635,634.10,Redacted Personal Data,395767,Capital,Capital,Capital,Third Party Payments,505,Other Establishments,5041,Capital,NON INFLUENCIBLE.INDIVIDUAL
01/08/2022,2442641,93.20,Redacted Personal Data,381403,Capital,Capital,Capital,Third Party Payments,505,Other Establishments,5041,Capital,NON INFLUENCIBLE.INDIVIDUAL
01/08/2022,2442641,380.00,Redacted Personal Data,381403,Capital,Capital,Capital,Third Party Payments,505,Other Establishments,5041,Capital,NON INFLUENCIBLE.INDIVIDUAL
01/08/2022,2442641,2746.08,Redacted Personal Data,381403,Capital,Capital,Capital,Third Party Payments,505,Other Establishments,5041,Capital,NON INFLUENCIBLE.INDIVIDUAL
01/08/2022,2442643,762.80,Redacted Personal Data,390088,Capital,Capital,Capital,Third Party Payments,505,Other Establishments,5041,Capital,NON INFLUENCIBLE.INDIVIDUAL
01/08/2022,2442646,399.84,Redacted Personal Data,377362,Capital,Capital,Capital,Third Party Payments,505,Other Establishments,5041,Capital,NON INFLUENCIBLE.INDIVIDUAL
01/08/2022,2442646,1596.00,Redacted Personal Data,377362,Capital,Capital,Capital,Third Party Payments,505,Other Establishments,5041,Capital,NON INFLUENCIBLE.INDIVIDUAL
01/08/2022,2442649,32.80,Redacted Personal Data,377811,Capital,Capital,Capital,Third Party Payments,505,Other Establishments,5041,Capital,NON INFLUENCIBLE.INDIVIDUAL
01/08/2022,2442649,256.50,Redacted Personal Data,377811,Capital,Capital,Capital,Third Party Payments,505,Other Establishments,5041,Capital,NON INFLUENCIBLE.INDIVIDUAL
01/08/2022,2442651,753.27,Redacted Personal Data,395735,Capital,Capital,Capital,Third Party Payments,505,Other Establishments,5041,Capital,NON INFLUENCIBLE.INDIVIDUAL
01/08/2022,2442653,3.75,Redacted Personal Data,380820,Capital,Capital,Capital,Third Party Payments,505,Other Establishments,5041,Capital,NON INFLUENCIBLE.INDIVIDUAL
01/08/2022,2442653,13.18,Redacted Personal Data,380820,Capital,Capital,Capital,Third Party Payments,505,Other Establishments,5041,Capital,NON INFLUENCIBLE.INDIVIDUAL
01/08/2022,2442653,387.25,Redacted Personal Data,380820,Capital,Capital,Capital,Third Party Payments,505,Other Establishments,5041,Capital,NON INFLUENCIBLE.INDIVIDUAL
01/08/2022,2442655,301.83,Redacted Personal Data,395731,Capital,Capital,Capital,Third Party Payments,505,Other Establishments,5041,Capital,NON INFLUENCIBLE.INDIVIDUAL
01/08/2022,2442656,745.50,Redacted Personal Data,374395,Capital,Capital,Capital,Third Party Payments,505,Other Establishments,5041,Capital,NON INFLUENCIBLE.INDIVIDUAL
01/08/2022,2442656,2297.70,Redacted Personal Data,374395,Capital,Capital,Capital,Third Party Payments,505,Other Establishments,5041,Capital,NON INFLUENCIBLE.INDIVIDUAL
01/08/2022,2442659,3.13,Redacted Personal Data,395728,Capital,Capital,Capital,Third Party Payments,505,Other Establishments,5041,Capital,NON INFLUENCIBLE.INDIVIDUAL
01/08/2022,2442659,7.00,Redacted Personal Data,395728,Capital,Capital,Capital,Third Party Payments,505,Other Establishments,5041,Capital,NON INFLUENCIBLE.INDIVIDUAL
01/08/2022,2442659,65.45,Redacted Personal Data,395728,Capital,Capital,Capital,Third Party Payments,505,Other Establishments,5041,Capital,NON INFLUENCIBLE.INDIVIDUAL
01/08/2022,2442659,261.25,Redacted Personal Data,395728,Capital,Capital,Capital,Third Party Payments,505,Other Establishments,5041,Capital,NON INFLUENCIBLE.INDIVIDUAL
01/08/2022,2442661,4.38,Redacted Personal Data,385427,Capital,Capital,Capital,Third Party Payments,505,Other Establishments,5041,Capital,NON INFLUENCIBLE.INDIVIDUAL
01/08/2022,2442661,80.92,Redacted Personal Data,385427,Capital,Capital,Capital,Third Party Payments,505,Other Establishments,5041,Capital,NON INFLUENCIBLE.INDIVIDUAL
01/08/2022,2442661,213.00,Redacted Personal Data,385427,Capital,Capital,Capital,Third Party Payments,505,Other Establishments,5041,Capital,NON INFLUENCIBLE.INDIVIDUAL
01/08/2022,2442661,532.92,Redacted Personal Data,385427,Capital,Capital,Capital,Third Party Payments,505,Other Establishments,5041,Capital,NON INFLUENCIBLE.INDIVIDUAL
01/08/2022,2442664,199.50,Redacted Personal Data,389470,Capital,Capital,Capital,Third Party Payments,505,Other Establishments,5041,Capital,NON INFLUENCIBLE.INDIVIDUAL
01/08/2022,2442664,426.00,Redacted Personal Data,389470,Capital,Capital,Capital,Third Party Payments,505,Other Establishments,5041,Capital,NON INFLUENCIBLE.INDIVIDUAL
01/08/2022,2442664,588.00,Redacted Personal Data,389470,Capital,Capital,Capital,Third Party Payments,505,Other Establishments,5041,Capital,NON INFLUENCIBLE.INDIVIDUAL
01/08/2022,2442667,15.00,Redacted Personal Data,386762,Capital,Capital,Capital,Third Party Payments,505,Other Establishments,5041,Capital,NON INFLUENCIBLE.INDIVIDUAL
01/08/2022,2442667,666.40,Redacted Personal Data,386762,Capital,Capital,Capital,Third Party Payments,505,Other Establishments,5041,Capital,NON INFLUENCIBLE.INDIVIDUAL
01/08/2022,2442736,721.35,NEW BEGINNINGS (N.E.) LTD,337005,Capital,Capital,Capital,Third Party Payments,505,Other Establishments,5041,Capital,SOCIAL CARE.NURSING & RESIDENTIAL CARE
01/08/2022,2442736,721.35,NEW BEGINNINGS (N.E.) LTD,337005,Capital,Capital,Capital,Third Party Payments,505,Other Establishments,5041,Capital,SOCIAL CARE.NURSING & RESIDENTIAL CARE
01/08/2022,2442736,721.35,NEW BEGINNINGS (N.E.) LTD,337005,Capital,Capital,Capital,Third Party Payments,505,Other Establishments,5041,Capital,SOCIAL CARE.NURSING & RESIDENTIAL CARE
01/08/2022,2442736,721.36,NEW BEGINNINGS (N.E.) LTD,337005,Capital,Capital,Capital,Third Party Payments,505,Private Contractors,5042,Capital,SOCIAL CARE.NURSING & RESIDENTIAL CARE
01/08/2022,2442736,721.36,NEW BEGINNINGS (N.E.) LTD,337005,Capital,Capital,Capital,Third Party Payments,505,Private Contractors,5042,Capital,SOCIAL CARE.NURSING & RESIDENTIAL CARE
01/08/2022,2442736,815.85,NEW BEGINNINGS (N.E.) LTD,337005,Capital,Capital,Capital,Third Party Payments,505,Other Establishments,5041,Capital,SOCIAL CARE.NURSING & RESIDENTIAL CARE
01/08/2022,2442736,816.21,NEW BEGINNINGS (N.E.) LTD,337005,Capital,Capital,Capital,Third Party Payments,505,Private Contractors,5042,Capital,SOCIAL CARE.NURSING & RESIDENTIAL CARE
01/08/2022,2442763,268.96,AKARI CARE HOMES LIMITED,387465,,,,,,,,,SOCIAL CARE.NURSING & RESIDENTIAL CARE
01/08/2022,2442763,298.84,AKARI CARE HOMES LIMITED,387465,Capital,Capital,Capital,Third Party Payments,505,Other Establishments,5041,Capital,SOCIAL CARE.NURSING & RESIDENTIAL CARE
01/08/2022,2442763,313.51,AKARI CARE HOMES LIMITED,387465,Capital,Capital,Capital,Third Party Payments,505,Private Contractors,5042,Capital,SOCIAL CARE.NURSING & RESIDENTIAL CARE
01/08/2022,2442763,328.73,AKARI CARE HOMES LIMITED,387465,Capital,Capital,Capital,Third Party Payments,505,Other Establishments,5041,Capital,SOCIAL CARE.NURSING & RESIDENTIAL CARE
01/08/2022,2442763,355.13,AKARI CARE HOMES LIMITED,387465,,,,,,,,,SOCIAL CARE.NURSING & RESIDENTIAL CARE
01/08/2022,2442763,420.83,AKARI CARE HOMES LIMITED,387465,Capital,Capital,Capital,Third Party Payments,505,Private Contractors,5042,Capital,SOCIAL CARE.NURSING & RESIDENTIAL CARE
01/08/2022,2442763,503.81,AKARI CARE HOMES LIMITED,387465,Capital,Capital,Capital,Third Party Payments,505,Other Establishments,5041,Capital,SOCIAL CARE.NURSING & RESIDENTIAL CARE
01/08/2022,2442614,3.13,Redacted Personal Data,388986,Capital,Capital,Capital,Third Party Payments,505,Other Establishments,5041,Capital,NON INFLUENCIBLE.INDIVIDUAL
01/08/2022,2442614,13.16,Redacted Personal Data,388986,Capital,Capital,Capital,Third Party Payments,505,Other Establishments,5041,Capital,NON INFLUENCIBLE.INDIVIDUAL
01/08/2022,2442614,465.50,Redacted Personal Data,388986,Capital,Capital,Capital,Third Party Payments,505,Other Establishments,5041,Capital,NON INFLUENCIBLE.INDIVIDUAL
01/08/2022,2442615,884.88,Redacted Personal Data,395610,Capital,Capital,Capital,Third Party Payments,505,Other Establishments,5041,Capital,NON INFLUENCIBLE.INDIVIDUAL
01/08/2022,2442616,3.13,Redacted Personal Data,395609,Capital,Capital,Capital,Third Party Payments,505,Other Establishments,5041,Capital,NON INFLUENCIBLE.INDIVIDUAL
01/08/2022,2442616,107.10,Redacted Personal Data,395609,Capital,Capital,Capital,Third Party Payments,505,Other Establishments,5041,Capital,NON INFLUENCIBLE.INDIVIDUAL
01/08/2022,2442616,190.70,Redacted Personal Data,395609,Capital,Capital,Capital,Third Party Payments,505,Other Establishments,5041,Capital,NON INFLUENCIBLE.INDIVIDUAL
01/08/2022,2442616,427.50,Redacted Personal Data,395609,Capital,Capital,Capital,Third Party Payments,505,Other Establishments,5041,Capital,NON INFLUENCIBLE.INDIVIDUAL
01/08/2022,2442618,3.13,Redacted Personal Data,395596,Capital,Capital,Capital,Third Party Payments,505,Other Establishments,5041,Capital,NON INFLUENCIBLE.INDIVIDUAL
01/08/2022,2442618,282.63,Redacted Personal Data,395596,Capital,Capital,Capital,Third Party Payments,505,Other Establishments,5041,Capital,NON INFLUENCIBLE.INDIVIDUAL
01/08/2022,2442619,285.00,Redacted Personal Data,395592,Capital,Capital,Capital,Third Party Payments,505,Other Establishments,5041,Capital,NON INFLUENCIBLE.INDIVIDUAL
01/08/2022,2442620,371.80,Redacted Personal Data,395590,Capital,Capital,Capital,Third Party Payments,505,Other Establishments,5041,Capital,NON INFLUENCIBLE.INDIVIDUAL
01/08/2022,2442621,291.38,LENORE SPECIALIST CARE LTD,395565,Capital,Capital,Capital,Third Party Payments,505,Other Establishments,5041,Capital,SOCIAL CARE.INDEPENDENT SUPPORTED LIVING
01/08/2022,2442621,295.54,LENORE SPECIALIST CARE LTD,395565,Capital,Capital,Capital,Third Party Payments,505,Other Establishments,5041,Capital,SOCIAL CARE.INDEPENDENT SUPPORTED LIVING
01/08/2022,2442621,299.70,LENORE SPECIALIST CARE LTD,395565,Capital,Capital,Capital,Third Party Payments,505,Other Establishments,5041,Capital,SOCIAL CARE.INDEPENDENT SUPPORTED LIVING
01/08/2022,2442621,349.65,LENORE SPECIALIST CARE LTD,395565,Capital,Capital,Capital,Third Party Payments,505,Other Establishments,5041,Capital,SOCIAL CARE.INDEPENDENT SUPPORTED LIVING
01/08/2022,2442621,349.65,LENORE SPECIALIST CARE LTD,395565,Capital,Capital,Capital,Third Party Payments,505,Other Establishments,5041,Capital,SOCIAL CARE.INDEPENDENT SUPPORTED LIVING
01/08/2022,2442621,388.58,LENORE SPECIALIST CARE LTD,395565,Capital,Capital,Capital,Third Party Payments,505,Other Establishments,5041,Capital,SOCIAL CARE.INDEPENDENT SUPPORTED LIVING
01/08/2022,2442621,388.58,LENORE SPECIALIST CARE LTD,395565,Capital,Capital,Capital,Third Party Payments,505,Other Establishments,5041,Capital,SOCIAL CARE.INDEPENDENT SUPPORTED LIVING
01/08/2022,2442621,388.58,LENORE SPECIALIST CARE LTD,395565,Capital,Capital,Capital,Third Party Payments,505,Other Establishments,5041,Capital,SOCIAL CARE.INDEPENDENT SUPPORTED LIVING
01/08/2022,2442621,432.90,LENORE SPECIALIST CARE LTD,395565,Capital,Capital,Capital,Third Party Payments,505,Other Establishments,5041,Capital,SOCIAL CARE.INDEPENDENT SUPPORTED LIVING
01/08/2022,2442621,582.75,LENORE SPECIALIST CARE LTD,395565,Capital,Capital,Capital,Third Party Payments,505,Other Establishments,5041,Capital,SOCIAL CARE.INDEPENDENT SUPPORTED LIVING
01/08/2022,2442621,657.37,LENORE SPECIALIST CARE LTD,395565,Capital,Capital,Capital,Third Party Payments,505,Private Contractors,5042,Capital,SOCIAL CARE.INDEPENDENT SUPPORTED LIVING
01/08/2022,2442621,721.35,LENORE SPECIALIST CARE LTD,395565,Capital,Capital,Capital,Third Party Payments,505,Other Establishments,5041,Capital,SOCIAL CARE.INDEPENDENT SUPPORTED LIVING
01/08/2022,2442621,965.70,LENORE SPECIALIST CARE LTD,395565,Capital,Capital,Capital,Third Party Payments,505,Other Establishments,5041,Capital,SOCIAL CARE.INDEPENDENT SUPPORTED LIVING
01/08/2022,2442621,1165.50,LENORE SPECIALIST CARE LTD,395565,Capital,Capital,Capital,Third Party Payments,505,Other Establishments,5041,Capital,SOCIAL CARE.INDEPENDENT SUPPORTED LIVING
01/08/2022,2442621,1290.38,LENORE SPECIALIST CARE LTD,395565,Capital,Capital,Capital,Third Party Payments,505,Other Establishments,5041,Capital,SOCIAL CARE.INDEPENDENT SUPPORTED LIVING
01/08/2022,2442621,1398.60,LENORE SPECIALIST CARE LTD,395565,Capital,Capital,Capital,Third Party Payments,505,Other Establishments,5041,Capital,SOCIAL CARE.INDEPENDENT SUPPORTED LIVING
01/08/2022,2442621,1487.64,LENORE SPECIALIST CARE LTD,395565,Capital,Capital,Capital,Third Party Payments,505,Private Contractors,5042,Capital,SOCIAL CARE.INDEPENDENT SUPPORTED LIVING
01/08/2022,2442621,2031.30,LENORE SPECIALIST CARE LTD,395565,Capital,Capital,Capital,Third Party Payments,505,Other Establishments,5041,Capital,SOCIAL CARE.INDEPENDENT SUPPORTED LIVING
01/08/2022,2442624,4.95,Redacted Personal Data,385051,Capital,Adult Social Care,101,Third Party Payments,505,Other Establishments,5041,Capital,NON INFLUENCIBLE.INDIVIDUAL
01/08/2022,2442624,79.73,Redacted Personal Data,385051,Capital,Adult Social Care,101,Third Party Payments,505,Other Establishments,5041,Capital,NON INFLUENCIBLE.INDIVIDUAL
01/08/2022,2442624,121.89,Redacted Personal Data,385051,Capital,Capital,Capital,Third Party Payments,505,Other Establishments,5041,Capital,NON INFLUENCIBLE.INDIVIDUAL
01/08/2022,2442624,318.25,Redacted Personal Data,385051,Capital,Capital,Capital,Third Party Payments,505,Other Establishments,5041,Capital,NON INFLUENCIBLE.INDIVIDUAL
01/08/2022,2442625,-2420.74,Redacted Personal Data,385754,,,,,,,,,NON INFLUENCIBLE.INDIVIDUAL
01/08/2022,2442625,9.32,Redacted Personal Data,385754,Capital,Capital,Capital,Third Party Payments,505,Other Establishments,5041,Capital,NON INFLUENCIBLE.INDIVIDUAL
01/08/2022,2442625,9.32,Redacted Personal Data,385754,Capital,Capital,Capital,Third Party Payments,505,Other Establishments,5041,Capital,NON INFLUENCIBLE.INDIVIDUAL
01/08/2022,2442625,9.32,Redacted Personal Data,385754,Capital,Capital,Capital,Third Party Payments,505,Other Establishments,5041,Capital,NON INFLUENCIBLE.INDIVIDUAL
01/08/2022,2442625,9.32,Redacted Personal Data,385754,Capital,Capital,Capital,Third Party Payments,505,Other Establishments,5041,Capital,NON INFLUENCIBLE.INDIVIDUAL
01/08/2022,2442625,9.32,Redacted Personal Data,385754,Capital,Capital,Capital,Third Party Payments,505,Other Establishments,5041,Capital,NON INFLUENCIBLE.INDIVIDUAL
01/08/2022,2442625,9.32,Redacted Personal Data,385754,Capital,Capital,Capital,Third Party Payments,505,Other Establishments,5041,Capital,NON INFLUENCIBLE.INDIVIDUAL
01/08/2022,2442625,9.32,Redacted Personal Data,385754,Capital,Capital,Capital,Third Party Payments,505,Other Establishments,5041,Capital,NON INFLUENCIBLE.INDIVIDUAL
01/08/2022,2442625,99.00,Redacted Personal Data,385754,,,,,,,,,NON INFLUENCIBLE.INDIVIDUAL
01/08/2022,2442625,250.00,Redacted Personal Data,385754,,,,,,,,,NON INFLUENCIBLE.INDIVIDUAL
01/08/2022,2442625,252.89,Redacted Personal Data,385754,Capital,Capital,Capital,Third Party Payments,505,Other Establishments,5041,Capital,NON INFLUENCIBLE.INDIVIDUAL
01/08/2022,2442625,252.89,Redacted Personal Data,385754,Capital,Capital,Capital,Third Party Payments,505,Other Establishments,5041,Capital,NON INFLUENCIBLE.INDIVIDUAL
01/08/2022,2442625,252.89,Redacted Personal Data,385754,Capital,Capital,Capital,Third Party Payments,505,Other Establishments,5041,Capital,NON INFLUENCIBLE.INDIVIDUAL
01/08/2022,2442625,252.89,Redacted Personal Data,385754,Capital,Capital,Capital,Third Party Payments,505,Other Establishments,5041,Capital,NON INFLUENCIBLE.INDIVIDUAL
01/08/2022,2442625,252.89,Redacted Personal Data,385754,Capital,Capital,Capital,Third Party Payments,505,Other Establishments,5041,Capital,NON INFLUENCIBLE.INDIVIDUAL
01/08/2022,2442625,252.89,Redacted Personal Data,385754,Capital,Capital,Capital,Third Party Payments,505,Other Establishments,5041,Capital,NON INFLUENCIBLE.INDIVIDUAL
01/08/2022,2442625,252.89,Redacted Personal Data,385754,Capital,Capital,Capital,Third Party Payments,505,Other Establishments,5041,Capital,NON INFLUENCIBLE.INDIVIDUAL
01/08/2022,2442625,279.60,Redacted Personal Data,385754,,,,,,,,,NON INFLUENCIBLE.INDIVIDUAL
01/08/2022,2442626,59.50,Redacted Personal Data,386497,Capital,Capital,Capital,Third Party Payments,505,Other Establishments,5041,Capital,NON INFLUENCIBLE.INDIVIDUAL
01/08/2022,2442668,168.32,Redacted Personal Data,395719,Capital,Adult Social Care,101,Third Party Payments,505,Other Establishments,5041,Capital,NON INFLUENCIBLE.INDIVIDUAL
01/08/2022,2442668,672.00,Redacted Personal Data,395719,Capital,Adult Social Care,101,Third Party Payments,505,Other Establishments,5041,Capital,NON INFLUENCIBLE.INDIVIDUAL
01/08/2022,2442669,604.10,Redacted Personal Data,395718,Capital,Capital,Capital,Third Party Payments,505,Other Establishments,5041,Capital,NON INFLUENCIBLE.INDIVIDUAL
01/08/2022,2442669,1812.30,Redacted Personal Data,395718,Capital,Capital,Capital,Third Party Payments,505,Other Establishments,5041,Capital,NON INFLUENCIBLE.INDIVIDUAL
01/08/2022,2442669,3352.69,Redacted Personal Data,395718,Capital,Capital,Capital,Third Party Payments,505,Other Establishments,5041,Capital,NON INFLUENCIBLE.INDIVIDUAL
01/08/2022,2442670,173.25,Redacted Personal Data,336601,Capital,Capital,Capital,Third Party Payments,505,Other Establishments,5041,Capital,NON INFLUENCIBLE.INDIVIDUAL
01/08/2022,2442670,337.16,Redacted Personal Data,336601,Capital,Capital,Capital,Third Party Payments,505,Other Establishments,5041,Capital,NON INFLUENCIBLE.INDIVIDUAL
01/08/2022,2442670,1173.25,Redacted Personal Data,336601,Capital,Capital,Capital,Third Party Payments,505,Other Establishments,5041,Capital,NON INFLUENCIBLE.INDIVIDUAL
01/08/2022,2442671,359.66,Redacted Personal Data,386090,Capital,Capital,Capital,Third Party Payments,505,Other Establishments,5041,Capital,NON INFLUENCIBLE.INDIVIDUAL
01/08/2022,2442672,1348.40,Redacted Personal Data,385669,Capital,Capital,Capital,Third Party Payments,505,Other Establishments,5041,Capital,NON INFLUENCIBLE.INDIVIDUAL
01/08/2022,2442674,309.55,Redacted Personal Data,386997,Capital,Capital,Capital,Third Party Payments,505,Other Establishments,5041,Capital,NON INFLUENCIBLE.INDIVIDUAL
01/08/2022,2442676,253.20,Redacted Personal Data,395701,Capital,Capital,Capital,Third Party Payments,505,Other Establishments,5041,Capital,NON INFLUENCIBLE.INDIVIDUAL
01/08/2022,2442679,183.26,Redacted Personal Data,395694,Capital,Capital,Capital,Third Party Payments,505,Other Establishments,5041,Capital,NON INFLUENCIBLE.INDIVIDUAL
01/08/2022,2442679,731.50,Redacted Personal Data,395694,Capital,Capital,Capital,Third Party Payments,505,Other Establishments,5041,Capital,NON INFLUENCIBLE.INDIVIDUAL
01/08/2022,2442685,590.40,Redacted Personal Data,395670,Capital,Capital,Capital,Third Party Payments,505,Other Establishments,5041,Capital,NON INFLUENCIBLE.INDIVIDUAL
01/08/2022,2442688,255.09,Redacted Personal Data,381173,Capital,Capital,Capital,Third Party Payments,505,Other Establishments,5041,Capital,NON INFLUENCIBLE.INDIVIDUAL
01/08/2022,2442689,534.00,Redacted Personal Data,339103,Capital,Capital,Capital,Third Party Payments,505,Other Establishments,5041,Capital,NON INFLUENCIBLE.INDIVIDUAL
01/08/2022,2442690,79.73,Redacted Personal Data,384396,Capital,Capital,Capital,Third Party Payments,505,Other Establishments,5041,Capital,NON INFLUENCIBLE.INDIVIDUAL
01/08/2022,2442690,318.25,Redacted Personal Data,384396,Capital,Capital,Capital,Third Party Payments,505,Other Establishments,5041,Capital,NON INFLUENCIBLE.INDIVIDUAL
01/08/2022,2442692,23.80,Redacted Personal Data,369792,Capital,Capital,Capital,Third Party Payments,505,Other Establishments,5041,Capital,NON INFLUENCIBLE.INDIVIDUAL
01/08/2022,2442692,332.40,Redacted Personal Data,369792,Capital,Capital,Capital,Third Party Payments,505,Other Establishments,5041,Capital,NON INFLUENCIBLE.INDIVIDUAL
01/08/2022,2442696,3.75,Redacted Personal Data,385580,Capital,Capital,Capital,Third Party Payments,505,Other Establishments,5041,Capital,NON INFLUENCIBLE.INDIVIDUAL
01/08/2022,2442696,66.64,Redacted Personal Data,385580,Capital,Capital,Capital,Third Party Payments,505,Other Establishments,5041,Capital,NON INFLUENCIBLE.INDIVIDUAL
01/08/2022,2442696,223.51,Redacted Personal Data,385580,Capital,Capital,Capital,Third Party Payments,505,Other Establishments,5041,Capital,NON INFLUENCIBLE.INDIVIDUAL
01/08/2022,2442696,266.00,Redacted Personal Data,385580,Capital,Capital,Capital,Third Party Payments,505,Other Establishments,5041,Capital,NON INFLUENCIBLE.INDIVIDUAL
01/08/2022,2442696,683.50,Redacted Personal Data,385580,Capital,Capital,Capital,Third Party Payments,505,Other Establishments,5041,Capital,NON INFLUENCIBLE.INDIVIDUAL
01/08/2022,2442697,654.89,CROWN CARE GROUP,395635,Capital,Capital,Capital,Third Party Payments,505,Private Contractors,5042,Capital,SOCIAL CARE.NURSING & RESIDENTIAL CARE
01/08/2022,2442701,99.96,Redacted Personal Data,375753,Capital,Capital,Capital,Third Party Payments,505,Other Establishments,5041,Capital,NON INFLUENCIBLE.INDIVIDUAL
01/08/2022,2442701,399.00,Redacted Personal Data,375753,Capital,Capital,Capital,Third Party Payments,505,Other Establishments,5041,Capital,NON INFLUENCIBLE.INDIVIDUAL
01/08/2022,2442708,721.35,Redacted Personal Data,395813,Capital,Capital,Capital,Third Party Payments,505,Other Establishments,5041,Capital,NON INFLUENCIBLE.INDIVIDUAL
01/08/2022,2442708,1631.70,Redacted Personal Data,395813,Capital,Capital,Capital,Third Party Payments,505,Other Establishments,5041,Capital,NON INFLUENCIBLE.INDIVIDUAL
01/08/2022,2442710,303.30,Redacted Personal Data,395808,Capital,Capital,Capital,Third Party Payments,505,Other Establishments,5041,Capital,NON INFLUENCIBLE.INDIVIDUAL
01/08/2022,2442711,399.84,Redacted Personal Data,395806,Capital,Capital,Capital,Third Party Payments,505,Other Establishments,5041,Capital,NON INFLUENCIBLE.INDIVIDUAL
01/08/2022,2442711,1596.00,Redacted Personal Data,395806,Capital,Capital,Capital,Third Party Payments,505,Other Establishments,5041,Capital,NON INFLUENCIBLE.INDIVIDUAL
01/08/2022,2442719,559.40,Redacted Personal Data,395631,Capital,Capital,Capital,Third Party Payments,505,Other Establishments,5041,Capital,NON INFLUENCIBLE.INDIVIDUAL
01/08/2022,2442720,180.93,Redacted Personal Data,388340,Capital,Capital,Capital,Third Party Payments,505,Other Establishments,5041,Capital,NON INFLUENCIBLE.INDIVIDUAL
01/08/2022,2442720,342.00,Redacted Personal Data,388340,Capital,Capital,Capital,Third Party Payments,505,Other Establishments,5041,Capital,NON INFLUENCIBLE.INDIVIDUAL
01/08/2022,2442720,381.00,Redacted Personal Data,388340,Capital,Capital,Capital,Third Party Payments,505,Other Establishments,5041,Capital,NON INFLUENCIBLE.INDIVIDUAL
01/08/2022,2442721,1121.60,Redacted Personal Data,387773,Capital,Capital,Capital,Third Party Payments,505,Other Establishments,5041,Capital,NON INFLUENCIBLE.INDIVIDUAL
01/08/2022,2442722,90.00,Redacted Personal Data,388501,Capital,Capital,Capital,Third Party Payments,505,Other Establishments,5041,Capital,NON INFLUENCIBLE.INDIVIDUAL
01/08/2022,2442722,360.00,Redacted Personal Data,388501,Capital,Capital,Capital,Third Party Payments,505,Other Establishments,5041,Capital,NON INFLUENCIBLE.INDIVIDUAL
01/08/2022,2442723,3.75,Redacted Personal Data,395618,Capital,Capital,Capital,Third Party Payments,505,Other Establishments,5041,Capital,NON INFLUENCIBLE.INDIVIDUAL
01/08/2022,2442723,141.61,Redacted Personal Data,395618,Capital,Capital,Capital,Third Party Payments,505,Other Establishments,5041,Capital,NON INFLUENCIBLE.INDIVIDUAL
01/08/2022,2442723,565.25,Redacted Personal Data,395618,Capital,Capital,Capital,Third Party Payments,505,Other Establishments,5041,Capital,NON INFLUENCIBLE.INDIVIDUAL
01/08/2022,2442726,621.66,CRAMLINGTON HOUSE LTD,389741,Capital,Adult Social Care,101,Third Party Payments,505,Private Contractors,5042,Capital,SOCIAL CARE.NURSING & RESIDENTIAL CARE
01/08/2022,2442726,621.66,CRAMLINGTON HOUSE LTD,389741,Capital,Adult Social Care,101,Third Party Payments,505,Private Contractors,5042,Capital,SOCIAL CARE.NURSING & RESIDENTIAL CARE
01/08/2022,2442726,621.66,CRAMLINGTON HOUSE LTD,389741,Capital,Adult Social Care,101,Third Party Payments,505,Private Contractors,5042,Capital,SOCIAL CARE.NURSING & RESIDENTIAL CARE
01/08/2022,2442726,621.66,CRAMLINGTON HOUSE LTD,389741,Capital,Adult Social Care,101,Third Party Payments,505,Private Contractors,5042,Capital,SOCIAL CARE.NURSING & RESIDENTIAL CARE
01/08/2022,2442726,621.66,CRAMLINGTON HOUSE LTD,389741,Capital,Adult Social Care,101,Third Party Payments,505,Private Contractors,5042,Capital,SOCIAL CARE.NURSING & RESIDENTIAL CARE
01/08/2022,2442726,637.47,CRAMLINGTON HOUSE LTD,389741,Capital,Adult Social Care,101,Third Party Payments,505,Private Contractors,5042,Capital,SOCIAL CARE.NURSING & RESIDENTIAL CARE
01/08/2022,2442726,637.47,CRAMLINGTON HOUSE LTD,389741,Capital,Capital,Capital,Third Party Payments,505,Private Contractors,5042,Capital,SOCIAL CARE.NURSING & RESIDENTIAL CARE
01/08/2022,2442726,671.84,CRAMLINGTON HOUSE LTD,389741,Capital,Capital,Capital,Third Party Payments,505,Private Contractors,5042,Capital,SOCIAL CARE.NURSING & RESIDENTIAL CARE
01/08/2022,2442726,671.84,CRAMLINGTON HOUSE LTD,389741,Capital,Capital,Capital,Third Party Payments,505,Private Contractors,5042,Capital,SOCIAL CARE.NURSING & RESIDENTIAL CARE
01/08/2022,2442726,681.56,CRAMLINGTON HOUSE LTD,389741,Capital,Capital,Capital,Third Party Payments,505,Private Contractors,5042,Capital,SOCIAL CARE.NURSING & RESIDENTIAL CARE
01/08/2022,2442726,690.54,CRAMLINGTON HOUSE LTD,389741,Capital,Capital,Capital,Third Party Payments,505,Private Contractors,5042,Capital,SOCIAL CARE.NURSING & RESIDENTIAL CARE
01/08/2022,2442726,690.54,CRAMLINGTON HOUSE LTD,389741,Capital,Capital,Capital,Third Party Payments,505,Private Contractors,5042,Capital,SOCIAL CARE.NURSING & RESIDENTIAL CARE
01/08/2022,2442726,690.54,CRAMLINGTON HOUSE LTD,389741,Capital,Capital,Capital,Third Party Payments,505,Private Contractors,5042,Capital,SOCIAL CARE.NURSING & RESIDENTIAL CARE
01/08/2022,2442726,690.54,CRAMLINGTON HOUSE LTD,389741,Capital,Capital,Capital,Third Party Payments,505,Private Contractors,5042,Capital,SOCIAL CARE.NURSING & RESIDENTIAL CARE
01/08/2022,2442726,690.54,CRAMLINGTON HOUSE LTD,389741,Capital,Capital,Capital,Third Party Payments,505,Private Contractors,5042,Capital,SOCIAL CARE.NURSING & RESIDENTIAL CARE
01/08/2022,2442726,690.54,CRAMLINGTON HOUSE LTD,389741,Capital,Capital,Capital,Third Party Payments,505,Private Contractors,5042,Capital,SOCIAL CARE.NURSING & RESIDENTIAL CARE
01/08/2022,2442726,690.54,CRAMLINGTON HOUSE LTD,389741,Capital,Capital,Capital,Third Party Payments,505,Private Contractors,5042,Capital,SOCIAL CARE.NURSING & RESIDENTIAL CARE
01/08/2022,2442726,690.54,CRAMLINGTON HOUSE LTD,389741,Capital,Capital,Capital,Third Party Payments,505,Private Contractors,5042,Capital,SOCIAL CARE.NURSING & RESIDENTIAL CARE
01/08/2022,2442726,690.54,CRAMLINGTON HOUSE LTD,389741,Capital,Capital,Capital,Third Party Payments,505,Private Contractors,5042,Capital,SOCIAL CARE.NURSING & RESIDENTIAL CARE
01/08/2022,2442726,690.54,CRAMLINGTON HOUSE LTD,389741,Capital,Capital,Capital,Third Party Payments,505,Private Contractors,5042,Capital,SOCIAL CARE.NURSING & RESIDENTIAL CARE
01/08/2022,2442726,690.54,CRAMLINGTON HOUSE LTD,389741,Capital,Capital,Capital,Third Party Payments,505,Private Contractors,5042,Capital,SOCIAL CARE.NURSING & RESIDENTIAL CARE
01/08/2022,2442726,690.54,CRAMLINGTON HOUSE LTD,389741,Capital,Capital,Capital,Third Party Payments,505,Private Contractors,5042,Capital,SOCIAL CARE.NURSING & RESIDENTIAL CARE
01/08/2022,2442726,690.54,CRAMLINGTON HOUSE LTD,389741,Capital,Capital,Capital,Third Party Payments,505,Private Contractors,5042,Capital,SOCIAL CARE.NURSING & RESIDENTIAL CARE
01/08/2022,2442726,690.54,CRAMLINGTON HOUSE LTD,389741,Capital,Capital,Capital,Third Party Payments,505,Private Contractors,5042,Capital,SOCIAL CARE.NURSING & RESIDENTIAL CARE
01/08/2022,2442726,690.54,CRAMLINGTON HOUSE LTD,389741,Capital,Capital,Capital,Third Party Payments,505,Private Contractors,5042,Capital,SOCIAL CARE.NURSING & RESIDENTIAL CARE
01/08/2022,2442726,690.54,CRAMLINGTON HOUSE LTD,389741,Capital,Capital,Capital,Third Party Payments,505,Private Contractors,5042,Capital,SOCIAL CARE.NURSING & RESIDENTIAL CARE
01/08/2022,2442726,690.54,CRAMLINGTON HOUSE LTD,389741,Capital,Capital,Capital,Third Party Payments,505,Private Contractors,5042,Capital,SOCIAL CARE.NURSING & RESIDENTIAL CARE
01/08/2022,2442726,729.91,CRAMLINGTON HOUSE LTD,389741,Capital,Capital,Capital,Third Party Payments,505,Private Contractors,5042,Capital,SOCIAL CARE.NURSING & RESIDENTIAL CARE
01/08/2022,2442726,729.91,CRAMLINGTON HOUSE LTD,389741,Capital,Capital,Capital,Third Party Payments,505,Private Contractors,5042,Capital,SOCIAL CARE.NURSING & RESIDENTIAL CARE
01/08/2022,2442726,729.91,CRAMLINGTON HOUSE LTD,389741,Capital,Capital,Capital,Third Party Payments,505,Private Contractors,5042,Capital,SOCIAL CARE.NURSING & RESIDENTIAL CARE
01/08/2022,2442726,729.91,CRAMLINGTON HOUSE LTD,389741,Capital,Capital,Capital,Third Party Payments,505,Private Contractors,5042,Capital,SOCIAL CARE.NURSING & RESIDENTIAL CARE
01/08/2022,2442726,729.91,CRAMLINGTON HOUSE LTD,389741,Capital,Capital,Capital,Third Party Payments,505,Private Contractors,5042,Capital,SOCIAL CARE.NURSING & RESIDENTIAL CARE
01/08/2022,2442726,729.91,CRAMLINGTON HOUSE LTD,389741,Capital,Capital,Capital,Third Party Payments,505,Private Contractors,5042,Capital,SOCIAL CARE.NURSING & RESIDENTIAL CARE
01/08/2022,2442726,729.91,CRAMLINGTON HOUSE LTD,389741,Capital,Capital,Capital,Third Party Payments,505,Private Contractors,5042,Capital,SOCIAL CARE.NURSING & RESIDENTIAL CARE
01/08/2022,2442726,729.91,CRAMLINGTON HOUSE LTD,389741,Capital,Capital,Capital,Third Party Payments,505,Private Contractors,5042,Capital,SOCIAL CARE.NURSING & RESIDENTIAL CARE
01/08/2022,2442726,729.91,CRAMLINGTON HOUSE LTD,389741,Capital,Capital,Capital,Third Party Payments,505,Private Contractors,5042,Capital,SOCIAL CARE.NURSING & RESIDENTIAL CARE
01/08/2022,2442726,729.91,CRAMLINGTON HOUSE LTD,389741,Capital,Capital,Capital,Third Party Payments,505,Private Contractors,5042,Capital,SOCIAL CARE.NURSING & RESIDENTIAL CARE
01/08/2022,2442726,729.91,CRAMLINGTON HOUSE LTD,389741,Capital,Capital,Capital,Third Party Payments,505,Private Contractors,5042,Capital,SOCIAL CARE.NURSING & RESIDENTIAL CARE
01/08/2022,2442726,729.91,CRAMLINGTON HOUSE LTD,389741,Capital,Capital,Capital,Third Party Payments,505,Private Contractors,5042,Capital,SOCIAL CARE.NURSING & RESIDENTIAL CARE
01/08/2022,2442726,729.91,CRAMLINGTON HOUSE LTD,389741,Capital,Capital,Capital,Third Party Payments,505,Private Contractors,5042,Capital,SOCIAL CARE.NURSING & RESIDENTIAL CARE
01/08/2022,2442726,729.91,CRAMLINGTON HOUSE LTD,389741,Capital,Capital,Capital,Third Party Payments,505,Private Contractors,5042,Capital,SOCIAL CARE.NURSING & RESIDENTIAL CARE
01/08/2022,2442727,676.71,PARKSIDE CARE LTD,389720,Capital,Capital,Capital,Third Party Payments,505,Private Contractors,5042,Capital,SOCIAL CARE.NURSING & RESIDENTIAL CARE
01/08/2022,2442728,336.00,PLACES FOR PEOPLE INDIVIDUAL SUPPORT,014730,Capital,Capital,Capital,Third Party Payments,505,Private Contractors,5042,Capital,SOCIAL CARE.CARE SERVICES
01/08/2022,2442730,23.56,LEARNING DISABILITIES FEDERATION,350895,Capital,Capital,Capital,Third Party Payments,505,Other Establishments,5041,Capital,SOCIAL CARE.CARE SERVICES
01/08/2022,2442730,41.25,LEARNING DISABILITIES FEDERATION,350895,Capital,Capital,Capital,Third Party Payments,505,Other Establishments,5041,Capital,SOCIAL CARE.CARE SERVICES
01/08/2022,2442730,43.76,LEARNING DISABILITIES FEDERATION,350895,Capital,Capital,Capital,Third Party Payments,505,Other Establishments,5041,Capital,SOCIAL CARE.CARE SERVICES
01/08/2022,2442730,59.91,LEARNING DISABILITIES FEDERATION,350895,Capital,Capital,Capital,Third Party Payments,505,Other Establishments,5041,Capital,SOCIAL CARE.CARE SERVICES
01/08/2022,2442730,93.64,LEARNING DISABILITIES FEDERATION,350895,Capital,Capital,Capital,Third Party Payments,505,Other Establishments,5041,Capital,SOCIAL CARE.CARE SERVICES
01/08/2022,2442730,119.82,LEARNING DISABILITIES FEDERATION,350895,Capital,Capital,Capital,Third Party Payments,505,Other Establishments,5041,Capital,SOCIAL CARE.CARE SERVICES
01/08/2022,2442730,209.81,LEARNING DISABILITIES FEDERATION,350895,Capital,Capital,Capital,Third Party Payments,505,Other Establishments,5041,Capital,SOCIAL CARE.CARE SERVICES
01/08/2022,2442730,237.30,LEARNING DISABILITIES FEDERATION,350895,Capital,Capital,Capital,Third Party Payments,505,Other Establishments,5041,Capital,SOCIAL CARE.CARE SERVICES
01/08/2022,2442730,254.25,LEARNING DISABILITIES FEDERATION,350895,Capital,Capital,Capital,Third Party Payments,505,Other Establishments,5041,Capital,SOCIAL CARE.CARE SERVICES
01/08/2022,2442730,271.20,LEARNING DISABILITIES FEDERATION,350895,Capital,Capital,Capital,Third Party Payments,505,Other Establishments,5041,Capital,SOCIAL CARE.CARE SERVICES
01/08/2022,2442730,271.20,LEARNING DISABILITIES FEDERATION,350895,Capital,Capital,Capital,Third Party Payments,505,Other Establishments,5041,Capital,SOCIAL CARE.CARE SERVICES
01/08/2022,2442730,271.20,LEARNING DISABILITIES FEDERATION,350895,Capital,Capital,Capital,Third Party Payments,505,Other Establishments,5041,Capital,SOCIAL CARE.CARE SERVICES
01/08/2022,2442730,279.68,LEARNING DISABILITIES FEDERATION,350895,Capital,Capital,Capital,Third Party Payments,505,Other Establishments,5041,Capital,SOCIAL CARE.CARE SERVICES
01/08/2022,2442730,305.10,LEARNING DISABILITIES FEDERATION,350895,Capital,Capital,Capital,Third Party Payments,505,Other Establishments,5041,Capital,SOCIAL CARE.CARE SERVICES
01/08/2022,2442730,305.10,LEARNING DISABILITIES FEDERATION,350895,Capital,Capital,Capital,Third Party Payments,505,Other Establishments,5041,Capital,SOCIAL CARE.CARE SERVICES
01/08/2022,2442730,322.05,LEARNING DISABILITIES FEDERATION,350895,Capital,Capital,Capital,Third Party Payments,505,Other Establishments,5041,Capital,SOCIAL CARE.CARE SERVICES
01/08/2022,2442730,322.05,LEARNING DISABILITIES FEDERATION,350895,Capital,Capital,Capital,Third Party Payments,505,Other Establishments,5041,Capital,SOCIAL CARE.CARE SERVICES
01/08/2022,2442730,322.05,LEARNING DISABILITIES FEDERATION,350895,Capital,Capital,Capital,Third Party Payments,505,Other Establishments,5041,Capital,SOCIAL CARE.CARE SERVICES
01/08/2022,2442730,372.90,LEARNING DISABILITIES FEDERATION,350895,Capital,Capital,Capital,Third Party Payments,505,Other Establishments,5041,Capital,SOCIAL CARE.CARE SERVICES
01/08/2022,2442730,406.80,LEARNING DISABILITIES FEDERATION,350895,Capital,Capital,Capital,Third Party Payments,505,Other Establishments,5041,Capital,SOCIAL CARE.CARE SERVICES
01/08/2022,2442730,466.13,LEARNING DISABILITIES FEDERATION,350895,Capital,Capital,Capital,Third Party Payments,505,Other Establishments,5041,Capital,SOCIAL CARE.CARE SERVICES
01/08/2022,2442730,593.25,LEARNING DISABILITIES FEDERATION,350895,Capital,Capital,Capital,Third Party Payments,505,Other Establishments,5041,Capital,SOCIAL CARE.CARE SERVICES
01/08/2022,2442732,180.34,ST ANNE'S COMMUNITY SERVICES,366247,Capital,Capital,Capital,Third Party Payments,505,Private Contractors,5042,Capital,SOCIAL CARE.DAY CARE
01/08/2022,2442732,180.34,ST ANNE'S COMMUNITY SERVICES,366247,Capital,Capital,Capital,Third Party Payments,505,Private Contractors,5042,Capital,SOCIAL CARE.DAY CARE
01/08/2022,2442732,180.34,ST ANNE'S COMMUNITY SERVICES,366247,Capital,Capital,Capital,Third Party Payments,505,Private Contractors,5042,Capital,SOCIAL CARE.DAY CARE
01/08/2022,2442732,180.34,ST ANNE'S COMMUNITY SERVICES,366247,Capital,Capital,Capital,Third Party Payments,505,Private Contractors,5042,Capital,SOCIAL CARE.DAY CARE
01/08/2022,2442732,266.57,ST ANNE'S COMMUNITY SERVICES,366247,Capital,Capital,Capital,Third Party Payments,505,Private Contractors,5042,Capital,SOCIAL CARE.DAY CARE
01/08/2022,2442732,402.62,ST ANNE'S COMMUNITY SERVICES,366247,Capital,Capital,Capital,Third Party Payments,505,Private Contractors,5042,Capital,SOCIAL CARE.DAY CARE
01/08/2022,2442732,402.62,ST ANNE'S COMMUNITY SERVICES,366247,Capital,Capital,Capital,Third Party Payments,505,Private Contractors,5042,Capital,SOCIAL CARE.DAY CARE
01/08/2022,2442732,402.62,ST ANNE'S COMMUNITY SERVICES,366247,Capital,Capital,Capital,Third Party Payments,505,Private Contractors,5042,Capital,SOCIAL CARE.DAY CARE
01/08/2022,2442732,721.34,ST ANNE'S COMMUNITY SERVICES,366247,Capital,Capital,Capital,Third Party Payments,505,Private Contractors,5042,Capital,SOCIAL CARE.DAY CARE
01/08/2022,2442732,721.34,ST ANNE'S COMMUNITY SERVICES,366247,Capital,Capital,Capital,Third Party Payments,505,Private Contractors,5042,Capital,SOCIAL CARE.DAY CARE
01/08/2022,2442732,1442.68,ST ANNE'S COMMUNITY SERVICES,366247,Capital,Capital,Capital,Third Party Payments,505,Private Contractors,5042,Capital,SOCIAL CARE.DAY CARE
01/08/2022,2442732,1548.77,ST ANNE'S COMMUNITY SERVICES,366247,Capital,Capital,Capital,Third Party Payments,505,Private Contractors,5042,Capital,SOCIAL CARE.DAY CARE
01/08/2022,2442732,1632.04,ST ANNE'S COMMUNITY SERVICES,366247,Capital,Capital,Capital,Third Party Payments,505,Private Contractors,5042,Capital,SOCIAL CARE.DAY CARE
01/08/2022,2442732,1632.04,ST ANNE'S COMMUNITY SERVICES,366247,Capital,Capital,Capital,Third Party Payments,505,Private Contractors,5042,Capital,SOCIAL CARE.DAY CARE
01/08/2022,2442732,1667.99,ST ANNE'S COMMUNITY SERVICES,366247,Capital,Capital,Capital,Third Party Payments,505,Private Contractors,5042,Capital,SOCIAL CARE.DAY CARE
01/08/2022,2442732,1667.99,ST ANNE'S COMMUNITY SERVICES,366247,Capital,Capital,Capital,Third Party Payments,505,Private Contractors,5042,Capital,SOCIAL CARE.DAY CARE
01/08/2022,2442732,1667.99,ST ANNE'S COMMUNITY SERVICES,366247,Capital,Capital,Capital,Third Party Payments,505,Private Contractors,5042,Capital,SOCIAL CARE.DAY CARE
01/08/2022,2442732,1748.60,ST ANNE'S COMMUNITY SERVICES,366247,Capital,Capital,Capital,Third Party Payments,505,Private Contractors,5042,Capital,SOCIAL CARE.DAY CARE
01/08/2022,2442733,16.35,FIRST MOVE CARE LTD,341358,Capital,Capital,Capital,Third Party Payments,505,Other Establishments,5041,Capital,SOCIAL CARE.DAY CARE
01/08/2022,2442733,42.84,FIRST MOVE CARE LTD,341358,Capital,Capital,Capital,Third Party Payments,505,Other Establishments,5041,Capital,SOCIAL CARE.DAY CARE
01/08/2022,2442733,75.00,FIRST MOVE CARE LTD,341358,Capital,Capital,Capital,Third Party Payments,505,Other Establishments,5041,Capital,SOCIAL CARE.DAY CARE
01/08/2022,2442733,75.00,FIRST MOVE CARE LTD,341358,Capital,Capital,Capital,Third Party Payments,505,Other Establishments,5041,Capital,SOCIAL CARE.DAY CARE
01/08/2022,2442733,75.00,FIRST MOVE CARE LTD,341358,Capital,Capital,Capital,Third Party Payments,505,Other Establishments,5041,Capital,SOCIAL CARE.DAY CARE
01/08/2022,2442733,75.00,FIRST MOVE CARE LTD,341358,Capital,Capital,Capital,Third Party Payments,505,Other Establishments,5041,Capital,SOCIAL CARE.DAY CARE
01/08/2022,2442733,75.00,FIRST MOVE CARE LTD,341358,Capital,Capital,Capital,Third Party Payments,505,Other Establishments,5041,Capital,SOCIAL CARE.DAY CARE
01/08/2022,2442733,85.68,FIRST MOVE CARE LTD,341358,Capital,Capital,Capital,Third Party Payments,505,Other Establishments,5041,Capital,SOCIAL CARE.DAY CARE
01/08/2022,2442733,85.68,FIRST MOVE CARE LTD,341358,Capital,Capital,Capital,Third Party Payments,505,Other Establishments,5041,Capital,SOCIAL CARE.DAY CARE
01/08/2022,2442733,92.82,FIRST MOVE CARE LTD,341358,Capital,Capital,Capital,Third Party Payments,505,Other Establishments,5041,Capital,SOCIAL CARE.DAY CARE
01/08/2022,2442733,107.10,FIRST MOVE CARE LTD,341358,Capital,Capital,Capital,Third Party Payments,505,Other Establishments,5041,Capital,SOCIAL CARE.DAY CARE
01/08/2022,2442733,107.10,FIRST MOVE CARE LTD,341358,Capital,Capital,Capital,Third Party Payments,505,Other Establishments,5041,Capital,SOCIAL CARE.DAY CARE
01/08/2022,2442733,107.10,FIRST MOVE CARE LTD,341358,Capital,Capital,Capital,Third Party Payments,505,Other Establishments,5041,Capital,SOCIAL CARE.DAY CARE
01/08/2022,2442733,107.10,FIRST MOVE CARE LTD,341358,Capital,Capital,Capital,Third Party Payments,505,Other Establishments,5041,Capital,SOCIAL CARE.DAY CARE
01/08/2022,2442733,107.10,FIRST MOVE CARE LTD,341358,Capital,Capital,Capital,Third Party Payments,505,Other Establishments,5041,Capital,SOCIAL CARE.DAY CARE
01/08/2022,2442733,108.29,FIRST MOVE CARE LTD,341358,Capital,Capital,Capital,Third Party Payments,505,Other Establishments,5041,Capital,SOCIAL CARE.DAY CARE
01/08/2022,2442733,108.29,FIRST MOVE CARE LTD,341358,Capital,Capital,Capital,Third Party Payments,505,Other Establishments,5041,Capital,SOCIAL CARE.DAY CARE
01/08/2022,2442733,108.33,FIRST MOVE CARE LTD,341358,Capital,Capital,Capital,Third Party Payments,505,Other Establishments,5041,Capital,SOCIAL CARE.DAY CARE
01/08/2022,2442733,207.68,FIRST MOVE CARE LTD,341358,Capital,Capital,Capital,Third Party Payments,505,Other Establishments,5041,Capital,SOCIAL CARE.DAY CARE
01/08/2022,2442733,207.68,FIRST MOVE CARE LTD,341358,Capital,Capital,Capital,Third Party Payments,505,Other Establishments,5041,Capital,SOCIAL CARE.DAY CARE
01/08/2022,2442733,207.68,FIRST MOVE CARE LTD,341358,Capital,Capital,Capital,Third Party Payments,505,Other Establishments,5041,Capital,SOCIAL CARE.DAY CARE
01/08/2022,2442733,207.68,FIRST MOVE CARE LTD,341358,Capital,Capital,Capital,Third Party Payments,505,Other Establishments,5041,Capital,SOCIAL CARE.DAY CARE
01/08/2022,2442733,207.68,FIRST MOVE CARE LTD,341358,Capital,Capital,Capital,Third Party Payments,505,Other Establishments,5041,Capital,SOCIAL CARE.DAY CARE
01/08/2022,2442733,259.60,FIRST MOVE CARE LTD,341358,Capital,Capital,Capital,Third Party Payments,505,Other Establishments,5041,Capital,SOCIAL CARE.DAY CARE
01/08/2022,2442733,259.60,FIRST MOVE CARE LTD,341358,Capital,Capital,Capital,Third Party Payments,505,Other Establishments,5041,Capital,SOCIAL CARE.DAY CARE
01/08/2022,2442733,259.60,FIRST MOVE CARE LTD,341358,Capital,Capital,Capital,Third Party Payments,505,Other Establishments,5041,Capital,SOCIAL CARE.DAY CARE
01/08/2022,2442733,259.60,FIRST MOVE CARE LTD,341358,Capital,Capital,Capital,Third Party Payments,505,Other Establishments,5041,Capital,SOCIAL CARE.DAY CARE
01/08/2022,2442733,259.60,FIRST MOVE CARE LTD,341358,Capital,Capital,Capital,Third Party Payments,505,Other Establishments,5041,Capital,SOCIAL CARE.DAY CARE
01/08/2022,2442733,433.16,FIRST MOVE CARE LTD,341358,Capital,Capital,Capital,Third Party Payments,505,Other Establishments,5041,Capital,SOCIAL CARE.DAY CARE
01/08/2022,2442733,541.45,FIRST MOVE CARE LTD,341358,Capital,Capital,Capital,Third Party Payments,505,Other Establishments,5041,Capital,SOCIAL CARE.DAY CARE
01/08/2022,2442735,731.76,FOUR SEASONS HEALTH CARE,371477,Capital,Capital,Capital,Third Party Payments,505,Private Contractors,5042,Capital,SOCIAL CARE.NURSING & RESIDENTIAL CARE
01/08/2022,2442735,731.76,FOUR SEASONS HEALTH CARE,371477,Capital,Capital,Capital,Third Party Payments,505,Private Contractors,5042,Capital,SOCIAL CARE.NURSING & RESIDENTIAL CARE
01/08/2022,2442736,8.90,NEW BEGINNINGS (N.E.) LTD,337005,Capital,Capital,Capital,Third Party Payments,505,Other Establishments,5041,Capital,SOCIAL CARE.NURSING & RESIDENTIAL CARE
01/08/2022,2442736,9.51,NEW BEGINNINGS (N.E.) LTD,337005,Capital,Capital,Capital,Third Party Payments,505,Other Establishments,5041,Capital,SOCIAL CARE.NURSING & RESIDENTIAL CARE
01/08/2022,2442736,25.91,NEW BEGINNINGS (N.E.) LTD,337005,Capital,Capital,Capital,Third Party Payments,505,Other Establishments,5041,Capital,SOCIAL CARE.NURSING & RESIDENTIAL CARE
01/08/2022,2442736,116.55,NEW BEGINNINGS (N.E.) LTD,337005,Capital,Capital,Capital,Third Party Payments,505,Other Establishments,5041,Capital,SOCIAL CARE.NURSING & RESIDENTIAL CARE
01/08/2022,2442736,124.90,NEW BEGINNINGS (N.E.) LTD,337005,Capital,Capital,Capital,Third Party Payments,505,Private Contractors,5042,Capital,SOCIAL CARE.NURSING & RESIDENTIAL CARE
01/08/2022,2442736,124.90,NEW BEGINNINGS (N.E.) LTD,337005,Capital,Capital,Capital,Third Party Payments,505,Private Contractors,5042,Capital,SOCIAL CARE.NURSING & RESIDENTIAL CARE
01/08/2022,2442736,235.71,NEW BEGINNINGS (N.E.) LTD,337005,Capital,Capital,Capital,Third Party Payments,505,Private Contractors,5042,Capital,SOCIAL CARE.NURSING & RESIDENTIAL CARE
01/08/2022,2442736,240.45,NEW BEGINNINGS (N.E.) LTD,337005,Capital,Capital,Capital,Third Party Payments,505,Private Contractors,5042,Capital,SOCIAL CARE.NURSING & RESIDENTIAL CARE
01/08/2022,2442736,240.45,NEW BEGINNINGS (N.E.) LTD,337005,Capital,Capital,Capital,Third Party Payments,505,Private Contractors,5042,Capital,SOCIAL CARE.NURSING & RESIDENTIAL CARE
01/08/2022,2442736,258.83,NEW BEGINNINGS (N.E.) LTD,337005,Capital,Capital,Capital,Third Party Payments,505,Private Contractors,5042,Capital,SOCIAL CARE.NURSING & RESIDENTIAL CARE
01/08/2022,2442736,258.83,NEW BEGINNINGS (N.E.) LTD,337005,Capital,Capital,Capital,Third Party Payments,505,Private Contractors,5042,Capital,SOCIAL CARE.NURSING & RESIDENTIAL CARE
01/08/2022,2442736,328.69,NEW BEGINNINGS (N.E.) LTD,337005,Capital,Capital,Capital,Third Party Payments,505,Other Establishments,5041,Capital,SOCIAL CARE.NURSING & RESIDENTIAL CARE
01/08/2022,2442736,360.67,NEW BEGINNINGS (N.E.) LTD,337005,Capital,Capital,Capital,Third Party Payments,505,Other Establishments,5041,Capital,SOCIAL CARE.NURSING & RESIDENTIAL CARE
01/08/2022,2442736,360.67,NEW BEGINNINGS (N.E.) LTD,337005,Capital,Capital,Capital,Third Party Payments,505,Other Establishments,5041,Capital,SOCIAL CARE.NURSING & RESIDENTIAL CARE
01/08/2022,2442736,360.68,NEW BEGINNINGS (N.E.) LTD,337005,Capital,Capital,Capital,Third Party Payments,505,Private Contractors,5042,Capital,SOCIAL CARE.NURSING & RESIDENTIAL CARE
01/08/2022,2442736,360.68,NEW BEGINNINGS (N.E.) LTD,337005,Capital,Capital,Capital,Third Party Payments,505,Private Contractors,5042,Capital,SOCIAL CARE.NURSING & RESIDENTIAL CARE
01/08/2022,2442736,374.63,NEW BEGINNINGS (N.E.) LTD,337005,Capital,Capital,Capital,Third Party Payments,505,Other Establishments,5041,Capital,SOCIAL CARE.NURSING & RESIDENTIAL CARE
01/08/2022,2442736,591.08,NEW BEGINNINGS (N.E.) LTD,337005,Capital,Capital,Capital,Third Party Payments,505,Other Establishments,5041,Capital,SOCIAL CARE.NURSING & RESIDENTIAL CARE
01/08/2022,2442736,607.99,NEW BEGINNINGS (N.E.) LTD,337005,Capital,Capital,Capital,Third Party Payments,505,Other Establishments,5041,Capital,SOCIAL CARE.NURSING & RESIDENTIAL CARE
01/08/2022,2442736,607.99,NEW BEGINNINGS (N.E.) LTD,337005,Capital,Capital,Capital,Third Party Payments,505,Other Establishments,5041,Capital,SOCIAL CARE.NURSING & RESIDENTIAL CARE
01/08/2022,2442736,657.37,NEW BEGINNINGS (N.E.) LTD,337005,Capital,Capital,Capital,Third Party Payments,505,Other Establishments,5041,Capital,SOCIAL CARE.NURSING & RESIDENTIAL CARE
01/08/2022,2442736,657.37,NEW BEGINNINGS (N.E.) LTD,337005,Capital,Capital,Capital,Third Party Payments,505,Other Establishments,5041,Capital,SOCIAL CARE.NURSING & RESIDENTIAL CARE
01/08/2022,2442736,670.53,NEW BEGINNINGS (N.E.) LTD,337005,Capital,Capital,Capital,Third Party Payments,505,Other Establishments,5041,Capital,SOCIAL CARE.NURSING & RESIDENTIAL CARE
01/08/2022,2442736,670.53,NEW BEGINNINGS (N.E.) LTD,337005,Capital,Capital,Capital,Third Party Payments,505,Other Establishments,5041,Capital,SOCIAL CARE.NURSING & RESIDENTIAL CARE
01/08/2022,2442736,670.53,NEW BEGINNINGS (N.E.) LTD,337005,Capital,Capital,Capital,Third Party Payments,505,Other Establishments,5041,Capital,SOCIAL CARE.NURSING & RESIDENTIAL CARE
01/08/2022,2442736,721.34,NEW BEGINNINGS (N.E.) LTD,337005,Capital,Capital,Capital,Third Party Payments,505,Private Contractors,5042,Capital,SOCIAL CARE.NURSING & RESIDENTIAL CARE
01/08/2022,2442736,721.34,NEW BEGINNINGS (N.E.) LTD,337005,Capital,Capital,Capital,Third Party Payments,505,Private Contractors,5042,Capital,SOCIAL CARE.NURSING & RESIDENTIAL CARE
01/08/2022,2442736,721.34,NEW BEGINNINGS (N.E.) LTD,337005,Capital,Capital,Capital,Third Party Payments,505,Private Contractors,5042,Capital,SOCIAL CARE.NURSING & RESIDENTIAL CARE
01/08/2022,2442736,721.34,NEW BEGINNINGS (N.E.) LTD,337005,Capital,Capital,Capital,Third Party Payments,505,Private Contractors,5042,Capital,SOCIAL CARE.NURSING & RESIDENTIAL CARE
01/08/2022,2442736,721.34,NEW BEGINNINGS (N.E.) LTD,337005,Capital,Capital,Capital,Third Party Payments,505,Private Contractors,5042,Capital,SOCIAL CARE.NURSING & RESIDENTIAL CARE
01/08/2022,2442736,721.34,NEW BEGINNINGS (N.E.) LTD,337005,Capital,Capital,Capital,Third Party Payments,505,Private Contractors,5042,Capital,SOCIAL CARE.NURSING & RESIDENTIAL CARE
01/08/2022,2442763,690.54,AKARI CARE HOMES LIMITED,387465,Capital,Capital,Capital,Third Party Payments,505,Private Contractors,5042,Capital,SOCIAL CARE.NURSING & RESIDENTIAL CARE
01/08/2022,2442763,690.54,AKARI CARE HOMES LIMITED,387465,Capital,Capital,Capital,Third Party Payments,505,Private Contractors,5042,Capital,SOCIAL CARE.NURSING & RESIDENTIAL CARE
01/08/2022,2442763,690.54,AKARI CARE HOMES LIMITED,387465,Capital,Capital,Capital,Third Party Payments,505,Private Contractors,5042,Capital,SOCIAL CARE.NURSING & RESIDENTIAL CARE
01/08/2022,2442763,690.54,AKARI CARE HOMES LIMITED,387465,Capital,Capital,Capital,Third Party Payments,505,Private Contractors,5042,Capital,SOCIAL CARE.NURSING & RESIDENTIAL CARE
01/08/2022,2442763,690.54,AKARI CARE HOMES LIMITED,387465,Capital,Capital,Capital,Third Party Payments,505,Private Contractors,5042,Capital,SOCIAL CARE.NURSING & RESIDENTIAL CARE
01/08/2022,2442763,690.54,AKARI CARE HOMES LIMITED,387465,Capital,Capital,Capital,Third Party Payments,505,Private Contractors,5042,Capital,SOCIAL CARE.NURSING & RESIDENTIAL CARE
01/08/2022,2442763,690.54,AKARI CARE HOMES LIMITED,387465,Capital,Capital,Capital,Third Party Payments,505,Private Contractors,5042,Capital,SOCIAL CARE.NURSING & RESIDENTIAL CARE
01/08/2022,2442763,690.54,AKARI CARE HOMES LIMITED,387465,Capital,Capital,Capital,Third Party Payments,505,Private Contractors,5042,Capital,SOCIAL CARE.NURSING & RESIDENTIAL CARE
01/08/2022,2442763,690.54,AKARI CARE HOMES LIMITED,387465,Capital,Capital,Capital,Third Party Payments,505,Private Contractors,5042,Capital,SOCIAL CARE.NURSING & RESIDENTIAL CARE
01/08/2022,2442763,690.54,AKARI CARE HOMES LIMITED,387465,Capital,Capital,Capital,Third Party Payments,505,Private Contractors,5042,Capital,SOCIAL CARE.NURSING & RESIDENTIAL CARE
01/08/2022,2442763,690.54,AKARI CARE HOMES LIMITED,387465,Capital,Capital,Capital,Third Party Payments,505,Private Contractors,5042,Capital,SOCIAL CARE.NURSING & RESIDENTIAL CARE
01/08/2022,2442763,690.54,AKARI CARE HOMES LIMITED,387465,Capital,Capital,Capital,Third Party Payments,505,Private Contractors,5042,Capital,SOCIAL CARE.NURSING & RESIDENTIAL CARE
01/08/2022,2442763,690.54,AKARI CARE HOMES LIMITED,387465,Capital,Capital,Capital,Third Party Payments,505,Private Contractors,5042,Capital,SOCIAL CARE.NURSING & RESIDENTIAL CARE
01/08/2022,2442763,690.54,AKARI CARE HOMES LIMITED,387465,Capital,Capital,Capital,Third Party Payments,505,Private Contractors,5042,Capital,SOCIAL CARE.NURSING & RESIDENTIAL CARE
01/08/2022,2442763,690.54,AKARI CARE HOMES LIMITED,387465,Capital,Capital,Capital,Third Party Payments,505,Private Contractors,5042,Capital,SOCIAL CARE.NURSING & RESIDENTIAL CARE
01/08/2022,2442763,690.54,AKARI CARE HOMES LIMITED,387465,Capital,Capital,Capital,Third Party Payments,505,Private Contractors,5042,Capital,SOCIAL CARE.NURSING & RESIDENTIAL CARE
01/08/2022,2442763,690.54,AKARI CARE HOMES LIMITED,387465,Capital,Capital,Capital,Third Party Payments,505,Private Contractors,5042,Capital,SOCIAL CARE.NURSING & RESIDENTIAL CARE
01/08/2022,2442763,690.54,AKARI CARE HOMES LIMITED,387465,Capital,Capital,Capital,Third Party Payments,505,Private Contractors,5042,Capital,SOCIAL CARE.NURSING & RESIDENTIAL CARE
01/08/2022,2442763,690.54,AKARI CARE HOMES LIMITED,387465,Capital,Capital,Capital,Third Party Payments,505,Private Contractors,5042,Capital,SOCIAL CARE.NURSING & RESIDENTIAL CARE
01/08/2022,2442763,690.54,AKARI CARE HOMES LIMITED,387465,Capital,Capital,Capital,Third Party Payments,505,Private Contractors,5042,Capital,SOCIAL CARE.NURSING & RESIDENTIAL CARE
01/08/2022,2442763,690.54,AKARI CARE HOMES LIMITED,387465,Capital,Capital,Capital,Third Party Payments,505,Private Contractors,5042,Capital,SOCIAL CARE.NURSING & RESIDENTIAL CARE
01/08/2022,2442763,690.54,AKARI CARE HOMES LIMITED,387465,Capital,Capital,Capital,Third Party Payments,505,Other Establishments,5041,Capital,SOCIAL CARE.NURSING & RESIDENTIAL CARE
01/08/2022,2442763,690.54,AKARI CARE HOMES LIMITED,387465,Capital,Capital,Capital,Third Party Payments,505,Other Establishments,5041,Capital,SOCIAL CARE.NURSING & RESIDENTIAL CARE
01/08/2022,2442763,690.54,AKARI CARE HOMES LIMITED,387465,Capital,Capital,Capital,Third Party Payments,505,Private Contractors,5042,Capital,SOCIAL CARE.NURSING & RESIDENTIAL CARE
01/08/2022,2442763,690.54,AKARI CARE HOMES LIMITED,387465,Capital,Capital,Capital,Third Party Payments,505,Private Contractors,5042,Capital,SOCIAL CARE.NURSING & RESIDENTIAL CARE
01/08/2022,2442763,690.54,AKARI CARE HOMES LIMITED,387465,Capital,Capital,Capital,Third Party Payments,505,Private Contractors,5042,Capital,SOCIAL CARE.NURSING & RESIDENTIAL CARE
01/08/2022,2442763,690.54,AKARI CARE HOMES LIMITED,387465,Capital,Capital,Capital,Third Party Payments,505,Private Contractors,5042,Capital,SOCIAL CARE.NURSING & RESIDENTIAL CARE
01/08/2022,2442763,690.54,AKARI CARE HOMES LIMITED,387465,Capital,Capital,Capital,Third Party Payments,505,Private Contractors,5042,Capital,SOCIAL CARE.NURSING & RESIDENTIAL CARE
01/08/2022,2442763,690.55,AKARI CARE HOMES LIMITED,387465,Capital,Capital,Capital,Third Party Payments,505,Private Contractors,5042,Capital,SOCIAL CARE.NURSING & RESIDENTIAL CARE
01/08/2022,2442763,694.51,AKARI CARE HOMES LIMITED,387465,Capital,Capital,Capital,Third Party Payments,505,Private Contractors,5042,Capital,SOCIAL CARE.NURSING & RESIDENTIAL CARE
01/08/2022,2442763,694.51,AKARI CARE HOMES LIMITED,387465,Capital,Capital,Capital,Third Party Payments,505,Private Contractors,5042,Capital,SOCIAL CARE.NURSING & RESIDENTIAL CARE
01/08/2022,2442763,694.51,AKARI CARE HOMES LIMITED,387465,Capital,Capital,Capital,Third Party Payments,505,Private Contractors,5042,Capital,SOCIAL CARE.NURSING & RESIDENTIAL CARE
01/08/2022,2442763,694.51,AKARI CARE HOMES LIMITED,387465,Capital,Capital,Capital,Third Party Payments,505,Private Contractors,5042,Capital,SOCIAL CARE.NURSING & RESIDENTIAL CARE
01/08/2022,2442763,694.51,AKARI CARE HOMES LIMITED,387465,Capital,Capital,Capital,Third Party Payments,505,Private Contractors,5042,Capital,SOCIAL CARE.NURSING & RESIDENTIAL CARE
01/08/2022,2442736,816.21,NEW BEGINNINGS (N.E.) LTD,337005,Capital,Capital,Capital,Third Party Payments,505,Private Contractors,5042,Capital,SOCIAL CARE.NURSING & RESIDENTIAL CARE
01/08/2022,2442736,1104.38,NEW BEGINNINGS (N.E.) LTD,337005,Capital,Capital,Capital,Third Party Payments,505,Private Contractors,5042,Capital,SOCIAL CARE.NURSING & RESIDENTIAL CARE
01/08/2022,2442736,1127.88,NEW BEGINNINGS (N.E.) LTD,337005,Capital,Capital,Capital,Third Party Payments,505,Private Contractors,5042,Capital,SOCIAL CARE.NURSING & RESIDENTIAL CARE
01/08/2022,2442736,1130.53,NEW BEGINNINGS (N.E.) LTD,337005,Capital,Capital,Capital,Third Party Payments,505,Other Establishments,5041,Capital,SOCIAL CARE.NURSING & RESIDENTIAL CARE
01/08/2022,2442736,1208.21,NEW BEGINNINGS (N.E.) LTD,337005,Capital,Capital,Capital,Third Party Payments,505,Private Contractors,5042,Capital,SOCIAL CARE.NURSING & RESIDENTIAL CARE
01/08/2022,2442736,1208.21,NEW BEGINNINGS (N.E.) LTD,337005,Capital,Capital,Capital,Third Party Payments,505,Private Contractors,5042,Capital,SOCIAL CARE.NURSING & RESIDENTIAL CARE
01/08/2022,2442736,1208.21,NEW BEGINNINGS (N.E.) LTD,337005,Capital,Capital,Capital,Third Party Payments,505,Private Contractors,5042,Capital,SOCIAL CARE.NURSING & RESIDENTIAL CARE
01/08/2022,2442736,1208.21,NEW BEGINNINGS (N.E.) LTD,337005,Capital,Capital,Capital,Third Party Payments,505,Private Contractors,5042,Capital,SOCIAL CARE.NURSING & RESIDENTIAL CARE
01/08/2022,2442736,1298.96,NEW BEGINNINGS (N.E.) LTD,337005,Capital,Capital,Capital,Third Party Payments,505,Private Contractors,5042,Capital,SOCIAL CARE.NURSING & RESIDENTIAL CARE
01/08/2022,2442736,1442.72,NEW BEGINNINGS (N.E.) LTD,337005,Capital,Capital,Capital,Third Party Payments,505,Private Contractors,5042,Capital,SOCIAL CARE.NURSING & RESIDENTIAL CARE
01/08/2022,2442736,1484.00,NEW BEGINNINGS (N.E.) LTD,337005,Capital,Capital,Capital,Third Party Payments,505,Private Contractors,5042,Capital,SOCIAL CARE.NURSING & RESIDENTIAL CARE
01/08/2022,2442736,1631.70,NEW BEGINNINGS (N.E.) LTD,337005,Capital,Capital,Capital,Third Party Payments,505,Other Establishments,5041,Capital,SOCIAL CARE.NURSING & RESIDENTIAL CARE
01/08/2022,2442736,1631.70,NEW BEGINNINGS (N.E.) LTD,337005,Capital,Capital,Capital,Third Party Payments,505,Other Establishments,5041,Capital,SOCIAL CARE.NURSING & RESIDENTIAL CARE
01/08/2022,2442736,1691.07,NEW BEGINNINGS (N.E.) LTD,337005,Capital,Capital,Capital,Third Party Payments,505,Private Contractors,5042,Capital,SOCIAL CARE.NURSING & RESIDENTIAL CARE
01/08/2022,2442736,1691.07,NEW BEGINNINGS (N.E.) LTD,337005,Capital,Capital,Capital,Third Party Payments,505,Private Contractors,5042,Capital,SOCIAL CARE.NURSING & RESIDENTIAL CARE
01/08/2022,2442736,1691.48,NEW BEGINNINGS (N.E.) LTD,337005,Capital,Capital,Capital,Third Party Payments,505,Other Establishments,5041,Capital,SOCIAL CARE.NURSING & RESIDENTIAL CARE
01/08/2022,2442736,1786.41,NEW BEGINNINGS (N.E.) LTD,337005,Capital,Capital,Capital,Third Party Payments,505,Other Establishments,5041,Capital,SOCIAL CARE.NURSING & RESIDENTIAL CARE
01/08/2022,2442736,1932.65,NEW BEGINNINGS (N.E.) LTD,337005,Capital,Capital,Capital,Third Party Payments,505,Private Contractors,5042,Capital,SOCIAL CARE.NURSING & RESIDENTIAL CARE
01/08/2022,2442736,1932.65,NEW BEGINNINGS (N.E.) LTD,337005,Capital,Capital,Capital,Third Party Payments,505,Private Contractors,5042,Capital,SOCIAL CARE.NURSING & RESIDENTIAL CARE
01/08/2022,2442736,1933.12,NEW BEGINNINGS (N.E.) LTD,337005,Capital,Capital,Capital,Third Party Payments,505,Other Establishments,5041,Capital,SOCIAL CARE.NURSING & RESIDENTIAL CARE
01/08/2022,2442736,1965.10,NEW BEGINNINGS (N.E.) LTD,337005,Capital,Capital,Capital,Third Party Payments,505,Private Contractors,5042,Capital,SOCIAL CARE.NURSING & RESIDENTIAL CARE
01/08/2022,2442736,2898.97,NEW BEGINNINGS (N.E.) LTD,337005,Capital,Capital,Capital,Third Party Payments,505,Private Contractors,5042,Capital,SOCIAL CARE.NURSING & RESIDENTIAL CARE
01/08/2022,2442736,3382.14,NEW BEGINNINGS (N.E.) LTD,337005,Capital,Capital,Capital,Third Party Payments,505,Private Contractors,5042,Capital,SOCIAL CARE.NURSING & RESIDENTIAL CARE
01/08/2022,2442736,3382.14,NEW BEGINNINGS (N.E.) LTD,337005,Capital,Capital,Capital,Third Party Payments,505,Private Contractors,5042,Capital,SOCIAL CARE.NURSING & RESIDENTIAL CARE
01/08/2022,2442736,3382.14,NEW BEGINNINGS (N.E.) LTD,337005,Capital,Capital,Capital,Third Party Payments,505,Private Contractors,5042,Capital,SOCIAL CARE.NURSING & RESIDENTIAL CARE
01/08/2022,2442736,3779.94,NEW BEGINNINGS (N.E.) LTD,337005,Capital,Capital,Capital,Third Party Payments,505,Other Establishments,5041,Capital,SOCIAL CARE.NURSING & RESIDENTIAL CARE
01/08/2022,2442736,3987.06,NEW BEGINNINGS (N.E.) LTD,337005,Capital,Capital,Capital,Third Party Payments,505,Other Establishments,5041,Capital,SOCIAL CARE.NURSING & RESIDENTIAL CARE
01/08/2022,2442736,5073.21,NEW BEGINNINGS (N.E.) LTD,337005,Capital,Capital,Capital,Third Party Payments,505,Private Contractors,5042,Capital,SOCIAL CARE.NURSING & RESIDENTIAL CARE
01/08/2022,2442737,472.90,Redacted Personal Data,388984,Capital,Capital,Capital,Third Party Payments,505,Other Establishments,5041,Capital,NON INFLUENCIBLE.NON INFLUENCIBLE
01/08/2022,2442738,386.00,Redacted Personal Data,395539,Capital,Capital,Capital,Third Party Payments,505,Other Establishments,5041,Capital,NON INFLUENCIBLE.INDIVIDUAL
01/08/2022,2442740,268.39,Redacted Personal Data,395524,Capital,Capital,Capital,Third Party Payments,505,Other Establishments,5041,Capital,NON INFLUENCIBLE.INDIVIDUAL
01/08/2022,2442743,3074.04,Redacted Personal Data,395507,Capital,Capital,Capital,Third Party Payments,505,Other Establishments,5041,Capital,NON INFLUENCIBLE.INDIVIDUAL
01/08/2022,2442744,3.13,Redacted Personal Data,395503,Capital,Capital,Capital,Third Party Payments,505,Other Establishments,5041,Capital,NON INFLUENCIBLE.INDIVIDUAL
01/08/2022,2442744,9.52,Redacted Personal Data,395503,Capital,Capital,Capital,Third Party Payments,505,Other Establishments,5041,Capital,NON INFLUENCIBLE.INDIVIDUAL
01/08/2022,2442744,38.00,Redacted Personal Data,395503,Capital,Capital,Capital,Third Party Payments,505,Other Establishments,5041,Capital,NON INFLUENCIBLE.INDIVIDUAL
01/08/2022,2442744,491.80,Redacted Personal Data,395503,Capital,Capital,Capital,Third Party Payments,505,Other Establishments,5041,Capital,NON INFLUENCIBLE.INDIVIDUAL
01/08/2022,2442745,3.75,Redacted Personal Data,395502,Capital,Capital,Capital,Third Party Payments,505,Other Establishments,5041,Capital,NON INFLUENCIBLE.INDIVIDUAL
01/08/2022,2442745,145.00,Redacted Personal Data,395502,Capital,Capital,Capital,Third Party Payments,505,Other Establishments,5041,Capital,NON INFLUENCIBLE.INDIVIDUAL
01/08/2022,2442745,580.00,Redacted Personal Data,395502,Capital,Capital,Capital,Third Party Payments,505,Other Establishments,5041,Capital,NON INFLUENCIBLE.INDIVIDUAL
01/08/2022,2442747,330.60,Redacted Personal Data,395498,Capital,Capital,Capital,Third Party Payments,505,Other Establishments,5041,Capital,NON INFLUENCIBLE.INDIVIDUAL
01/08/2022,2442750,3.13,Redacted Personal Data,395487,Capital,Capital,Capital,Third Party Payments,505,Other Establishments,5041,Capital,NON INFLUENCIBLE.INDIVIDUAL
01/08/2022,2442750,60.00,Redacted Personal Data,395487,Capital,Capital,Capital,Third Party Payments,505,Other Establishments,5041,Capital,NON INFLUENCIBLE.INDIVIDUAL
01/08/2022,2442750,240.00,Redacted Personal Data,395487,Capital,Capital,Capital,Third Party Payments,505,Other Establishments,5041,Capital,NON INFLUENCIBLE.INDIVIDUAL
01/08/2022,2442753,12.50,Redacted Personal Data,395478,Capital,Capital,Capital,Third Party Payments,505,Other Establishments,5041,Capital,NON INFLUENCIBLE.INDIVIDUAL
01/08/2022,2442753,166.60,Redacted Personal Data,395478,Capital,Capital,Capital,Third Party Payments,505,Other Establishments,5041,Capital,NON INFLUENCIBLE.INDIVIDUAL
01/08/2022,2442753,325.08,Redacted Personal Data,395478,Capital,Capital,Capital,Third Party Payments,505,Other Establishments,5041,Capital,NON INFLUENCIBLE.INDIVIDUAL
01/08/2022,2442753,621.97,Redacted Personal Data,395478,Capital,Capital,Capital,Third Party Payments,505,Other Establishments,5041,Capital,NON INFLUENCIBLE.INDIVIDUAL
01/08/2022,2442755,1706.44,NE LIFESTYLES LTD,395210,Capital,Capital,Capital,Third Party Payments,505,Private Contractors,5042,Capital,SOCIAL CARE.NURSING & RESIDENTIAL CARE
01/08/2022,2442756,319.74,Redacted Personal Data,372033,Capital,Capital,Capital,Third Party Payments,505,Other Establishments,5041,Capital,NON INFLUENCIBLE.NON INFLUENCIBLE
01/08/2022,2442757,1292.00,Redacted Personal Data,395039,Capital,Capital,Capital,Third Party Payments,505,Private Contractors,5042,Capital,SOCIAL CARE.NURSING & RESIDENTIAL CARE
01/08/2022,2442759,253.52,INDEPENDENT LIVES (NE),389234,Capital,Capital,Capital,Third Party Payments,505,Other Establishments,5041,Capital,SOCIAL CARE.DAY CARE
01/08/2022,2442759,253.52,INDEPENDENT LIVES (NE),389234,Capital,Capital,Capital,Third Party Payments,505,Other Establishments,5041,Capital,SOCIAL CARE.DAY CARE
01/08/2022,2442759,253.52,INDEPENDENT LIVES (NE),389234,Capital,Capital,Capital,Third Party Payments,505,Other Establishments,5041,Capital,SOCIAL CARE.DAY CARE
01/08/2022,2442759,313.67,INDEPENDENT LIVES (NE),389234,Capital,Capital,Capital,Third Party Payments,505,Other Establishments,5041,Capital,SOCIAL CARE.DAY CARE
01/08/2022,2442759,316.90,INDEPENDENT LIVES (NE),389234,Capital,Capital,Capital,Third Party Payments,505,Other Establishments,5041,Capital,SOCIAL CARE.DAY CARE
01/08/2022,2442760,-109.70,BRIAR DENE,321950,Capital,Capital,Capital,Income,509,Customer and Client Receipts,5064,Capital,SOCIAL CARE.NURSING & RESIDENTIAL CARE
01/08/2022,2442760,890.12,BRIAR DENE,321950,Capital,Capital,Capital,Third Party Payments,505,Private Contractors,5042,Capital,SOCIAL CARE.NURSING & RESIDENTIAL CARE
01/08/2022,2442761,133.20,FOCUS SOCIAL CARE,391317,Capital,Capital,Capital,Third Party Payments,505,Other Establishments,5041,Capital,SOCIAL CARE.CARE SERVICES
01/08/2022,2442761,166.50,FOCUS SOCIAL CARE,391317,Capital,Capital,Capital,Third Party Payments,505,Other Establishments,5041,Capital,SOCIAL CARE.CARE SERVICES
01/08/2022,2442761,240.45,FOCUS SOCIAL CARE,391317,Capital,Capital,Capital,Third Party Payments,505,Other Establishments,5041,Capital,SOCIAL CARE.CARE SERVICES
01/08/2022,2442761,240.45,FOCUS SOCIAL CARE,391317,Capital,Capital,Capital,Third Party Payments,505,Other Establishments,5041,Capital,SOCIAL CARE.CARE SERVICES
01/08/2022,2442761,240.45,FOCUS SOCIAL CARE,391317,Capital,Capital,Capital,Third Party Payments,505,Other Establishments,5041,Capital,SOCIAL CARE.CARE SERVICES
01/08/2022,2442761,249.75,FOCUS SOCIAL CARE,391317,Capital,Capital,Capital,Third Party Payments,505,Other Establishments,5041,Capital,SOCIAL CARE.CARE SERVICES
01/08/2022,2442761,494.17,FOCUS SOCIAL CARE,391317,Capital,Capital,Capital,Third Party Payments,505,Other Establishments,5041,Capital,SOCIAL CARE.CARE SERVICES
01/08/2022,2442761,494.17,FOCUS SOCIAL CARE,391317,Capital,Capital,Capital,Third Party Payments,505,Other Establishments,5041,Capital,SOCIAL CARE.CARE SERVICES
01/08/2022,2442761,494.17,FOCUS SOCIAL CARE,391317,Capital,Capital,Capital,Third Party Payments,505,Other Establishments,5041,Capital,SOCIAL CARE.CARE SERVICES
01/08/2022,2442762,319.74,Redacted Personal Data,376386,Capital,Capital,Capital,Third Party Payments,505,Other Establishments,5041,Capital,NON INFLUENCIBLE.INDIVIDUAL
01/08/2022,2442762,354.30,Redacted Personal Data,376386,Capital,Capital,Capital,Third Party Payments,505,Other Establishments,5041,Capital,NON INFLUENCIBLE.INDIVIDUAL
01/08/2022,2442763,-3441.00,AKARI CARE HOMES LIMITED,387465,,,,,,,,,SOCIAL CARE.NURSING & RESIDENTIAL CARE
01/08/2022,2442763,-1733.29,AKARI CARE HOMES LIMITED,387465,,,,,,,,,SOCIAL CARE.NURSING & RESIDENTIAL CARE
01/08/2022,2442763,-1105.72,AKARI CARE HOMES LIMITED,387465,,,,,,,,,SOCIAL CARE.NURSING & RESIDENTIAL CARE
01/08/2022,2442763,-789.19,AKARI CARE HOMES LIMITED,387465,,,,,,,,,SOCIAL CARE.NURSING & RESIDENTIAL CARE
01/08/2022,2442763,-551.69,AKARI CARE HOMES LIMITED,387465,Capital,Capital,Capital,Third Party Payments,505,Other Establishments,5041,Capital,SOCIAL CARE.NURSING & RESIDENTIAL CARE
01/08/2022,2442763,-394.59,AKARI CARE HOMES LIMITED,387465,Capital,Capital,Capital,Third Party Payments,505,Private Contractors,5042,Capital,SOCIAL CARE.NURSING & RESIDENTIAL CARE
01/08/2022,2442763,-328.73,AKARI CARE HOMES LIMITED,387465,Capital,Capital,Capital,Third Party Payments,505,Other Establishments,5041,Capital,SOCIAL CARE.NURSING & RESIDENTIAL CARE
01/08/2022,2442763,-239.07,AKARI CARE HOMES LIMITED,387465,,,,,,,,,SOCIAL CARE.NURSING & RESIDENTIAL CARE
01/08/2022,2442763,-144.82,AKARI CARE HOMES LIMITED,387465,Capital,Capital,Capital,Third Party Payments,505,Other Establishments,5041,Capital,SOCIAL CARE.NURSING & RESIDENTIAL CARE
01/08/2022,2442763,-105.33,AKARI CARE HOMES LIMITED,387465,,,,,,,,,SOCIAL CARE.NURSING & RESIDENTIAL CARE
01/08/2022,2442763,61.47,AKARI CARE HOMES LIMITED,387465,Capital,Capital,Capital,Third Party Payments,505,Private Contractors,5042,Capital,SOCIAL CARE.NURSING & RESIDENTIAL CARE
01/08/2022,2442763,92.16,AKARI CARE HOMES LIMITED,387465,Capital,Capital,Capital,Third Party Payments,505,Other Establishments,5041,Capital,SOCIAL CARE.NURSING & RESIDENTIAL CARE
01/08/2022,2442763,92.16,AKARI CARE HOMES LIMITED,387465,Capital,Capital,Capital,Third Party Payments,505,Other Establishments,5041,Capital,SOCIAL CARE.NURSING & RESIDENTIAL CARE
01/08/2022,2442763,92.16,AKARI CARE HOMES LIMITED,387465,Capital,Capital,Capital,Third Party Payments,505,Other Establishments,5041,Capital,SOCIAL CARE.NURSING & RESIDENTIAL CARE
01/08/2022,2442763,92.16,AKARI CARE HOMES LIMITED,387465,Capital,Capital,Capital,Third Party Payments,505,Other Establishments,5041,Capital,SOCIAL CARE.NURSING & RESIDENTIAL CARE
01/08/2022,2442763,92.16,AKARI CARE HOMES LIMITED,387465,Capital,Capital,Capital,Third Party Payments,505,Other Establishments,5041,Capital,SOCIAL CARE.NURSING & RESIDENTIAL CARE
01/08/2022,2442763,92.16,AKARI CARE HOMES LIMITED,387465,Capital,Capital,Capital,Third Party Payments,505,Other Establishments,5041,Capital,SOCIAL CARE.NURSING & RESIDENTIAL CARE
01/08/2022,2442763,92.16,AKARI CARE HOMES LIMITED,387465,Capital,Capital,Capital,Third Party Payments,505,Other Establishments,5041,Capital,SOCIAL CARE.NURSING & RESIDENTIAL CARE
01/08/2022,2442763,92.16,AKARI CARE HOMES LIMITED,387465,Capital,Capital,Capital,Third Party Payments,505,Other Establishments,5041,Capital,SOCIAL CARE.NURSING & RESIDENTIAL CARE
01/08/2022,2442763,92.16,AKARI CARE HOMES LIMITED,387465,Capital,Capital,Capital,Third Party Payments,505,Other Establishments,5041,Capital,SOCIAL CARE.NURSING & RESIDENTIAL CARE
01/08/2022,2442763,92.16,AKARI CARE HOMES LIMITED,387465,Capital,Capital,Capital,Third Party Payments,505,Other Establishments,5041,Capital,SOCIAL CARE.NURSING & RESIDENTIAL CARE
01/08/2022,2442763,92.16,AKARI CARE HOMES LIMITED,387465,Capital,Capital,Capital,Third Party Payments,505,Other Establishments,5041,Capital,SOCIAL CARE.NURSING & RESIDENTIAL CARE
01/08/2022,2442763,104.50,AKARI CARE HOMES LIMITED,387465,Capital,Capital,Capital,Third Party Payments,505,Private Contractors,5042,Capital,SOCIAL CARE.NURSING & RESIDENTIAL CARE
01/08/2022,2442763,118.49,AKARI CARE HOMES LIMITED,387465,,,,,,,,,SOCIAL CARE.NURSING & RESIDENTIAL CARE
01/08/2022,2442763,118.56,AKARI CARE HOMES LIMITED,387465,Capital,Capital,Capital,Third Party Payments,505,Private Contractors,5042,Capital,SOCIAL CARE.NURSING & RESIDENTIAL CARE
01/08/2022,2442763,131.66,AKARI CARE HOMES LIMITED,387465,Capital,Capital,Capital,Third Party Payments,505,Other Establishments,5041,Capital,SOCIAL CARE.NURSING & RESIDENTIAL CARE
01/08/2022,2442763,154.12,AKARI CARE HOMES LIMITED,387465,Capital,Capital,Capital,Third Party Payments,505,Private Contractors,5042,Capital,SOCIAL CARE.NURSING & RESIDENTIAL CARE
01/08/2022,2442763,209.19,AKARI CARE HOMES LIMITED,387465,Capital,Capital,Capital,Third Party Payments,505,Other Establishments,5041,Capital,SOCIAL CARE.NURSING & RESIDENTIAL CARE
01/08/2022,2442763,209.19,AKARI CARE HOMES LIMITED,387465,Capital,Capital,Capital,Third Party Payments,505,Other Establishments,5041,Capital,SOCIAL CARE.NURSING & RESIDENTIAL CARE
01/08/2022,2442763,209.19,AKARI CARE HOMES LIMITED,387465,Capital,Capital,Capital,Third Party Payments,505,Other Establishments,5041,Capital,SOCIAL CARE.NURSING & RESIDENTIAL CARE
01/08/2022,2442763,209.19,AKARI CARE HOMES LIMITED,387465,Capital,Capital,Capital,Third Party Payments,505,Other Establishments,5041,Capital,SOCIAL CARE.NURSING & RESIDENTIAL CARE
01/08/2022,2442763,209.19,AKARI CARE HOMES LIMITED,387465,Capital,Capital,Capital,Third Party Payments,505,Other Establishments,5041,Capital,SOCIAL CARE.NURSING & RESIDENTIAL CARE
01/08/2022,2442763,209.19,AKARI CARE HOMES LIMITED,387465,Capital,Capital,Capital,Third Party Payments,505,Other Establishments,5041,Capital,SOCIAL CARE.NURSING & RESIDENTIAL CARE
01/08/2022,2442763,209.19,AKARI CARE HOMES LIMITED,387465,Capital,Capital,Capital,Third Party Payments,505,Other Establishments,5041,Capital,SOCIAL CARE.NURSING & RESIDENTIAL CARE
01/08/2022,2442763,209.19,AKARI CARE HOMES LIMITED,387465,Capital,Capital,Capital,Third Party Payments,505,Other Establishments,5041,Capital,SOCIAL CARE.NURSING & RESIDENTIAL CARE
01/08/2022,2442763,209.19,AKARI CARE HOMES LIMITED,387465,Capital,Capital,Capital,Third Party Payments,505,Other Establishments,5041,Capital,SOCIAL CARE.NURSING & RESIDENTIAL CARE
01/08/2022,2442763,209.19,AKARI CARE HOMES LIMITED,387465,Capital,Capital,Capital,Third Party Payments,505,Other Establishments,5041,Capital,SOCIAL CARE.NURSING & RESIDENTIAL CARE
01/08/2022,2442763,209.19,AKARI CARE HOMES LIMITED,387465,Capital,Capital,Capital,Third Party Payments,505,Other Establishments,5041,Capital,SOCIAL CARE.NURSING & RESIDENTIAL CARE
01/08/2022,2442763,209.19,AKARI CARE HOMES LIMITED,387465,Capital,Capital,Capital,Third Party Payments,505,Other Establishments,5041,Capital,SOCIAL CARE.NURSING & RESIDENTIAL CARE
01/08/2022,2442763,209.19,AKARI CARE HOMES LIMITED,387465,Capital,Capital,Capital,Third Party Payments,505,Other Establishments,5041,Capital,SOCIAL CARE.NURSING & RESIDENTIAL CARE
01/08/2022,2442763,209.19,AKARI CARE HOMES LIMITED,387465,Capital,Capital,Capital,Third Party Payments,505,Other Establishments,5041,Capital,SOCIAL CARE.NURSING & RESIDENTIAL CARE
01/08/2022,2442763,209.19,AKARI CARE HOMES LIMITED,387465,Capital,Capital,Capital,Third Party Payments,505,Other Establishments,5041,Capital,SOCIAL CARE.NURSING & RESIDENTIAL CARE
01/08/2022,2442763,209.19,AKARI CARE HOMES LIMITED,387465,Capital,Capital,Capital,Third Party Payments,505,Other Establishments,5041,Capital,SOCIAL CARE.NURSING & RESIDENTIAL CARE
01/08/2022,2442763,209.19,AKARI CARE HOMES LIMITED,387465,Capital,Capital,Capital,Third Party Payments,505,Other Establishments,5041,Capital,SOCIAL CARE.NURSING & RESIDENTIAL CARE
01/08/2022,2442763,209.19,AKARI CARE HOMES LIMITED,387465,Capital,Capital,Capital,Third Party Payments,505,Other Establishments,5041,Capital,SOCIAL CARE.NURSING & RESIDENTIAL CARE
01/08/2022,2442763,209.19,AKARI CARE HOMES LIMITED,387465,Capital,Capital,Capital,Third Party Payments,505,Other Establishments,5041,Capital,SOCIAL CARE.NURSING & RESIDENTIAL CARE
01/08/2022,2442763,209.19,AKARI CARE HOMES LIMITED,387465,Capital,Capital,Capital,Third Party Payments,505,Other Establishments,5041,Capital,SOCIAL CARE.NURSING & RESIDENTIAL CARE
01/08/2022,2442763,209.19,AKARI CARE HOMES LIMITED,387465,Capital,Capital,Capital,Third Party Payments,505,Other Establishments,5041,Capital,SOCIAL CARE.NURSING & RESIDENTIAL CARE
01/08/2022,2442763,209.19,AKARI CARE HOMES LIMITED,387465,Capital,Capital,Capital,Third Party Payments,505,Other Establishments,5041,Capital,SOCIAL CARE.NURSING & RESIDENTIAL CARE
01/08/2022,2442763,209.19,AKARI CARE HOMES LIMITED,387465,Capital,Capital,Capital,Third Party Payments,505,Other Establishments,5041,Capital,SOCIAL CARE.NURSING & RESIDENTIAL CARE
01/08/2022,2442763,209.19,AKARI CARE HOMES LIMITED,387465,Capital,Capital,Capital,Third Party Payments,505,Other Establishments,5041,Capital,SOCIAL CARE.NURSING & RESIDENTIAL CARE
01/08/2022,2442763,209.19,AKARI CARE HOMES LIMITED,387465,Capital,Capital,Capital,Third Party Payments,505,Other Establishments,5041,Capital,SOCIAL CARE.NURSING & RESIDENTIAL CARE
01/08/2022,2442763,209.19,AKARI CARE HOMES LIMITED,387465,Capital,Capital,Capital,Third Party Payments,505,Other Establishments,5041,Capital,SOCIAL CARE.NURSING & RESIDENTIAL CARE
01/08/2022,2442763,209.19,AKARI CARE HOMES LIMITED,387465,Capital,Capital,Capital,Third Party Payments,505,Other Establishments,5041,Capital,SOCIAL CARE.NURSING & RESIDENTIAL CARE
01/08/2022,2442763,209.19,AKARI CARE HOMES LIMITED,387465,Capital,Capital,Capital,Third Party Payments,505,Other Establishments,5041,Capital,SOCIAL CARE.NURSING & RESIDENTIAL CARE
01/08/2022,2442763,209.19,AKARI CARE HOMES LIMITED,387465,Capital,Capital,Capital,Third Party Payments,505,Other Establishments,5041,Capital,SOCIAL CARE.NURSING & RESIDENTIAL CARE
01/08/2022,2442763,209.19,AKARI CARE HOMES LIMITED,387465,Capital,Capital,Capital,Third Party Payments,505,Other Establishments,5041,Capital,SOCIAL CARE.NURSING & RESIDENTIAL CARE
01/08/2022,2442763,209.19,AKARI CARE HOMES LIMITED,387465,Capital,Capital,Capital,Third Party Payments,505,Other Establishments,5041,Capital,SOCIAL CARE.NURSING & RESIDENTIAL CARE
01/08/2022,2442763,209.19,AKARI CARE HOMES LIMITED,387465,Capital,Capital,Capital,Third Party Payments,505,Other Establishments,5041,Capital,SOCIAL CARE.NURSING & RESIDENTIAL CARE
01/08/2022,2442763,209.19,AKARI CARE HOMES LIMITED,387465,Capital,Capital,Capital,Third Party Payments,505,Other Establishments,5041,Capital,SOCIAL CARE.NURSING & RESIDENTIAL CARE
01/08/2022,2442763,209.19,AKARI CARE HOMES LIMITED,387465,Capital,Capital,Capital,Third Party Payments,505,Other Establishments,5041,Capital,SOCIAL CARE.NURSING & RESIDENTIAL CARE
01/08/2022,2442763,209.19,AKARI CARE HOMES LIMITED,387465,Capital,Capital,Capital,Third Party Payments,505,Other Establishments,5041,Capital,SOCIAL CARE.NURSING & RESIDENTIAL CARE
01/08/2022,2442763,209.19,AKARI CARE HOMES LIMITED,387465,Capital,Capital,Capital,Third Party Payments,505,Other Establishments,5041,Capital,SOCIAL CARE.NURSING & RESIDENTIAL CARE
01/08/2022,2442763,209.19,AKARI CARE HOMES LIMITED,387465,Capital,Capital,Capital,Third Party Payments,505,Other Establishments,5041,Capital,SOCIAL CARE.NURSING & RESIDENTIAL CARE
01/08/2022,2442763,209.19,AKARI CARE HOMES LIMITED,387465,Capital,Capital,Capital,Third Party Payments,505,Other Establishments,5041,Capital,SOCIAL CARE.NURSING & RESIDENTIAL CARE
01/08/2022,2442763,209.19,AKARI CARE HOMES LIMITED,387465,Capital,Capital,Capital,Third Party Payments,505,Other Establishments,5041,Capital,SOCIAL CARE.NURSING & RESIDENTIAL CARE
01/08/2022,2442763,209.19,AKARI CARE HOMES LIMITED,387465,Capital,Capital,Capital,Third Party Payments,505,Other Establishments,5041,Capital,SOCIAL CARE.NURSING & RESIDENTIAL CARE
01/08/2022,2442763,209.19,AKARI CARE HOMES LIMITED,387465,Capital,Capital,Capital,Third Party Payments,505,Other Establishments,5041,Capital,SOCIAL CARE.NURSING & RESIDENTIAL CARE
01/08/2022,2442763,209.19,AKARI CARE HOMES LIMITED,387465,Capital,Capital,Capital,Third Party Payments,505,Other Establishments,5041,Capital,SOCIAL CARE.NURSING & RESIDENTIAL CARE
01/08/2022,2442763,209.19,AKARI CARE HOMES LIMITED,387465,Capital,Capital,Capital,Third Party Payments,505,Other Establishments,5041,Capital,SOCIAL CARE.NURSING & RESIDENTIAL CARE
01/08/2022,2442763,209.19,AKARI CARE HOMES LIMITED,387465,Capital,Capital,Capital,Third Party Payments,505,Other Establishments,5041,Capital,SOCIAL CARE.NURSING & RESIDENTIAL CARE
01/08/2022,2442763,209.19,AKARI CARE HOMES LIMITED,387465,Capital,Capital,Capital,Third Party Payments,505,Other Establishments,5041,Capital,SOCIAL CARE.NURSING & RESIDENTIAL CARE
01/08/2022,2442763,209.19,AKARI CARE HOMES LIMITED,387465,Capital,Capital,Capital,Third Party Payments,505,Other Establishments,5041,Capital,SOCIAL CARE.NURSING & RESIDENTIAL CARE
01/08/2022,2442763,209.19,AKARI CARE HOMES LIMITED,387465,Capital,Capital,Capital,Third Party Payments,505,Other Establishments,5041,Capital,SOCIAL CARE.NURSING & RESIDENTIAL CARE
01/08/2022,2442763,209.19,AKARI CARE HOMES LIMITED,387465,Capital,Capital,Capital,Third Party Payments,505,Other Establishments,5041,Capital,SOCIAL CARE.NURSING & RESIDENTIAL CARE
01/08/2022,2442763,209.19,AKARI CARE HOMES LIMITED,387465,Capital,Capital,Capital,Third Party Payments,505,Other Establishments,5041,Capital,SOCIAL CARE.NURSING & RESIDENTIAL CARE
01/08/2022,2442763,209.19,AKARI CARE HOMES LIMITED,387465,Capital,Capital,Capital,Third Party Payments,505,Other Establishments,5041,Capital,SOCIAL CARE.NURSING & RESIDENTIAL CARE
01/08/2022,2442763,209.19,AKARI CARE HOMES LIMITED,387465,Capital,Capital,Capital,Third Party Payments,505,Other Establishments,5041,Capital,SOCIAL CARE.NURSING & RESIDENTIAL CARE
01/08/2022,2442763,209.19,AKARI CARE HOMES LIMITED,387465,Capital,Capital,Capital,Third Party Payments,505,Other Establishments,5041,Capital,SOCIAL CARE.NURSING & RESIDENTIAL CARE
01/08/2022,2442763,209.19,AKARI CARE HOMES LIMITED,387465,Capital,Capital,Capital,Third Party Payments,505,Other Establishments,5041,Capital,SOCIAL CARE.NURSING & RESIDENTIAL CARE
01/08/2022,2442763,209.19,AKARI CARE HOMES LIMITED,387465,Capital,Capital,Capital,Third Party Payments,505,Other Establishments,5041,Capital,SOCIAL CARE.NURSING & RESIDENTIAL CARE
01/08/2022,2442763,209.19,AKARI CARE HOMES LIMITED,387465,Capital,Capital,Capital,Third Party Payments,505,Other Establishments,5041,Capital,SOCIAL CARE.NURSING & RESIDENTIAL CARE
01/08/2022,2442763,209.19,AKARI CARE HOMES LIMITED,387465,Capital,Capital,Capital,Third Party Payments,505,Other Establishments,5041,Capital,SOCIAL CARE.NURSING & RESIDENTIAL CARE
01/08/2022,2442763,209.19,AKARI CARE HOMES LIMITED,387465,Capital,Capital,Capital,Third Party Payments,505,Other Establishments,5041,Capital,SOCIAL CARE.NURSING & RESIDENTIAL CARE
01/08/2022,2442763,209.19,AKARI CARE HOMES LIMITED,387465,Capital,Capital,Capital,Third Party Payments,505,Other Establishments,5041,Capital,SOCIAL CARE.NURSING & RESIDENTIAL CARE
01/08/2022,2442763,231.15,AKARI CARE HOMES LIMITED,387465,Capital,Capital,Capital,Third Party Payments,505,Private Contractors,5042,Capital,SOCIAL CARE.NURSING & RESIDENTIAL CARE
01/08/2022,2442763,254.87,AKARI CARE HOMES LIMITED,387465,Capital,Capital,Capital,Third Party Payments,505,Other Establishments,5041,Capital,SOCIAL CARE.NURSING & RESIDENTIAL CARE
01/08/2022,2442763,537.92,AKARI CARE HOMES LIMITED,387465,Capital,Capital,Capital,Third Party Payments,505,Other Establishments,5041,Capital,SOCIAL CARE.NURSING & RESIDENTIAL CARE
01/08/2022,2442763,552.43,AKARI CARE HOMES LIMITED,387465,Capital,Capital,Capital,Third Party Payments,505,Private Contractors,5042,Capital,SOCIAL CARE.NURSING & RESIDENTIAL CARE
01/08/2022,2442763,591.90,AKARI CARE HOMES LIMITED,387465,Capital,Capital,Capital,Third Party Payments,505,Private Contractors,5042,Capital,SOCIAL CARE.NURSING & RESIDENTIAL CARE
01/08/2022,2442763,616.44,AKARI CARE HOMES LIMITED,387465,Capital,Capital,Capital,Third Party Payments,505,Other Establishments,5041,Capital,SOCIAL CARE.NURSING & RESIDENTIAL CARE
01/08/2022,2442763,690.54,AKARI CARE HOMES LIMITED,387465,Capital,Capital,Capital,Third Party Payments,505,Private Contractors,5042,Capital,SOCIAL CARE.NURSING & RESIDENTIAL CARE
01/08/2022,2442763,690.54,AKARI CARE HOMES LIMITED,387465,Capital,Capital,Capital,Third Party Payments,505,Private Contractors,5042,Capital,SOCIAL CARE.NURSING & RESIDENTIAL CARE
01/08/2022,2442763,690.54,AKARI CARE HOMES LIMITED,387465,Capital,Capital,Capital,Third Party Payments,505,Private Contractors,5042,Capital,SOCIAL CARE.NURSING & RESIDENTIAL CARE
01/08/2022,2442763,690.54,AKARI CARE HOMES LIMITED,387465,Capital,Capital,Capital,Third Party Payments,505,Private Contractors,5042,Capital,SOCIAL CARE.NURSING & RESIDENTIAL CARE
01/08/2022,2442763,690.54,AKARI CARE HOMES LIMITED,387465,Capital,Capital,Capital,Third Party Payments,505,Private Contractors,5042,Capital,SOCIAL CARE.NURSING & RESIDENTIAL CARE
01/08/2022,2442763,690.54,AKARI CARE HOMES LIMITED,387465,Capital,Capital,Capital,Third Party Payments,505,Private Contractors,5042,Capital,SOCIAL CARE.NURSING & RESIDENTIAL CARE
01/08/2022,2442763,690.54,AKARI CARE HOMES LIMITED,387465,Capital,Capital,Capital,Third Party Payments,505,Private Contractors,5042,Capital,SOCIAL CARE.NURSING & RESIDENTIAL CARE
01/08/2022,2442763,690.54,AKARI CARE HOMES LIMITED,387465,Capital,Capital,Capital,Third Party Payments,505,Private Contractors,5042,Capital,SOCIAL CARE.NURSING & RESIDENTIAL CARE
01/08/2022,2442763,690.54,AKARI CARE HOMES LIMITED,387465,Capital,Capital,Capital,Third Party Payments,505,Private Contractors,5042,Capital,SOCIAL CARE.NURSING & RESIDENTIAL CARE
01/08/2022,2442763,690.54,AKARI CARE HOMES LIMITED,387465,Capital,Capital,Capital,Third Party Payments,505,Private Contractors,5042,Capital,SOCIAL CARE.NURSING & RESIDENTIAL CARE
01/08/2022,2442763,690.54,AKARI CARE HOMES LIMITED,387465,Capital,Capital,Capital,Third Party Payments,505,Private Contractors,5042,Capital,SOCIAL CARE.NURSING & RESIDENTIAL CARE
01/08/2022,2442763,690.54,AKARI CARE HOMES LIMITED,387465,Capital,Capital,Capital,Third Party Payments,505,Private Contractors,5042,Capital,SOCIAL CARE.NURSING & RESIDENTIAL CARE
01/08/2022,2442763,690.54,AKARI CARE HOMES LIMITED,387465,Capital,Capital,Capital,Third Party Payments,505,Private Contractors,5042,Capital,SOCIAL CARE.NURSING & RESIDENTIAL CARE
01/08/2022,2442763,690.54,AKARI CARE HOMES LIMITED,387465,Capital,Capital,Capital,Third Party Payments,505,Private Contractors,5042,Capital,SOCIAL CARE.NURSING & RESIDENTIAL CARE
01/08/2022,2442763,690.54,AKARI CARE HOMES LIMITED,387465,Capital,Capital,Capital,Third Party Payments,505,Private Contractors,5042,Capital,SOCIAL CARE.NURSING & RESIDENTIAL CARE
01/08/2022,2442763,690.54,AKARI CARE HOMES LIMITED,387465,Capital,Capital,Capital,Third Party Payments,505,Private Contractors,5042,Capital,SOCIAL CARE.NURSING & RESIDENTIAL CARE
01/08/2022,2442763,690.54,AKARI CARE HOMES LIMITED,387465,Capital,Capital,Capital,Third Party Payments,505,Private Contractors,5042,Capital,SOCIAL CARE.NURSING & RESIDENTIAL CARE
01/08/2022,2442763,690.54,AKARI CARE HOMES LIMITED,387465,Capital,Capital,Capital,Third Party Payments,505,Private Contractors,5042,Capital,SOCIAL CARE.NURSING & RESIDENTIAL CARE
01/08/2022,2442763,690.54,AKARI CARE HOMES LIMITED,387465,Capital,Capital,Capital,Third Party Payments,505,Private Contractors,5042,Capital,SOCIAL CARE.NURSING & RESIDENTIAL CARE
01/08/2022,2442763,690.54,AKARI CARE HOMES LIMITED,387465,Capital,Capital,Capital,Third Party Payments,505,Private Contractors,5042,Capital,SOCIAL CARE.NURSING & RESIDENTIAL CARE
01/08/2022,2442763,690.54,AKARI CARE HOMES LIMITED,387465,Capital,Capital,Capital,Third Party Payments,505,Private Contractors,5042,Capital,SOCIAL CARE.NURSING & RESIDENTIAL CARE
01/08/2022,2442763,690.54,AKARI CARE HOMES LIMITED,387465,Capital,Capital,Capital,Third Party Payments,505,Private Contractors,5042,Capital,SOCIAL CARE.NURSING & RESIDENTIAL CARE
01/08/2022,2442763,690.54,AKARI CARE HOMES LIMITED,387465,Capital,Capital,Capital,Third Party Payments,505,Private Contractors,5042,Capital,SOCIAL CARE.NURSING & RESIDENTIAL CARE
01/08/2022,2442763,690.54,AKARI CARE HOMES LIMITED,387465,Capital,Capital,Capital,Third Party Payments,505,Private Contractors,5042,Capital,SOCIAL CARE.NURSING & RESIDENTIAL CARE
01/08/2022,2442763,690.54,AKARI CARE HOMES LIMITED,387465,Capital,Capital,Capital,Third Party Payments,505,Private Contractors,5042,Capital,SOCIAL CARE.NURSING & RESIDENTIAL CARE
01/08/2022,2442763,690.54,AKARI CARE HOMES LIMITED,387465,Capital,Capital,Capital,Third Party Payments,505,Private Contractors,5042,Capital,SOCIAL CARE.NURSING & RESIDENTIAL CARE
01/08/2022,2442763,690.54,AKARI CARE HOMES LIMITED,387465,Capital,Capital,Capital,Third Party Payments,505,Private Contractors,5042,Capital,SOCIAL CARE.NURSING & RESIDENTIAL CARE
01/08/2022,2442763,690.54,AKARI CARE HOMES LIMITED,387465,Capital,Capital,Capital,Third Party Payments,505,Private Contractors,5042,Capital,SOCIAL CARE.NURSING & RESIDENTIAL CARE
01/08/2022,2442763,690.54,AKARI CARE HOMES LIMITED,387465,Capital,Capital,Capital,Third Party Payments,505,Private Contractors,5042,Capital,SOCIAL CARE.NURSING & RESIDENTIAL CARE
01/08/2022,2442763,690.54,AKARI CARE HOMES LIMITED,387465,Capital,Capital,Capital,Third Party Payments,505,Private Contractors,5042,Capital,SOCIAL CARE.NURSING & RESIDENTIAL CARE
01/08/2022,2442763,690.54,AKARI CARE HOMES LIMITED,387465,Capital,Capital,Capital,Third Party Payments,505,Private Contractors,5042,Capital,SOCIAL CARE.NURSING & RESIDENTIAL CARE
01/08/2022,2442763,690.54,AKARI CARE HOMES LIMITED,387465,Capital,Capital,Capital,Third Party Payments,505,Private Contractors,5042,Capital,SOCIAL CARE.NURSING & RESIDENTIAL CARE
01/08/2022,2442763,690.54,AKARI CARE HOMES LIMITED,387465,Capital,Capital,Capital,Third Party Payments,505,Private Contractors,5042,Capital,SOCIAL CARE.NURSING & RESIDENTIAL CARE
01/08/2022,2442763,690.54,AKARI CARE HOMES LIMITED,387465,Capital,Capital,Capital,Third Party Payments,505,Private Contractors,5042,Capital,SOCIAL CARE.NURSING & RESIDENTIAL CARE
01/08/2022,2442763,690.54,AKARI CARE HOMES LIMITED,387465,Capital,Capital,Capital,Third Party Payments,505,Private Contractors,5042,Capital,SOCIAL CARE.NURSING & RESIDENTIAL CARE
01/08/2022,2442763,690.54,AKARI CARE HOMES LIMITED,387465,Capital,Capital,Capital,Third Party Payments,505,Private Contractors,5042,Capital,SOCIAL CARE.NURSING & RESIDENTIAL CARE
01/08/2022,2442763,690.54,AKARI CARE HOMES LIMITED,387465,Capital,Capital,Capital,Third Party Payments,505,Private Contractors,5042,Capital,SOCIAL CARE.NURSING & RESIDENTIAL CARE
01/08/2022,2442763,690.54,AKARI CARE HOMES LIMITED,387465,Capital,Capital,Capital,Third Party Payments,505,Private Contractors,5042,Capital,SOCIAL CARE.NURSING & RESIDENTIAL CARE
01/08/2022,2442763,690.54,AKARI CARE HOMES LIMITED,387465,Capital,Capital,Capital,Third Party Payments,505,Private Contractors,5042,Capital,SOCIAL CARE.NURSING & RESIDENTIAL CARE
01/08/2022,2442763,690.54,AKARI CARE HOMES LIMITED,387465,Capital,Capital,Capital,Third Party Payments,505,Private Contractors,5042,Capital,SOCIAL CARE.NURSING & RESIDENTIAL CARE
01/08/2022,2442763,690.54,AKARI CARE HOMES LIMITED,387465,Capital,Capital,Capital,Third Party Payments,505,Private Contractors,5042,Capital,SOCIAL CARE.NURSING & RESIDENTIAL CARE
01/08/2022,2442763,690.54,AKARI CARE HOMES LIMITED,387465,Capital,Capital,Capital,Third Party Payments,505,Private Contractors,5042,Capital,SOCIAL CARE.NURSING & RESIDENTIAL CARE
01/08/2022,2442763,690.54,AKARI CARE HOMES LIMITED,387465,Capital,Capital,Capital,Third Party Payments,505,Private Contractors,5042,Capital,SOCIAL CARE.NURSING & RESIDENTIAL CARE
01/08/2022,2442763,690.54,AKARI CARE HOMES LIMITED,387465,Capital,Capital,Capital,Third Party Payments,505,Private Contractors,5042,Capital,SOCIAL CARE.NURSING & RESIDENTIAL CARE
01/08/2022,2442763,690.54,AKARI CARE HOMES LIMITED,387465,Capital,Capital,Capital,Third Party Payments,505,Private Contractors,5042,Capital,SOCIAL CARE.NURSING & RESIDENTIAL CARE
01/08/2022,2442763,694.51,AKARI CARE HOMES LIMITED,387465,Capital,Capital,Capital,Third Party Payments,505,Private Contractors,5042,Capital,SOCIAL CARE.NURSING & RESIDENTIAL CARE
01/08/2022,2442763,694.51,AKARI CARE HOMES LIMITED,387465,Capital,Capital,Capital,Third Party Payments,505,Other Establishments,5041,Capital,SOCIAL CARE.NURSING & RESIDENTIAL CARE
01/08/2022,2442763,694.51,AKARI CARE HOMES LIMITED,387465,Capital,Capital,Capital,Third Party Payments,505,Private Contractors,5042,Capital,SOCIAL CARE.NURSING & RESIDENTIAL CARE
01/08/2022,2442763,694.51,AKARI CARE HOMES LIMITED,387465,Capital,Capital,Capital,Third Party Payments,505,Private Contractors,5042,Capital,SOCIAL CARE.NURSING & RESIDENTIAL CARE
01/08/2022,2442763,708.33,AKARI CARE HOMES LIMITED,387465,Capital,Capital,Capital,Third Party Payments,505,Private Contractors,5042,Capital,SOCIAL CARE.NURSING & RESIDENTIAL CARE
01/08/2022,2442763,724.79,AKARI CARE HOMES LIMITED,387465,Capital,Capital,Capital,Third Party Payments,505,Private Contractors,5042,Capital,SOCIAL CARE.NURSING & RESIDENTIAL CARE
01/08/2022,2442763,724.79,AKARI CARE HOMES LIMITED,387465,Capital,Capital,Capital,Third Party Payments,505,Other Establishments,5041,Capital,SOCIAL CARE.NURSING & RESIDENTIAL CARE
01/08/2022,2442763,729.91,AKARI CARE HOMES LIMITED,387465,Capital,Capital,Capital,Third Party Payments,505,Other Establishments,5041,Capital,SOCIAL CARE.NURSING & RESIDENTIAL CARE
01/08/2022,2442763,729.91,AKARI CARE HOMES LIMITED,387465,Capital,Capital,Capital,Third Party Payments,505,Private Contractors,5042,Capital,SOCIAL CARE.NURSING & RESIDENTIAL CARE
01/08/2022,2442763,729.91,AKARI CARE HOMES LIMITED,387465,Capital,Capital,Capital,Third Party Payments,505,Private Contractors,5042,Capital,SOCIAL CARE.NURSING & RESIDENTIAL CARE
01/08/2022,2442763,729.91,AKARI CARE HOMES LIMITED,387465,Capital,Capital,Capital,Third Party Payments,505,Private Contractors,5042,Capital,SOCIAL CARE.NURSING & RESIDENTIAL CARE
01/08/2022,2442763,729.91,AKARI CARE HOMES LIMITED,387465,Capital,Capital,Capital,Third Party Payments,505,Private Contractors,5042,Capital,SOCIAL CARE.NURSING & RESIDENTIAL CARE
01/08/2022,2442763,729.91,AKARI CARE HOMES LIMITED,387465,Capital,Capital,Capital,Third Party Payments,505,Private Contractors,5042,Capital,SOCIAL CARE.NURSING & RESIDENTIAL CARE
01/08/2022,2442763,729.91,AKARI CARE HOMES LIMITED,387465,Capital,Capital,Capital,Third Party Payments,505,Private Contractors,5042,Capital,SOCIAL CARE.NURSING & RESIDENTIAL CARE
01/08/2022,2442763,729.91,AKARI CARE HOMES LIMITED,387465,Capital,Capital,Capital,Third Party Payments,505,Private Contractors,5042,Capital,SOCIAL CARE.NURSING & RESIDENTIAL CARE
01/08/2022,2442763,729.91,AKARI CARE HOMES LIMITED,387465,Capital,Capital,Capital,Third Party Payments,505,Private Contractors,5042,Capital,SOCIAL CARE.NURSING & RESIDENTIAL CARE
01/08/2022,2442763,729.91,AKARI CARE HOMES LIMITED,387465,Capital,Capital,Capital,Third Party Payments,505,Private Contractors,5042,Capital,SOCIAL CARE.NURSING & RESIDENTIAL CARE
01/08/2022,2442763,729.91,AKARI CARE HOMES LIMITED,387465,Capital,Capital,Capital,Third Party Payments,505,Private Contractors,5042,Capital,SOCIAL CARE.NURSING & RESIDENTIAL CARE
01/08/2022,2442763,729.91,AKARI CARE HOMES LIMITED,387465,Capital,Capital,Capital,Third Party Payments,505,Private Contractors,5042,Capital,SOCIAL CARE.NURSING & RESIDENTIAL CARE
01/08/2022,2442763,729.91,AKARI CARE HOMES LIMITED,387465,Capital,Capital,Capital,Third Party Payments,505,Private Contractors,5042,Capital,SOCIAL CARE.NURSING & RESIDENTIAL CARE
01/08/2022,2442763,729.91,AKARI CARE HOMES LIMITED,387465,Capital,Capital,Capital,Third Party Payments,505,Private Contractors,5042,Capital,SOCIAL CARE.NURSING & RESIDENTIAL CARE
01/08/2022,2442763,729.91,AKARI CARE HOMES LIMITED,387465,Capital,Capital,Capital,Third Party Payments,505,Private Contractors,5042,Capital,SOCIAL CARE.NURSING & RESIDENTIAL CARE
01/08/2022,2442763,729.91,AKARI CARE HOMES LIMITED,387465,Capital,Capital,Capital,Third Party Payments,505,Private Contractors,5042,Capital,SOCIAL CARE.NURSING & RESIDENTIAL CARE
01/08/2022,2442763,729.91,AKARI CARE HOMES LIMITED,387465,Capital,Capital,Capital,Third Party Payments,505,Private Contractors,5042,Capital,SOCIAL CARE.NURSING & RESIDENTIAL CARE
01/08/2022,2442763,729.91,AKARI CARE HOMES LIMITED,387465,Capital,Capital,Capital,Third Party Payments,505,Private Contractors,5042,Capital,SOCIAL CARE.NURSING & RESIDENTIAL CARE
01/08/2022,2442763,729.91,AKARI CARE HOMES LIMITED,387465,Capital,Capital,Capital,Third Party Payments,505,Private Contractors,5042,Capital,SOCIAL CARE.NURSING & RESIDENTIAL CARE
01/08/2022,2442763,729.91,AKARI CARE HOMES LIMITED,387465,Capital,Capital,Capital,Third Party Payments,505,Private Contractors,5042,Capital,SOCIAL CARE.NURSING & RESIDENTIAL CARE
01/08/2022,2442763,729.91,AKARI CARE HOMES LIMITED,387465,"Health, Education, Care and Safeguarding",Capital,Capital,Third Party Payments,505,Private Contractors,5042,Revenue,SOCIAL CARE.NURSING & RESIDENTIAL CARE
01/08/2022,2442763,729.91,AKARI CARE HOMES LIMITED,387465,"Health, Education, Care and Safeguarding",Capital,Capital,Third Party Payments,505,Private Contractors,5042,Revenue,SOCIAL CARE.NURSING & RESIDENTIAL CARE
01/08/2022,2442763,729.91,AKARI CARE HOMES LIMITED,387465,Capital,Capital,Capital,Third Party Payments,505,Private Contractors,5042,Capital,SOCIAL CARE.NURSING & RESIDENTIAL CARE
01/08/2022,2442763,729.91,AKARI CARE HOMES LIMITED,387465,Capital,Capital,Capital,Third Party Payments,505,Private Contractors,5042,Capital,SOCIAL CARE.NURSING & RESIDENTIAL CARE
01/08/2022,2442763,729.91,AKARI CARE HOMES LIMITED,387465,Capital,Capital,Capital,Third Party Payments,505,Private Contractors,5042,Capital,SOCIAL CARE.NURSING & RESIDENTIAL CARE
01/08/2022,2442763,729.91,AKARI CARE HOMES LIMITED,387465,Capital,Capital,Capital,Third Party Payments,505,Private Contractors,5042,Capital,SOCIAL CARE.NURSING & RESIDENTIAL CARE
01/08/2022,2442763,729.91,AKARI CARE HOMES LIMITED,387465,Capital,Capital,Capital,Third Party Payments,505,Private Contractors,5042,Capital,SOCIAL CARE.NURSING & RESIDENTIAL CARE
01/08/2022,2442763,729.91,AKARI CARE HOMES LIMITED,387465,Capital,Capital,Capital,Third Party Payments,505,Private Contractors,5042,Capital,SOCIAL CARE.NURSING & RESIDENTIAL CARE
01/08/2022,2442763,729.91,AKARI CARE HOMES LIMITED,387465,Capital,Capital,Capital,Third Party Payments,505,Private Contractors,5042,Capital,SOCIAL CARE.NURSING & RESIDENTIAL CARE
01/08/2022,2442763,729.91,AKARI CARE HOMES LIMITED,387465,Capital,Capital,Capital,Third Party Payments,505,Private Contractors,5042,Capital,SOCIAL CARE.NURSING & RESIDENTIAL CARE
01/08/2022,2442763,729.91,AKARI CARE HOMES LIMITED,387465,Capital,Capital,Capital,Third Party Payments,505,Private Contractors,5042,Capital,SOCIAL CARE.NURSING & RESIDENTIAL CARE
01/08/2022,2442763,729.91,AKARI CARE HOMES LIMITED,387465,Capital,Capital,Capital,Third Party Payments,505,Private Contractors,5042,Capital,SOCIAL CARE.NURSING & RESIDENTIAL CARE
01/08/2022,2442763,729.91,AKARI CARE HOMES LIMITED,387465,Capital,Capital,Capital,Third Party Payments,505,Private Contractors,5042,Capital,SOCIAL CARE.NURSING & RESIDENTIAL CARE
01/08/2022,2442763,729.91,AKARI CARE HOMES LIMITED,387465,Capital,Capital,Capital,Third Party Payments,505,Private Contractors,5042,Capital,SOCIAL CARE.NURSING & RESIDENTIAL CARE
01/08/2022,2442763,729.91,AKARI CARE HOMES LIMITED,387465,Capital,Capital,Capital,Third Party Payments,505,Private Contractors,5042,Capital,SOCIAL CARE.NURSING & RESIDENTIAL CARE
01/08/2022,2442763,729.91,AKARI CARE HOMES LIMITED,387465,Capital,Capital,Capital,Third Party Payments,505,Private Contractors,5042,Capital,SOCIAL CARE.NURSING & RESIDENTIAL CARE
01/08/2022,2442763,729.91,AKARI CARE HOMES LIMITED,387465,Capital,Capital,Capital,Third Party Payments,505,Private Contractors,5042,Capital,SOCIAL CARE.NURSING & RESIDENTIAL CARE
01/08/2022,2442763,729.91,AKARI CARE HOMES LIMITED,387465,Capital,Capital,Capital,Third Party Payments,505,Private Contractors,5042,Capital,SOCIAL CARE.NURSING & RESIDENTIAL CARE
01/08/2022,2442763,729.91,AKARI CARE HOMES LIMITED,387465,Capital,Capital,Capital,Third Party Payments,505,Private Contractors,5042,Capital,SOCIAL CARE.NURSING & RESIDENTIAL CARE
01/08/2022,2442763,729.91,AKARI CARE HOMES LIMITED,387465,Capital,Capital,Capital,Third Party Payments,505,Private Contractors,5042,Capital,SOCIAL CARE.NURSING & RESIDENTIAL CARE
01/08/2022,2442763,729.91,AKARI CARE HOMES LIMITED,387465,Capital,Capital,Capital,Third Party Payments,505,Private Contractors,5042,Capital,SOCIAL CARE.NURSING & RESIDENTIAL CARE
01/08/2022,2442763,729.91,AKARI CARE HOMES LIMITED,387465,Capital,Capital,Capital,Third Party Payments,505,Private Contractors,5042,Capital,SOCIAL CARE.NURSING & RESIDENTIAL CARE
01/08/2022,2442763,729.91,AKARI CARE HOMES LIMITED,387465,Capital,Capital,Capital,Third Party Payments,505,Private Contractors,5042,Capital,SOCIAL CARE.NURSING & RESIDENTIAL CARE
01/08/2022,2442763,729.91,AKARI CARE HOMES LIMITED,387465,Capital,Capital,Capital,Third Party Payments,505,Other Establishments,5041,Capital,SOCIAL CARE.NURSING & RESIDENTIAL CARE
01/08/2022,2442763,729.91,AKARI CARE HOMES LIMITED,387465,Capital,Capital,Capital,Third Party Payments,505,Private Contractors,5042,Capital,SOCIAL CARE.NURSING & RESIDENTIAL CARE
01/08/2022,2442763,729.91,AKARI CARE HOMES LIMITED,387465,Capital,Capital,Capital,Third Party Payments,505,Private Contractors,5042,Capital,SOCIAL CARE.NURSING & RESIDENTIAL CARE
01/08/2022,2442763,729.91,AKARI CARE HOMES LIMITED,387465,"Health, Education, Care and Safeguarding",Capital,Capital,Third Party Payments,505,Private Contractors,5042,Revenue,SOCIAL CARE.NURSING & RESIDENTIAL CARE
01/08/2022,2442763,729.91,AKARI CARE HOMES LIMITED,387465,"Health, Education, Care and Safeguarding",Capital,Capital,Third Party Payments,505,Private Contractors,5042,Revenue,SOCIAL CARE.NURSING & RESIDENTIAL CARE
01/08/2022,2442763,731.76,AKARI CARE HOMES LIMITED,387465,Capital,Capital,Capital,Third Party Payments,505,Private Contractors,5042,Capital,SOCIAL CARE.NURSING & RESIDENTIAL CARE
01/08/2022,2442763,789.20,AKARI CARE HOMES LIMITED,387465,Capital,Capital,Capital,Third Party Payments,505,Private Contractors,5042,Capital,SOCIAL CARE.NURSING & RESIDENTIAL CARE
01/08/2022,2442763,808.92,AKARI CARE HOMES LIMITED,387465,Capital,Capital,Capital,Third Party Payments,505,Private Contractors,5042,Capital,SOCIAL CARE.NURSING & RESIDENTIAL CARE
01/08/2022,2442763,832.80,AKARI CARE HOMES LIMITED,387465,Capital,Capital,Capital,Third Party Payments,505,Private Contractors,5042,Capital,SOCIAL CARE.NURSING & RESIDENTIAL CARE
01/08/2022,2442763,856.50,AKARI CARE HOMES LIMITED,387465,Capital,Capital,Capital,Third Party Payments,505,Other Establishments,5041,Capital,SOCIAL CARE.NURSING & RESIDENTIAL CARE
01/08/2022,2442763,887.83,AKARI CARE HOMES LIMITED,387465,,,,,,,,,SOCIAL CARE.NURSING & RESIDENTIAL CARE
01/08/2022,2442763,927.62,AKARI CARE HOMES LIMITED,387465,Capital,Capital,Capital,Third Party Payments,505,Private Contractors,5042,Capital,SOCIAL CARE.NURSING & RESIDENTIAL CARE
01/08/2022,2442763,963.18,AKARI CARE HOMES LIMITED,387465,Capital,Capital,Capital,Third Party Payments,505,Private Contractors,5042,Capital,SOCIAL CARE.NURSING & RESIDENTIAL CARE
01/08/2022,2442763,975.79,AKARI CARE HOMES LIMITED,387465,Capital,Capital,Capital,Third Party Payments,505,Private Contractors,5042,Capital,SOCIAL CARE.NURSING & RESIDENTIAL CARE
01/08/2022,2442763,980.97,AKARI CARE HOMES LIMITED,387465,Capital,Capital,Capital,Third Party Payments,505,Private Contractors,5042,Capital,SOCIAL CARE.NURSING & RESIDENTIAL CARE
01/08/2022,2442763,986.49,AKARI CARE HOMES LIMITED,387465,Capital,Capital,Capital,Third Party Payments,505,Other Establishments,5041,Capital,SOCIAL CARE.NURSING & RESIDENTIAL CARE
01/08/2022,2442763,1081.74,AKARI CARE HOMES LIMITED,387465,Capital,Capital,Capital,Third Party Payments,505,Private Contractors,5042,Capital,SOCIAL CARE.NURSING & RESIDENTIAL CARE
01/08/2022,2442763,1085.13,AKARI CARE HOMES LIMITED,387465,Capital,Capital,Capital,Third Party Payments,505,Private Contractors,5042,Capital,SOCIAL CARE.NURSING & RESIDENTIAL CARE
01/08/2022,2442763,1085.13,AKARI CARE HOMES LIMITED,387465,Capital,Capital,Capital,Third Party Payments,505,Private Contractors,5042,Capital,SOCIAL CARE.NURSING & RESIDENTIAL CARE
01/08/2022,2442763,1135.07,AKARI CARE HOMES LIMITED,387465,Capital,Capital,Capital,Third Party Payments,505,Private Contractors,5042,Capital,SOCIAL CARE.NURSING & RESIDENTIAL CARE
01/08/2022,2442763,1165.49,AKARI CARE HOMES LIMITED,387465,Capital,Capital,Capital,Third Party Payments,505,Other Establishments,5041,Capital,SOCIAL CARE.NURSING & RESIDENTIAL CARE
01/08/2022,2442763,1212.12,AKARI CARE HOMES LIMITED,387465,Capital,Capital,Capital,Third Party Payments,505,Private Contractors,5042,Capital,SOCIAL CARE.NURSING & RESIDENTIAL CARE
01/08/2022,2442763,1253.61,AKARI CARE HOMES LIMITED,387465,Capital,Capital,Capital,Third Party Payments,505,Private Contractors,5042,Capital,SOCIAL CARE.NURSING & RESIDENTIAL CARE
01/08/2022,2442763,1265.47,AKARI CARE HOMES LIMITED,387465,Capital,Capital,Capital,Third Party Payments,505,Private Contractors,5042,Capital,SOCIAL CARE.NURSING & RESIDENTIAL CARE
01/08/2022,2442763,1295.10,AKARI CARE HOMES LIMITED,387465,Capital,Capital,Capital,Third Party Payments,505,Private Contractors,5042,Capital,SOCIAL CARE.NURSING & RESIDENTIAL CARE
01/08/2022,2442763,1372.17,AKARI CARE HOMES LIMITED,387465,Capital,Capital,Capital,Third Party Payments,505,Private Contractors,5042,Capital,SOCIAL CARE.NURSING & RESIDENTIAL CARE
01/08/2022,2442763,1372.17,AKARI CARE HOMES LIMITED,387465,Capital,Capital,Capital,Third Party Payments,505,Private Contractors,5042,Capital,SOCIAL CARE.NURSING & RESIDENTIAL CARE
01/08/2022,2442763,1372.17,AKARI CARE HOMES LIMITED,387465,Capital,Capital,Capital,Third Party Payments,505,Private Contractors,5042,Capital,SOCIAL CARE.NURSING & RESIDENTIAL CARE
01/08/2022,2442763,1372.17,AKARI CARE HOMES LIMITED,387465,Capital,Capital,Capital,Third Party Payments,505,Private Contractors,5042,Capital,SOCIAL CARE.NURSING & RESIDENTIAL CARE
01/08/2022,2442763,1372.17,AKARI CARE HOMES LIMITED,387465,Capital,Capital,Capital,Third Party Payments,505,Private Contractors,5042,Capital,SOCIAL CARE.NURSING & RESIDENTIAL CARE
01/08/2022,2442763,1372.17,AKARI CARE HOMES LIMITED,387465,Capital,Capital,Capital,Third Party Payments,505,Private Contractors,5042,Capital,SOCIAL CARE.NURSING & RESIDENTIAL CARE
01/08/2022,2442763,1372.17,AKARI CARE HOMES LIMITED,387465,Capital,Capital,Capital,Third Party Payments,505,Private Contractors,5042,Capital,SOCIAL CARE.NURSING & RESIDENTIAL CARE
01/08/2022,2442763,1372.17,AKARI CARE HOMES LIMITED,387465,Capital,Capital,Capital,Third Party Payments,505,Private Contractors,5042,Capital,SOCIAL CARE.NURSING & RESIDENTIAL CARE
01/08/2022,2442763,1372.17,AKARI CARE HOMES LIMITED,387465,Capital,Capital,Capital,Third Party Payments,505,Private Contractors,5042,Capital,SOCIAL CARE.NURSING & RESIDENTIAL CARE
01/08/2022,2442763,1372.17,AKARI CARE HOMES LIMITED,387465,Capital,Capital,Capital,Third Party Payments,505,Private Contractors,5042,Capital,SOCIAL CARE.NURSING & RESIDENTIAL CARE
01/08/2022,2442763,1372.17,AKARI CARE HOMES LIMITED,387465,Capital,Capital,Capital,Third Party Payments,505,Private Contractors,5042,Capital,SOCIAL CARE.NURSING & RESIDENTIAL CARE
01/08/2022,2442763,1372.17,AKARI CARE HOMES LIMITED,387465,Capital,Capital,Capital,Third Party Payments,505,Other Establishments,5041,Capital,SOCIAL CARE.NURSING & RESIDENTIAL CARE
01/08/2022,2442763,1372.17,AKARI CARE HOMES LIMITED,387465,Capital,Capital,Capital,Third Party Payments,505,Other Establishments,5041,Capital,SOCIAL CARE.NURSING & RESIDENTIAL CARE
01/08/2022,2442763,1372.17,AKARI CARE HOMES LIMITED,387465,Capital,Capital,Capital,Third Party Payments,505,Private Contractors,5042,Capital,SOCIAL CARE.NURSING & RESIDENTIAL CARE
01/08/2022,2442763,1372.17,AKARI CARE HOMES LIMITED,387465,Capital,Capital,Capital,Third Party Payments,505,Private Contractors,5042,Capital,SOCIAL CARE.NURSING & RESIDENTIAL CARE
01/08/2022,2442763,1381.10,AKARI CARE HOMES LIMITED,387465,Capital,Capital,Capital,Third Party Payments,505,Private Contractors,5042,Capital,SOCIAL CARE.NURSING & RESIDENTIAL CARE
01/08/2022,2442763,1399.95,AKARI CARE HOMES LIMITED,387465,Capital,Capital,Capital,Third Party Payments,505,Private Contractors,5042,Capital,SOCIAL CARE.NURSING & RESIDENTIAL CARE
01/08/2022,2442763,1436.83,AKARI CARE HOMES LIMITED,387465,Capital,Capital,Capital,Third Party Payments,505,Private Contractors,5042,Capital,SOCIAL CARE.NURSING & RESIDENTIAL CARE
01/08/2022,2442763,1436.83,AKARI CARE HOMES LIMITED,387465,Capital,Capital,Capital,Third Party Payments,505,Other Establishments,5041,Capital,SOCIAL CARE.NURSING & RESIDENTIAL CARE
01/08/2022,2442763,1436.83,AKARI CARE HOMES LIMITED,387465,Capital,Capital,Capital,Third Party Payments,505,Other Establishments,5041,Capital,SOCIAL CARE.NURSING & RESIDENTIAL CARE
01/08/2022,2442763,1436.83,AKARI CARE HOMES LIMITED,387465,Capital,Capital,Capital,Third Party Payments,505,Private Contractors,5042,Capital,SOCIAL CARE.NURSING & RESIDENTIAL CARE
01/08/2022,2442763,1436.83,AKARI CARE HOMES LIMITED,387465,Capital,Capital,Capital,Third Party Payments,505,Private Contractors,5042,Capital,SOCIAL CARE.NURSING & RESIDENTIAL CARE
01/08/2022,2442763,1436.83,AKARI CARE HOMES LIMITED,387465,Capital,Capital,Capital,Third Party Payments,505,Private Contractors,5042,Capital,SOCIAL CARE.NURSING & RESIDENTIAL CARE
01/08/2022,2442763,1436.83,AKARI CARE HOMES LIMITED,387465,Capital,Capital,Capital,Third Party Payments,505,Private Contractors,5042,Capital,SOCIAL CARE.NURSING & RESIDENTIAL CARE
01/08/2022,2442763,1436.83,AKARI CARE HOMES LIMITED,387465,Capital,Capital,Capital,Third Party Payments,505,Private Contractors,5042,Capital,SOCIAL CARE.NURSING & RESIDENTIAL CARE
01/08/2022,2442763,1626.64,AKARI CARE HOMES LIMITED,387465,Capital,Capital,Capital,Third Party Payments,505,Private Contractors,5042,Capital,SOCIAL CARE.NURSING & RESIDENTIAL CARE
01/08/2022,2442763,1775.67,AKARI CARE HOMES LIMITED,387465,Capital,Capital,Capital,Third Party Payments,505,Private Contractors,5042,Capital,SOCIAL CARE.NURSING & RESIDENTIAL CARE
01/08/2022,2442763,1918.60,AKARI CARE HOMES LIMITED,387465,Capital,Capital,Capital,Third Party Payments,505,Private Contractors,5042,Capital,SOCIAL CARE.NURSING & RESIDENTIAL CARE
01/08/2022,2442763,2071.62,AKARI CARE HOMES LIMITED,387465,Capital,Capital,Capital,Third Party Payments,505,Private Contractors,5042,Capital,SOCIAL CARE.NURSING & RESIDENTIAL CARE
01/08/2022,2442763,2711.09,AKARI CARE HOMES LIMITED,387465,Capital,Capital,Capital,Third Party Payments,505,Private Contractors,5042,Capital,SOCIAL CARE.NURSING & RESIDENTIAL CARE
01/08/2022,2442763,5205.79,AKARI CARE HOMES LIMITED,387465,Capital,Capital,Capital,Third Party Payments,505,Private Contractors,5042,Capital,SOCIAL CARE.NURSING & RESIDENTIAL CARE
01/08/2022,2442763,7793.24,AKARI CARE HOMES LIMITED,387465,Capital,Capital,Capital,Third Party Payments,505,Private Contractors,5042,Capital,SOCIAL CARE.NURSING & RESIDENTIAL CARE
01/08/2022,2442764,49.96,CREATIVE SUPPORT LTD,359340,Capital,Capital,Capital,Third Party Payments,505,Private Contractors,5042,Capital,SOCIAL CARE.HOMECARE SERVICES
01/08/2022,2442764,72.14,CREATIVE SUPPORT LTD,359340,Capital,Capital,Capital,Third Party Payments,505,Private Contractors,5042,Capital,SOCIAL CARE.HOMECARE SERVICES
01/08/2022,2442764,72.14,CREATIVE SUPPORT LTD,359340,Capital,Capital,Capital,Third Party Payments,505,Private Contractors,5042,Capital,SOCIAL CARE.HOMECARE SERVICES
01/08/2022,2442764,72.14,CREATIVE SUPPORT LTD,359340,Capital,Capital,Capital,Third Party Payments,505,Private Contractors,5042,Capital,SOCIAL CARE.HOMECARE SERVICES
01/08/2022,2442764,72.14,CREATIVE SUPPORT LTD,359340,Capital,Capital,Capital,Third Party Payments,505,Private Contractors,5042,Capital,SOCIAL CARE.HOMECARE SERVICES
01/08/2022,2442764,72.14,CREATIVE SUPPORT LTD,359340,Capital,Capital,Capital,Third Party Payments,505,Private Contractors,5042,Capital,SOCIAL CARE.HOMECARE SERVICES
01/08/2022,2442764,72.14,CREATIVE SUPPORT LTD,359340,Capital,Capital,Capital,Third Party Payments,505,Private Contractors,5042,Capital,SOCIAL CARE.HOMECARE SERVICES
01/08/2022,2442764,72.14,CREATIVE SUPPORT LTD,359340,Capital,Capital,Capital,Third Party Payments,505,Private Contractors,5042,Capital,SOCIAL CARE.HOMECARE SERVICES
01/08/2022,2442764,72.14,CREATIVE SUPPORT LTD,359340,Capital,Capital,Capital,Third Party Payments,505,Private Contractors,5042,Capital,SOCIAL CARE.HOMECARE SERVICES
01/08/2022,2442764,72.14,CREATIVE SUPPORT LTD,359340,Capital,Capital,Capital,Third Party Payments,505,Private Contractors,5042,Capital,SOCIAL CARE.HOMECARE SERVICES
01/08/2022,2442765,1709.85,WILKINSON PARK,322345,Capital,Capital,Capital,Third Party Payments,505,Private Contractors,5042,Capital,SOCIAL CARE.NURSING & RESIDENTIAL CARE
01/08/2022,2442765,1714.00,WILKINSON PARK,322345,Capital,Capital,Capital,Third Party Payments,505,Private Contractors,5042,Capital,SOCIAL CARE.NURSING & RESIDENTIAL CARE
01/08/2022,2442765,1761.00,WILKINSON PARK,322345,Capital,Capital,Capital,Third Party Payments,505,Private Contractors,5042,Capital,SOCIAL CARE.NURSING & RESIDENTIAL CARE
01/08/2022,2442766,639.08,HC ONE LIMITED - ASHINGTON GRANGE,394401,Capital,Capital,Capital,Third Party Payments,505,Private Contractors,5042,Capital,SOCIAL CARE.NURSING & RESIDENTIAL CARE
01/08/2022,2442767,579.95,Redacted Personal Data,394343,Capital,Capital,Capital,Third Party Payments,505,Private Contractors,5042,Capital,SOCIAL CARE.NURSING & RESIDENTIAL CARE
